Workbook

Sheet Parameters
A2: Time bucket for balancing | B2: Week1
A3: Target balancing value : | B3: 0.85
A81: Time bucket trans. - do not tuch this list
A82: =INDEX(Orders!$B$2:$J$2,1,1) -> Week1
A83: =INDEX(Orders!$B$2:$J$2,1,2) -> Week2
A84: =INDEX(Orders!$B$2:$J$2,1,3) -> Week3
A85: =INDEX(Orders!$B$2:$J$2,1,4) -> 0
A86: =INDEX(Orders!$B$2:$J$2,1,5) -> 0
A87: =INDEX(Orders!$B$2:$J$2,1,6) -> 0

Sheet Tools
A1: Tools | B1: Availability | C1: Units per hour | D1: Tool balance priority
A2: Tool 01 | B2: 0.7849884277 | C2: 1200 | D2: 1
A3: Tool 02 | B3: 1.4 | C3: 2600 | D3: 1
A4: Tool 03 | B4: 0.6460802511 | C4: 2400 | D4: 2
A5: Tool 04 | B5: 0.6868557166 | C5: 2223 | D5: 1
A6: Tool 05 | B6: 0.7849884277 | C6: 1200 | D6: 2
A7: Tool 06 | B7: 0.6678858026 | C7: 5800 | D7: 1
A8: Tool 07 | B8: 0.6206211452 | C8: 6400 | D8: 3
A9: Tool 08 | B9: 1.2 | C9: 3920 | D9: 3
A10: Tool 09 | B10: 0.7924961438 | C10: 480 | D10: 1
A11: Tool 10 | B11: 0.8120563292 | C11: 1550 | D11: 1
A12: Tool 11 | B12: 0.6230748485 | C12: 2032 | D12: 1
A13: Tool 12 | B13: 0.6452160506 | C13: 4000 | D13: 1
A14: Tool 13 | B14: 0.5136998462 | C14: 2400 | D14: 1
A15: Tool 14 | B15: 0.66890845 | C15: 2300 | D15: 1
A16: Tool 15 | B16: 0.6036651237 | C16: 4400 | D16: 1
A17: Tool 16 | B17: 0.6779398148 | C17: 6800 | D17: 1
A18: Tool 17 | B18: 0.7078015915 | C18: 6800 | D18: 1
A19: Tool 18 | B19: 0.8241503729 | C19: 2800 | D19: 1
A20: Tool 19 | B20: 0.8096682114 | C20: 10168 | D20: 1
A21: Tool 20 | B21: 0.8096682114 | C21: 7847.642235 | D21: 1

Sheet Product-tool
A1: Input
A2: Product | B2: Main tool | C2: Secondary tool | E2: Balanced result | F2: Was balanced?
A3: AB0329160 | B3: Tool 10 | E3: Tool 10 | F3: FALSE
A4: AB0513704 | B4: Tool 10 | E4: Tool 10 | F4: FALSE
A5: AB0635046 | B5: Tool 10 | E5: Tool 10 | F5: FALSE
A6: AB0975463 | B6: Tool 09 | E6: Tool 09 | F6: FALSE
A7: AB1018910 | B7: Tool 10 | E7: Tool 10 | F7: FALSE
A8: AB1305109 | B8: Tool 04 | C8: Tool 17 | E8: Tool 17 | F8: TRUE
A9: AB2092362 | B9: Tool 10 | E9: Tool 10 | F9: FALSE
A10: AB2569538 | B10: Tool 10 | E10: Tool 10 | F10: FALSE
A11: AB2665756 | B11: Tool 06 | E11: Tool 06 | F11: FALSE
A12: AB3534415 | B12: Tool 05 | E12: Tool 05 | F12: FALSE
A13: AB3839653 | B13: Tool 10 | E13: Tool 10 | F13: FALSE
A14: AB4133650 | B14: Tool 04 | C14: Tool 17 | E14: Tool 17 | F14: TRUE
A15: AB4302436 | B15: Tool 10 | E15: Tool 10 | F15: FALSE
A16: AB4952945 | B16: Tool 16 | E16: Tool 16 | F16: FALSE
A17: AB5677022 | B17: Tool 07 | E17: Tool 07 | F17: FALSE
A18: AB617476 | B18: Tool 18 | C18: Tool 13 | E18: Tool 13 | F18: TRUE
A19: AB6803301 | B19: Tool 04 | C19: Tool 17 | E19: Tool 17 | F19: TRUE
A20: AB6883086 | B20: Tool 09 | E20: Tool 09 | F20: FALSE
A21: AF2334989 | B21: Tool 17 | E21: Tool 17 | F21: FALSE
A22: AF2797300 | B22: Tool 09 | E22: Tool 09 | F22: FALSE
A23: AF4224863 | B23: Tool 09 | E23: Tool 09 | F23: FALSE
A24: AF4955974 | B24: Tool 09 | E24: Tool 09 | F24: FALSE
A25: AF5847200 | B25: Tool 15 | E25: Tool 15 | F25: FALSE
A26: AL1492544 | B26: Tool 06 | E26: Tool 06 | F26: FALSE
A27: AL2661736 | B27: Tool 15 | E27: Tool 15 | F27: FALSE
A28: AO0324556 | B28: Tool 16 | E28: Tool 16 | F28: FALSE
A29: AO0414069 | B29: Tool 02 | C29: Tool 03 | E29: Tool 02 | F29: FALSE
A30: AO2105290 | B30: Tool 15 | E30: Tool 15 | F30: FALSE
A31: AO4874959 | B31: Tool 18 | C31: Tool 13 | E31: Tool 13 | F31: TRUE
A32: AO5342652 | B32: Tool 07 | E32: Tool 07 | F32: FALSE
A33: AO5834357 | B33: Tool 15 | E33: Tool 15 | F33: FALSE
A34: AO8517171 | B34: Tool 14 | E34: Tool 14 | F34: FALSE
A35: AO855133 | B35: Tool 07 | E35: Tool 07 | F35: FALSE
A36: AP0171319 | B36: Tool 07 | E36: Tool 07 | F36: FALSE
A37: AP0202155 | B37: Tool 15 | E37: Tool 15 | F37: FALSE
A38: AP086256 | B38: Tool 07 | E38: Tool 07 | F38: FALSE
A39: AP242884 | B39: Tool 16 | E39: Tool 16 | F39: FALSE
A40: AP3078837 | B40: Tool 07 | E40: Tool 07 | F40: FALSE
A41: AP352983 | B41: Tool 17 | E41: Tool 17 | F41: FALSE
A42: AP3728500 | B42: Tool 02 | C42: Tool 03 | E42: Tool 02 | F42: FALSE
A43: AP3951566 | B43: Tool 02 | C43: Tool 03 | E43: Tool 02 | F43: FALSE
A44: AP4223947 | B44: Tool 02 | C44: Tool 03 | E44: Tool 02 | F44: FALSE
A45: AP4745289 | B45: Tool 02 | C45: Tool 03 | E45: Tool 02 | F45: FALSE
A46: AP4972828 | B46: Tool 07 | E46: Tool 07 | F46: FALSE
A47: AP5614262 | B47: Tool 07 | E47: Tool 07 | F47: FALSE
A48: AP5647883 | B48: Tool 15 | E48: Tool 15 | F48: FALSE
A49: AP5897782 | B49: Tool 07 | E49: Tool 07 | F49: FALSE
A50: AP853615 | B50: Tool 13 | E50: Tool 13 | F50: FALSE
A51: AS0105077 | B51: Tool 12 | E51: Tool 12 | F51: FALSE
A52: AS0125536 | B52: Tool 05 | E52: Tool 05 | F52: FALSE
A53: AS0888075 | B53: Tool 13 | E53: Tool 13 | F53: FALSE
A54: AS1143091 | B54: Tool 05 | E54: Tool 05 | F54: FALSE
A55: AS5378181 | B55: Tool 13 | E55: Tool 13 | F55: FALSE
A56: AS6815735 | B56: Tool 06 | E56: Tool 06 | F56: FALSE
A57: BC1086722 | B57: Tool 06 | E57: Tool 06 | F57: FALSE
A58: BC1381899 | B58: Tool 06 | E58: Tool 06 | F58: FALSE
A59: BC1638233 | B59: Tool 06 | E59: Tool 06 | F59: FALSE
A60: BC2465775 | B60: Tool 06 | E60: Tool 06 | F60: FALSE
A61: BC2509115 | B61: Tool 06 | E61: Tool 06 | F61: FALSE
A62: BC2965316 | B62: Tool 06 | E62: Tool 06 | F62: FALSE
A63: BC3857293 | B63: Tool 15 | E63: Tool 15 | F63: FALSE
A64: BC5752252 | B64: Tool 06 | E64: Tool 06 | F64: FALSE
A65: BC6306450 | B65: Tool 05 | E65: Tool 05 | F65: FALSE
A66: CC0084549 | B66: Tool 12 | E66: Tool 12 | F66: FALSE
A67: CC0189122 | B67: Tool 20 | E67: Tool 20 | F67: FALSE
A68: CC0921636 | B68: Tool 20 | E68: Tool 20 | F68: FALSE
A69: CC092903 | B69: Tool 20 | E69: Tool 20 | F69: FALSE
A70: CC2454697 | B70: Tool 20 | E70: Tool 20 | F70: FALSE
A71: CC2566445 | B71: Tool 15 | E71: Tool 15 | F71: FALSE
A72: CC2575 | B72: Tool 19 | E72: Tool 19 | F72: FALSE
A73: CC2936183 | B73: Tool 20 | E73: Tool 20 | F73: FALSE
A74: CC2965217 | B74: Tool 20 | E74: Tool 20 | F74: FALSE
A75: CC3609599 | B75: Tool 04 | C75: Tool 17 | E75: Tool 17 | F75: TRUE
A76: CC3979402 | B76: Tool 13 | E76: Tool 13 | F76: FALSE
A77: CC4329116 | B77: Tool 19 | E77: Tool 19 | F77: FALSE
A78: CC4618183 | B78: Tool 18 | C78: Tool 13 | E78: Tool 13 | F78: TRUE
A79: CC4774419 | B79: Tool 12 | E79: Tool 12 | F79: FALSE
A80: CC4941594 | B80: Tool 13 | E80: Tool 13 | F80: FALSE
A81: CC4945569 | B81: Tool 04 | C81: Tool 17 | E81: Tool 17 | F81: TRUE
A82: CC5387633 | B82: Tool 04 | C82: Tool 17 | E82: Tool 17 | F82: TRUE
A83: CC5505924 | B83: Tool 19 | E83: Tool 19 | F83: FALSE
A84: CC5603244 | B84: Tool 12 | E84: Tool 12 | F84: FALSE
A85: CC5605066 | B85: Tool 08 | C85: Tool 11 | E85: Tool 08 | F85: FALSE
A86: CC5646794 | B86: Tool 20 | E86: Tool 20 | F86: FALSE
A87: CC5671451 | B87: Tool 19 | E87: Tool 19 | F87: FALSE
A88: CC5798817 | B88: Tool 20 | E88: Tool 20 | F88: FALSE
A89: CC5805891 | B89: Tool 04 | C89: Tool 17 | E89: Tool 17 | F89: TRUE
A90: CC5803851 | B90: Tool 20 | E90: Tool 20 | F90: FALSE
A91: CC5835642 | B91: Tool 12 | E91: Tool 12 | F91: FALSE
A92: CC5844379 | B92: Tool 13 | E92: Tool 13 | F92: FALSE
A93: CC5859307 | B93: Tool 15 | E93: Tool 15 | F93: FALSE
A94: CC5877145 | B94: Tool 12 | E94: Tool 12 | F94: FALSE
A95: CC5872620 | B95: Tool 19 | E95: Tool 19 | F95: FALSE
A96: CC5949597 | B96: Tool 15 | E96: Tool 15 | F96: FALSE
A97: CC5951749 | B97: Tool 19 | E97: Tool 19 | F97: FALSE
A98: CC6069687 | B98: Tool 04 | C98: Tool 17 | E98: Tool 17 | F98: TRUE
A99: CC6146771 | B99: Tool 19 | E99: Tool 19 | F99: FALSE
A100: CC642531 | B100: Tool 19 | E100: Tool 19 | F100: FALSE
A101: CC6514546 | B101: Tool 15 | E101: Tool 15 | F101: FALSE
A102: CL1528731 | B102: Tool 15 | E102: Tool 15 | F102: FALSE
A103: CL4179003 | B103: Tool 08 | C103: Tool 11 | E103: Tool 08 | F103: FALSE
A104: CM2146129 | B104: Tool 08 | C104: Tool 11 | E104: Tool 08 | F104: FALSE
A105: CM2144500 | B105: Tool 08 | C105: Tool 11 | E105: Tool 08 | F105: FALSE
A106: CM2364748 | B106: Tool 04 | E106: Tool 04 | F106: FALSE
A107: CM2573429 | B107: Tool 08 | C107: Tool 11 | E107: Tool 08 | F107: FALSE
A108: CM267912 | B108: Tool 08 | C108: Tool 11 | E108: Tool 08 | F108: FALSE
A109: CM2981742 | B109: Tool 10 | E109: Tool 10 | F109: FALSE
A110: CM350886 | B110: Tool 08 | C110: Tool 11 | E110: Tool 08 | F110: FALSE
A111: CM3509051 | B111: Tool 08 | C111: Tool 11 | E111: Tool 08 | F111: FALSE
A112: CM5648071 | B112: Tool 19 | E112: Tool 19 | F112: FALSE
A113: CM5946003 | B113: Tool 19 | E113: Tool 19 | F113: FALSE
A114: CM5947011 | B114: Tool 04 | E114: Tool 04 | F114: FALSE
A115: CP2759269 | B115: Tool 09 | E115: Tool 09 | F115: FALSE
A116: CP3651771 | B116: Tool 02 | C116: Tool 03 | E116: Tool 02 | F116: FALSE
A117: CP3782517 | B117: Tool 16 | E117: Tool 16 | F117: FALSE
A118: CP5891290 | B118: Tool 12 | E118: Tool 12 | F118: FALSE
A119: CP5915175 | B119: Tool 17 | E119: Tool 17 | F119: FALSE
A120: CT0314214 | B120: Tool 20 | E120: Tool 20 | F120: FALSE
A121: CT0686710 | B121: Tool 04 | C121: Tool 17 | E121: Tool 17 | F121: TRUE
A122: CT0911438 | B122: Tool 13 | E122: Tool 13 | F122: FALSE
A123: CT1153413 | B123: Tool 20 | E123: Tool 20 | F123: FALSE
A124: CT1195860 | B124: Tool 19 | E124: Tool 19 | F124: FALSE
A125: CT1344126 | B125: Tool 16 | E125: Tool 16 | F125: FALSE
A126: CT1427436 | B126: Tool 16 | E126: Tool 16 | F126: FALSE
A127: CT1422602 | B127: Tool 13 | E127: Tool 13 | F127: FALSE
A128: CT1693771 | B128: Tool 19 | E128: Tool 19 | F128: FALSE
A129: CT2356543 | B129: Tool 18 | C129: Tool 13 | E129: Tool 13 | F129: TRUE
A130: CT2727204 | B130: Tool 11 | C130: Tool 12 | E130: Tool 12 | F130: TRUE
A131: CT2748008 | B131: Tool 20 | E131: Tool 20 | F131: FALSE
A132: CT2882108 | B132: Tool 19 | E132: Tool 19 | F132: FALSE
A133: CT2899279 | B133: Tool 11 | C133: Tool 12 | E133: Tool 12 | F133: TRUE
A134: CT2921184 | B134: Tool 15 | E134: Tool 15 | F134: FALSE
A135: CT2976643 | B135: Tool 18 | C135: Tool 13 | E135: Tool 13 | F135: TRUE
A136: CT3251740 | B136: Tool 18 | C136: Tool 13 | E136: Tool 18 | F136: FALSE
A137: CT3327591 | B137: Tool 20 | E137: Tool 20 | F137: FALSE
A138: CT3389630 | B138: Tool 03 | E138: Tool 03 | F138: FALSE
A139: CT3513686 | B139: Tool 15 | E139: Tool 15 | F139: FALSE
A140: CT3676279 | B140: Tool 18 | C140: Tool 13 | E140: Tool 18 | F140: FALSE
A141: CT3847465 | B141: Tool 08 | C141: Tool 11 | E141: Tool 08 | F141: FALSE
A142: CT3866790 | B142: Tool 20 | E142: Tool 20 | F142: FALSE
A143: CT4394015 | B143: Tool 04 | C143: Tool 17 | E143: Tool 17 | F143: TRUE
A144: CT4485707 | B144: Tool 19 | E144: Tool 19 | F144: FALSE
A145: CT4625235 | B145: Tool 11 | C145: Tool 12 | E145: Tool 12 | F145: TRUE
A146: CT4696984 | B146: Tool 12 | E146: Tool 12 | F146: FALSE
A147: CT4766693 | B147: Tool 19 | E147: Tool 19 | F147: FALSE
A148: CT4972454 | B148: Tool 20 | E148: Tool 20 | F148: FALSE
A149: CT4983245 | B149: Tool 19 | E149: Tool 19 | F149: FALSE
A150: CT4998062 | B150: Tool 19 | E150: Tool 19 | F150: FALSE
A151: CT5306052 | B151: Tool 20 | E151: Tool 20 | F151: FALSE
A152: CT5312249 | B152: Tool 19 | E152: Tool 19 | F152: FALSE
A153: CT5387974 | B153: Tool 10 | E153: Tool 10 | F153: FALSE
A154: CT5424793 | B154: Tool 12 | E154: Tool 12 | F154: FALSE
A155: CT54540 | B155: Tool 15 | E155: Tool 15 | F155: FALSE
A156: CT5587547 | B156: Tool 19 | E156: Tool 19 | F156: FALSE
A157: CT5594793 | B157: Tool 18 | C157: Tool 13 | E157: Tool 13 | F157: TRUE
A158: CT5668919 | B158: Tool 20 | E158: Tool 20 | F158: FALSE
A159: CT5745169 | B159: Tool 12 | E159: Tool 12 | F159: FALSE
A160: CT5745914 | B160: Tool 12 | E160: Tool 12 | F160: FALSE
A161: CT5783436 | B161: Tool 20 | E161: Tool 20 | F161: FALSE
A162: CT5802839 | B162: Tool 19 | E162: Tool 19 | F162: FALSE
A163: CT5819298 | B163: Tool 20 | E163: Tool 20 | F163: FALSE
A164: CT5829315 | B164: Tool 18 | C164: Tool 13 | E164: Tool 13 | F164: TRUE
A165: CT5869387 | B165: Tool 19 | E165: Tool 19 | F165: FALSE
A166: CT588550 | B166: Tool 11 | C166: Tool 12 | E166: Tool 12 | F166: TRUE
A167: CT5885641 | B167: Tool 18 | C167: Tool 13 | E167: Tool 18 | F167: FALSE
A168: CT593521 | B168: Tool 18 | C168: Tool 13 | E168: Tool 18 | F168: FALSE
A169: CT5932817 | B169: Tool 20 | E169: Tool 20 | F169: FALSE
A170: CT5982395 | B170: Tool 04 | C170: Tool 17 | E170: Tool 04 | F170: FALSE
A171: CT6358073 | B171: Tool 20 | E171: Tool 20 | F171: FALSE
A172: CT6438604 | B172: Tool 20 | E172: Tool 20 | F172: FALSE
A173: CT6445143 | B173: Tool 20 | E173: Tool 20 | F173: FALSE
A174: CT823663 | B174: Tool 07 | E174: Tool 07 | F174: FALSE
A175: DA2128864 | B175: Tool 05 | E175: Tool 05 | F175: FALSE
A176: DA5685201 | B176: Tool 01 | E176: Tool 01 | F176: FALSE
A177: DP0098702 | B177: Tool 17 | E177: Tool 17 | F177: FALSE
A178: DP087138 | B178: Tool 14 | E178: Tool 14 | F178: FALSE
A179: DP1792938 | B179: Tool 15 | E179: Tool 15 | F179: FALSE
A180: DP2403779 | B180: Tool 15 | E180: Tool 15 | F180: FALSE
A181: DP2404504 | B181: Tool 03 | E181: Tool 03 | F181: FALSE
A182: DP4769417 | B182: Tool 17 | E182: Tool 17 | F182: FALSE
A183: DP4764853 | B183: Tool 18 | C183: Tool 13 | E183: Tool 18 | F183: FALSE
A184: DP5007199 | B184: Tool 01 | E184: Tool 01 | F184: FALSE
A185: DP5383174 | B185: Tool 01 | E185: Tool 01 | F185: FALSE
A186: DP5698799 | B186: Tool 01 | E186: Tool 01 | F186: FALSE
A187: DP5908334 | B187: Tool 01 | E187: Tool 01 | F187: FALSE
A188: DP638679 | B188: Tool 18 | C188: Tool 13 | E188: Tool 13 | F188: TRUE
A189: FR0061274 | B189: Tool 11 | E189: Tool 11 | F189: FALSE
A190: FR009628 | B190: Tool 11 | E190: Tool 11 | F190: FALSE
A191: FR0362571 | B191: Tool 11 | E191: Tool 11 | F191: FALSE
A192: FR0614261 | B192: Tool 11 | E192: Tool 11 | F192: FALSE
A193: FR0622263 | B193: Tool 11 | E193: Tool 11 | F193: FALSE
A194: FR066151 | B194: Tool 04 | E194: Tool 04 | F194: FALSE
A195: FR0667973 | B195: Tool 11 | E195: Tool 11 | F195: FALSE
A196: FR0679719 | B196: Tool 10 | E196: Tool 10 | F196: FALSE
A197: FR0696557 | B197: Tool 15 | E197: Tool 15 | F197: FALSE
A198: FR0905418 | B198: Tool 15 | E198: Tool 15 | F198: FALSE
A199: FR0919209 | B199: Tool 11 | E199: Tool 11 | F199: FALSE
A200: FR0935436 | B200: Tool 11 | E200: Tool 11 | F200: FALSE
... 602 more rows

Sheet Standard output
A1: Product+Tool | B1: Product | C1: Tool | D1: UPH (unit per hour) | E1: Defects
A2: =B2&C2 -> AB0329160Tool 10 | B2: AB0329160 | C2: Tool 10 | D2: 1553 | E2: 0.02
A3: =B3&C3 -> AB0513704Tool 10 | B3: AB0513704 | C3: Tool 10 | D3: 1646 | E3: 0.02
A4: AB0635046Tool 10 | B4: AB0635046 | C4: Tool 10 | D4: 1628 | E4: 0.02
A5: AB0975463Tool 09 | B5: AB0975463 | C5: Tool 09 | D5: 491 | E5: 0.02
A6: AB1018910Tool 10 | B6: AB1018910 | C6: Tool 10 | D6: 1608 | E6: 0.02
A7: AB1305109Tool 04 | B7: AB1305109 | C7: Tool 04 | D7: 2272 | E7: 0.02
A8: AB2092362Tool 10 | B8: AB2092362 | C8: Tool 10 | D8: 1631 | E8: 0.02
A9: AB2569538Tool 10 | B9: AB2569538 | C9: Tool 10 | D9: 1616 | E9: 0.02
A10: AB2665756Tool 06 | B10: AB2665756 | C10: Tool 06 | D10: 5847 | E10: 0.02
A11: AB3534415Tool 05 | B11: AB3534415 | C11: Tool 05 | D11: 1214 | E11: 0.02
A12: AB3839653Tool 10 | B12: AB3839653 | C12: Tool 10 | D12: 1581 | E12: 0.02
A13: AB4133650Tool 04 | B13: AB4133650 | C13: Tool 04 | D13: 2242 | E13: 0.02
A14: AB4302436Tool 10 | B14: AB4302436 | C14: Tool 10 | D14: 1560 | E14: 0.02
A15: AB4952945Tool 16 | B15: AB4952945 | C15: Tool 16 | D15: 6802 | E15: 0.02
A16: AB5677022Tool 07 | B16: AB5677022 | C16: Tool 07 | D16: 6488 | E16: 0.02
A17: AB617476Tool 18 | B17: AB617476 | C17: Tool 18 | D17: 2875 | E17: 0.02
A18: AB6803301Tool 04 | B18: AB6803301 | C18: Tool 04 | D18: 2277 | E18: 0.02
A19: AB6883086Tool 09 | B19: AB6883086 | C19: Tool 09 | D19: 554 | E19: 0.02
A20: AF2334989Tool 17 | B20: AF2334989 | C20: Tool 17 | D20: 6837 | E20: 0.02
A21: AF2797300Tool 09 | B21: AF2797300 | C21: Tool 09 | D21: 538 | E21: 0.02
A22: AF4224863Tool 09 | B22: AF4224863 | C22: Tool 09 | D22: 579 | E22: 0.02
A23: AF4955974Tool 09 | B23: AF4955974 | C23: Tool 09 | D23: 505 | E23: 0.02
A24: AF5847200Tool 15 | B24: AF5847200 | C24: Tool 15 | D24: 4457 | E24: 0.02
A25: AL1492544Tool 06 | B25: AL1492544 | C25: Tool 06 | D25: 5884 | E25: 0.02
A26: AL2661736Tool 15 | B26: AL2661736 | C26: Tool 15 | D26: 4446 | E26: 0.02
A27: AO0324556Tool 16 | B27: AO0324556 | C27: Tool 16 | D27: 6866 | E27: 0.02
A28: AO0414069Tool 02 | B28: AO0414069 | C28: Tool 02 | D28: 2673 | E28: 0.02
A29: AO2105290Tool 15 | B29: AO2105290 | C29: Tool 15 | D29: 4418 | E29: 0.02
A30: AO4874959Tool 18 | B30: AO4874959 | C30: Tool 18 | D30: 2881 | E30: 0.02
A31: AO5342652Tool 07 | B31: AO5342652 | C31: Tool 07 | D31: 6408 | E31: 0.02
A32: AO5834357Tool 15 | B32: AO5834357 | C32: Tool 15 | D32: 4429 | E32: 0.02
A33: AO8517171Tool 14 | B33: AO8517171 | C33: Tool 14 | D33: 2377 | E33: 0.02
A34: AO855133Tool 07 | B34: AO855133 | C34: Tool 07 | D34: 6471 | E34: 0.02
A35: AP0171319Tool 07 | B35: AP0171319 | C35: Tool 07 | D35: 6492 | E35: 0.02
A36: AP0202155Tool 15 | B36: AP0202155 | C36: Tool 15 | D36: 4426 | E36: 0.02
A37: AP086256Tool 07 | B37: AP086256 | C37: Tool 07 | D37: 6448 | E37: 0.02
A38: AP242884Tool 16 | B38: AP242884 | C38: Tool 16 | D38: 6871 | E38: 0.02
A39: AP3078837Tool 07 | B39: AP3078837 | C39: Tool 07 | D39: 6438 | E39: 0.02
A40: AP352983Tool 17 | B40: AP352983 | C40: Tool 17 | D40: 6884 | E40: 0.02
A41: AP3728500Tool 02 | B41: AP3728500 | C41: Tool 02 | D41: 2647 | E41: 0.02
A42: AP3951566Tool 02 | B42: AP3951566 | C42: Tool 02 | D42: 2668 | E42: 0.02
A43: AP4223947Tool 02 | B43: AP4223947 | C43: Tool 02 | D43: 2623 | E43: 0.02
A44: AP4745289Tool 02 | B44: AP4745289 | C44: Tool 02 | D44: 2609 | E44: 0.02
A45: AP4972828Tool 07 | B45: AP4972828 | C45: Tool 07 | D45: 6498 | E45: 0.02
A46: AP5614262Tool 07 | B46: AP5614262 | C46: Tool 07 | D46: 6484 | E46: 0.02
A47: AP5647883Tool 15 | B47: AP5647883 | C47: Tool 15 | D47: 4419 | E47: 0.02
A48: AP5897782Tool 07 | B48: AP5897782 | C48: Tool 07 | D48: 6452 | E48: 0.02
A49: AP853615Tool 13 | B49: AP853615 | C49: Tool 13 | D49: 2423 | E49: 0.02
A50: AS0105077Tool 12 | B50: AS0105077 | C50: Tool 12 | D50: 4006 | E50: 0.02
A51: AS0125536Tool 05 | B51: AS0125536 | C51: Tool 05 | D51: 1237 | E51: 0.02
A52: AS0888075Tool 13 | B52: AS0888075 | C52: Tool 13 | D52: 2458 | E52: 0.02
A53: AS1143091Tool 05 | B53: AS1143091 | C53: Tool 05 | D53: 1269 | E53: 0.02
A54: AS5378181Tool 13 | B54: AS5378181 | C54: Tool 13 | D54: 2493 | E54: 0.02
A55: AS6815735Tool 06 | B55: AS6815735 | C55: Tool 06 | D55: 5827 | E55: 0.02
A56: BC1086722Tool 06 | B56: BC1086722 | C56: Tool 06 | D56: 5805 | E56: 0.02
A57: BC1381899Tool 06 | B57: BC1381899 | C57: Tool 06 | D57: 5808 | E57: 0.02
A58: BC1638233Tool 06 | B58: BC1638233 | C58: Tool 06 | D58: 5837 | E58: 0.02
A59: BC2465775Tool 06 | B59: BC2465775 | C59: Tool 06 | D59: 5873 | E59: 0.02
A60: BC2509115Tool 06 | B60: BC2509115 | C60: Tool 06 | D60: 5828 | E60: 0.02
A61: BC2965316Tool 06 | B61: BC2965316 | C61: Tool 06 | D61: 5864 | E61: 0.02
A62: BC3857293Tool 15 | B62: BC3857293 | C62: Tool 15 | D62: 4476 | E62: 0.02
A63: BC5752252Tool 06 | B63: BC5752252 | C63: Tool 06 | D63: 5843 | E63: 0.02
A64: BC6306450Tool 05 | B64: BC6306450 | C64: Tool 05 | D64: 1249 | E64: 0.02
A65: CC0084549Tool 12 | B65: CC0084549 | C65: Tool 12 | D65: 4031 | E65: 0.02
A66: CC0189122Tool 20 | B66: CC0189122 | C66: Tool 20 | D66: 7862.642235 | E66: 0.02
A67: =B67&C67 -> CC0921636Tool 20 | B67: CC0921636 | C67: Tool 20 | D67: 7933.642235 | E67: 0.02
A68: CC092903Tool 20 | B68: CC092903 | C68: Tool 20 | D68: 7930.642235 | E68: 0.02
A69: CC2454697Tool 20 | B69: CC2454697 | C69: Tool 20 | D69: 7849.642235 | E69: 0.02
A70: CC2566445Tool 15 | B70: CC2566445 | C70: Tool 15 | D70: 4481 | E70: 0.02
A71: CC2575Tool 19 | B71: CC2575 | C71: Tool 19 | D71: 10239 | E71: 0.02
A72: CC2936183Tool 20 | B72: CC2936183 | C72: Tool 20 | D72: 7918.642235 | E72: 0.02
A73: CC2965217Tool 20 | B73: CC2965217 | C73: Tool 20 | D73: 7927.642235 | E73: 0.02
A74: CC3609599Tool 04 | B74: CC3609599 | C74: Tool 04 | D74: 2235 | E74: 0.02
A75: CC3979402Tool 13 | B75: CC3979402 | C75: Tool 13 | D75: 2458 | E75: 0.02
A76: CC4329116Tool 19 | B76: CC4329116 | C76: Tool 19 | D76: 10217 | E76: 0.02
A77: CC4618183Tool 18 | B77: CC4618183 | C77: Tool 18 | D77: 2806 | E77: 0.02
A78: CC4774419Tool 12 | B78: CC4774419 | C78: Tool 12 | D78: 4021 | E78: 0.02
A79: CC4941594Tool 13 | B79: CC4941594 | C79: Tool 13 | D79: 2438 | E79: 0.02
A80: CC4945569Tool 04 | B80: CC4945569 | C80: Tool 04 | D80: 2261 | E80: 0.02
A81: CC5387633Tool 04 | B81: CC5387633 | C81: Tool 04 | D81: 2248 | E81: 0.02
A82: CC5505924Tool 19 | B82: CC5505924 | C82: Tool 19 | D82: 10196 | E82: 0.02
A83: CC5603244Tool 12 | B83: CC5603244 | C83: Tool 12 | D83: 4024 | E83: 0.02
A84: CC5605066Tool 08 | B84: CC5605066 | C84: Tool 08 | D84: 3943 | E84: 0.02
A85: CC5646794Tool 20 | B85: CC5646794 | C85: Tool 20 | D85: 7897.642235 | E85: 0.02
A86: CC5671451Tool 19 | B86: CC5671451 | C86: Tool 19 | D86: 10198 | E86: 0.02
A87: CC5798817Tool 20 | B87: CC5798817 | C87: Tool 20 | D87: 7915.642235 | E87: 0.02
A88: CC5805891Tool 04 | B88: CC5805891 | C88: Tool 04 | D88: 2308 | E88: 0.02
A89: CC5803851Tool 20 | B89: CC5803851 | C89: Tool 20 | D89: 7859.642235 | E89: 0.02
A90: CC5835642Tool 12 | B90: CC5835642 | C90: Tool 12 | D90: 4039 | E90: 0.02
A91: CC5844379Tool 13 | B91: CC5844379 | C91: Tool 13 | D91: 2483 | E91: 0.02
A92: CC5859307Tool 15 | B92: CC5859307 | C92: Tool 15 | D92: 4481 | E92: 0.02
A93: CC5877145Tool 12 | B93: CC5877145 | C93: Tool 12 | D93: 4037 | E93: 0.02
A94: CC5872620Tool 19 | B94: CC5872620 | C94: Tool 19 | D94: 10241 | E94: 0.02
A95: CC5949597Tool 15 | B95: CC5949597 | C95: Tool 15 | D95: 4434 | E95: 0.02
A96: CC5951749Tool 19 | B96: CC5951749 | C96: Tool 19 | D96: 10212 | E96: 0.02
A97: CC6069687Tool 04 | B97: CC6069687 | C97: Tool 04 | D97: 2315 | E97: 0.02
A98: CC6146771Tool 19 | B98: CC6146771 | C98: Tool 19 | D98: 10189 | E98: 0.02
A99: CC642531Tool 19 | B99: CC642531 | C99: Tool 19 | D99: 10186 | E99: 0.02
A100: CC6514546Tool 15 | B100: CC6514546 | C100: Tool 15 | D100: 4404 | E100: 0.02
A101: CL1528731Tool 15 | B101: CL1528731 | C101: Tool 15 | D101: 4477 | E101: 0.02
A102: CL4179003Tool 08 | B102: CL4179003 | C102: Tool 08 | D102: 4001 | E102: 0.02
A103: CM2146129Tool 08 | B103: CM2146129 | C103: Tool 08 | D103: 3935 | E103: 0.02
A104: CM2144500Tool 08 | B104: CM2144500 | C104: Tool 08 | D104: 3949 | E104: 0.02
A105: CM2364748Tool 04 | B105: CM2364748 | C105: Tool 04 | D105: 2234 | E105: 0.02
A106: CM2573429Tool 08 | B106: CM2573429 | C106: Tool 08 | D106: 3930 | E106: 0.02
A107: CM267912Tool 08 | B107: CM267912 | C107: Tool 08 | D107: 3932 | E107: 0.02
A108: CM2981742Tool 10 | B108: CM2981742 | C108: Tool 10 | D108: 1619 | E108: 0.02
A109: CM350886Tool 08 | B109: CM350886 | C109: Tool 08 | D109: 3937 | E109: 0.02
A110: CM3509051Tool 08 | B110: CM3509051 | C110: Tool 08 | D110: 3942 | E110: 0.02
A111: CM5648071Tool 19 | B111: CM5648071 | C111: Tool 19 | D111: 10173 | E111: 0.02
A112: CM5946003Tool 19 | B112: CM5946003 | C112: Tool 19 | D112: 10242 | E112: 0.02
A113: CM5947011Tool 04 | B113: CM5947011 | C113: Tool 04 | D113: 2298 | E113: 0.02
A114: CP2759269Tool 09 | B114: CP2759269 | C114: Tool 09 | D114: 484 | E114: 0.02
A115: CP3651771Tool 02 | B115: CP3651771 | C115: Tool 02 | D115: 2681 | E115: 0.02
A116: CP3782517Tool 16 | B116: CP3782517 | C116: Tool 16 | D116: 6861 | E116: 0.02
A117: CP5891290Tool 12 | B117: CP5891290 | C117: Tool 12 | D117: 4089 | E117: 0.02
A118: CP5915175Tool 17 | B118: CP5915175 | C118: Tool 17 | D118: 6839 | E118: 0.02
A119: CT0314214Tool 20 | B119: CT0314214 | C119: Tool 20 | D119: 7870.642235 | E119: 0.02
A120: CT0686710Tool 04 | B120: CT0686710 | C120: Tool 04 | D120: 2295 | E120: 0.02
A121: CT0911438Tool 13 | B121: CT0911438 | C121: Tool 13 | D121: 2444 | E121: 0.02
A122: CT1153413Tool 20 | B122: CT1153413 | C122: Tool 20 | D122: 7871.642235 | E122: 0.02
A123: CT1195860Tool 19 | B123: CT1195860 | C123: Tool 19 | D123: 10244 | E123: 0.02
A124: CT1344126Tool 16 | B124: CT1344126 | C124: Tool 16 | D124: 6833 | E124: 0.02
A125: CT1427436Tool 16 | B125: CT1427436 | C125: Tool 16 | D125: 6841 | E125: 0.02
A126: CT1422602Tool 13 | B126: CT1422602 | C126: Tool 13 | D126: 2401 | E126: 0.02
A127: CT1693771Tool 19 | B127: CT1693771 | C127: Tool 19 | D127: 10241 | E127: 0.02
A128: CT2356543Tool 18 | B128: CT2356543 | C128: Tool 18 | D128: 2829 | E128: 0.02
A129: CT2727204Tool 11 | B129: CT2727204 | C129: Tool 11 | D129: 2035 | E129: 0.02
A130: CT2748008Tool 20 | B130: CT2748008 | C130: Tool 20 | D130: 7862.642235 | E130: 0.02
A131: =B131&C131 -> CT2882108Tool 19 | B131: CT2882108 | C131: Tool 19 | D131: 10248 | E131: 0.02
A132: CT2899279Tool 11 | B132: CT2899279 | C132: Tool 11 | D132: 2121 | E132: 0.02
A133: CT2921184Tool 15 | B133: CT2921184 | C133: Tool 15 | D133: 4472 | E133: 0.02
A134: CT2976643Tool 18 | B134: CT2976643 | C134: Tool 18 | D134: 2834 | E134: 0.02
A135: CT3251740Tool 18 | B135: CT3251740 | C135: Tool 18 | D135: 2887 | E135: 0.02
A136: CT3327591Tool 20 | B136: CT3327591 | C136: Tool 20 | D136: 7931.642235 | E136: 0.02
A137: CT3389630Tool 03 | B137: CT3389630 | C137: Tool 03 | D137: 2447 | E137: 0.02
A138: CT3513686Tool 15 | B138: CT3513686 | C138: Tool 15 | D138: 4406 | E138: 0.02
A139: CT3676279Tool 18 | B139: CT3676279 | C139: Tool 18 | D139: 2803 | E139: 0.02
A140: CT3847465Tool 08 | B140: CT3847465 | C140: Tool 08 | D140: 3955 | E140: 0.02
A141: CT3866790Tool 20 | B141: CT3866790 | C141: Tool 20 | D141: 7941.642235 | E141: 0.02
A142: CT4394015Tool 04 | B142: CT4394015 | C142: Tool 04 | D142: 2230 | E142: 0.02
A143: CT4485707Tool 19 | B143: CT4485707 | C143: Tool 19 | D143: 10169 | E143: 0.02
A144: CT4625235Tool 11 | B144: CT4625235 | C144: Tool 11 | D144: 2067 | E144: 0.02
A145: CT4696984Tool 12 | B145: CT4696984 | C145: Tool 12 | D145: 4054 | E145: 0.02
A146: CT4766693Tool 19 | B146: CT4766693 | C146: Tool 19 | D146: 10225 | E146: 0.02
A147: CT4972454Tool 20 | B147: CT4972454 | C147: Tool 20 | D147: 7868.642235 | E147: 0.02
A148: CT4983245Tool 19 | B148: CT4983245 | C148: Tool 19 | D148: 10224 | E148: 0.02
A149: CT4998062Tool 19 | B149: CT4998062 | C149: Tool 19 | D149: 10186 | E149: 0.02
A150: CT5306052Tool 20 | B150: CT5306052 | C150: Tool 20 | D150: 7869.642235 | E150: 0.02
A151: CT5312249Tool 19 | B151: CT5312249 | C151: Tool 19 | D151: 10265 | E151: 0.02
A152: CT5387974Tool 10 | B152: CT5387974 | C152: Tool 10 | D152: 1586 | E152: 0.02
A153: CT5424793Tool 12 | B153: CT5424793 | C153: Tool 12 | D153: 4056 | E153: 0.02
A154: CT54540Tool 15 | B154: CT54540 | C154: Tool 15 | D154: 4467 | E154: 0.02
A155: CT5587547Tool 19 | B155: CT5587547 | C155: Tool 19 | D155: 10202 | E155: 0.02
A156: CT5594793Tool 18 | B156: CT5594793 | C156: Tool 18 | D156: 2864 | E156: 0.02
A157: CT5668919Tool 20 | B157: CT5668919 | C157: Tool 20 | D157: 7912.642235 | E157: 0.02
A158: CT5745169Tool 12 | B158: CT5745169 | C158: Tool 12 | D158: 4071 | E158: 0.02
A159: CT5745914Tool 12 | B159: CT5745914 | C159: Tool 12 | D159: 4054 | E159: 0.02
A160: CT5783436Tool 20 | B160: CT5783436 | C160: Tool 20 | D160: 7869.642235 | E160: 0.02
A161: CT5802839Tool 19 | B161: CT5802839 | C161: Tool 19 | D161: 10173 | E161: 0.02
A162: CT5819298Tool 20 | B162: CT5819298 | C162: Tool 20 | D162: 7858.642235 | E162: 0.02
A163: CT5829315Tool 18 | B163: CT5829315 | C163: Tool 18 | D163: 2851 | E163: 0.02
A164: CT5869387Tool 19 | B164: CT5869387 | C164: Tool 19 | D164: 10217 | E164: 0.02
A165: CT588550Tool 11 | B165: CT588550 | C165: Tool 11 | D165: 2063 | E165: 0.02
A166: CT5885641Tool 18 | B166: CT5885641 | C166: Tool 18 | D166: 2814 | E166: 0.02
A167: CT593521Tool 18 | B167: CT593521 | C167: Tool 18 | D167: 2853 | E167: 0.02
A168: CT5932817Tool 20 | B168: CT5932817 | C168: Tool 20 | D168: 7850.642235 | E168: 0.02
A169: CT5982395Tool 04 | B169: CT5982395 | C169: Tool 04 | D169: 2227 | E169: 0.02
A170: CT6358073Tool 20 | B170: CT6358073 | C170: Tool 20 | D170: 7883.642235 | E170: 0.02
A171: CT6438604Tool 20 | B171: CT6438604 | C171: Tool 20 | D171: 7893.642235 | E171: 0.02
A172: CT6445143Tool 20 | B172: CT6445143 | C172: Tool 20 | D172: 7913.642235 | E172: 0.02
A173: CT823663Tool 07 | B173: CT823663 | C173: Tool 07 | D173: 6446 | E173: 0.02
A174: DA2128864Tool 05 | B174: DA2128864 | C174: Tool 05 | D174: 1267 | E174: 0.02
A175: DA5685201Tool 01 | B175: DA5685201 | C175: Tool 01 | D175: 1270 | E175: 0.02
A176: DP0098702Tool 17 | B176: DP0098702 | C176: Tool 17 | D176: 6800 | E176: 0.02
A177: DP087138Tool 14 | B177: DP087138 | C177: Tool 14 | D177: 2350 | E177: 0.02
A178: DP1792938Tool 15 | B178: DP1792938 | C178: Tool 15 | D178: 4404 | E178: 0.02
A179: DP2403779Tool 15 | B179: DP2403779 | C179: Tool 15 | D179: 4406 | E179: 0.02
A180: DP2404504Tool 03 | B180: DP2404504 | C180: Tool 03 | D180: 2460 | E180: 0.02
A181: DP4769417Tool 17 | B181: DP4769417 | C181: Tool 17 | D181: 6853 | E181: 0.02
A182: DP4764853Tool 18 | B182: DP4764853 | C182: Tool 18 | D182: 2863 | E182: 0.02
A183: DP5007199Tool 01 | B183: DP5007199 | C183: Tool 01 | D183: 1279 | E183: 0.02
A184: DP5383174Tool 01 | B184: DP5383174 | C184: Tool 01 | D184: 1278 | E184: 0.02
A185: DP5698799Tool 01 | B185: DP5698799 | C185: Tool 01 | D185: 1281 | E185: 0.02
A186: DP5908334Tool 01 | B186: DP5908334 | C186: Tool 01 | D186: 1276 | E186: 0.02
A187: DP638679Tool 18 | B187: DP638679 | C187: Tool 18 | D187: 2889 | E187: 0.02
A188: FR0061274Tool 11 | B188: FR0061274 | C188: Tool 11 | D188: 2069 | E188: 0.02
A189: FR009628Tool 11 | B189: FR009628 | C189: Tool 11 | D189: 2089 | E189: 0.02
A190: FR0362571Tool 11 | B190: FR0362571 | C190: Tool 11 | D190: 2087 | E190: 0.02
A191: FR0614261Tool 11 | B191: FR0614261 | C191: Tool 11 | D191: 2107 | E191: 0.02
A192: FR0622263Tool 11 | B192: FR0622263 | C192: Tool 11 | D192: 2035 | E192: 0.02
A193: FR066151Tool 04 | B193: FR066151 | C193: Tool 04 | D193: 2257 | E193: 0.02
A194: FR0667973Tool 11 | B194: FR0667973 | C194: Tool 11 | D194: 2050 | E194: 0.02
A195: =B195&C195 -> FR0679719Tool 10 | B195: FR0679719 | C195: Tool 10 | D195: 1605 | E195: 0.02
A196: FR0696557Tool 15 | B196: FR0696557 | C196: Tool 15 | D196: 4478 | E196: 0.02
A197: FR0905418Tool 15 | B197: FR0905418 | C197: Tool 15 | D197: 4421 | E197: 0.02
A198: FR0919209Tool 11 | B198: FR0919209 | C198: Tool 11 | D198: 2083 | E198: 0.02
A199: FR0935436Tool 11 | B199: FR0935436 | C199: Tool 11 | D199: 2087 | E199: 0.02
A200: FR1379592Tool 15 | B200: FR1379592 | C200: Tool 15 | D200: 4494 | E200: 0.02
... 652 more rows

Sheet Orders
A1: Number of days per time bucket | B1: 7 | C1: 7 | D1: 7
A2: Product | B2: Week1 | C2: Week2 | D2: Week3
A3: AB0329160 | B3: 11050 | C3: 11700 | D3: 11317.8
A4: AB0513704 | B4: 107.9 | C4: 126.1 | D4: 109.2
A5: AB0635046 | B5: 3282.5 | C5: 2854.8 | D5: 2882.1
A6: AB0975463 | B6: 345.8 | C6: 575.9 | D6: 423.8
A7: AB1018910 | B7: 3803.8 | C7: 3164.2 | D7: 3278.6
A8: AB1305109 | B8: 53.3 | C8: 44.2 | D8: 45.5
A9: AB2092362 | B9: 11499.8 | C9: 14016.6 | D9: 11844.3
A10: AB2569538 | B10: 2927.6 | C10: 4875 | D10: 3582.8
A11: AB2665756 | B11: 215.8 | C11: 240.5 | D11: 211.9
A12: AB3534415 | B12: 325 | C12: 509.6 | D12: 383.5
A13: AB3839653 | B13: 3032.9 | C13: 2653.3 | D13: 2670.2
A14: AB4133650 | B14: 345.8 | C14: 426.4 | D14: 358.8
A15: AB4302436 | B15: 4755.4 | C15: 5158.4 | D15: 4620.2
A16: AB4952945 | B16: 874.9 | C16: 889.2 | D16: 824.2
A17: AB5677022 | B17: 17885.4 | C17: 14771.9 | D17: 15366
A18: AB617476 | B18: 20.8 | C18: 32.5 | D18: 24.7
A19: AB6803301 | B19: 335.4 | C19: 551.2 | D19: 406.9
A20: AB6883086 | B20: 94.9 | C20: 157.3 | D20: 117
A21: AF2334989 | B21: 157300 | C21: 221759.2 | D21: 169903.5
A22: AF2797300 | B22: 226.2 | C22: 210.6 | D22: 205.4
A23: AF4224863 | B23: 3663.4 | C23: 5120.7 | D23: 4058.6
A24: AF4955974 | B24: 7259.2 | C24: 9631.7 | D24: 7816.9
A25: AF5847200 | B25: 400.4 | C25: 483.6 | D25: 410.8
A26: AL1492544 | B26: 29095.3 | C26: 49634 | D26: 36128.3
A27: AL2661736 | B27: 375.7 | C27: 418.6 | D27: 370.5
A28: AO0324556 | B28: 57.2 | C28: 32.5 | D28: 42.9
A29: AO0414069 | B29: 302.9 | C29: 254.8 | D29: 262.6
A30: AO2105290 | B30: 3728.4 | C30: 2380.3 | D30: 2899
A31: AO4874959 | B31: 2822.3 | C31: 3897.4 | D31: 3105.7
A32: AO5342652 | B32: 1151.8 | C32: 724.1 | D32: 890.5
A33: AO5834357 | B33: 3669.9 | C33: 3036.8 | D33: 3156.4
A34: AO8517171 | B34: 20.8 | C34: 26 | D34: 22.1
A35: AO855133 | B35: 1337.7 | C35: 1298.7 | D35: 1233.7
A36: AP0171319 | B36: 1329.9 | C36: 1513.2 | D36: 1323.4
A37: AP0202155 | B37: 7176 | C37: 7616.7 | D37: 6900.4
A38: AP086256 | B38: 10.4 | C38: 15.6 | D38: 11.7
A39: AP242884 | B39: 6905.6 | C39: 8912.8 | D39: 7328.1
A40: AP3078837 | B40: 854.1 | C40: 639.6 | D40: 705.9
A41: AP352983 | B41: 7940.4 | C41: 6823.7 | D41: 6936.8
A42: AP3728500 | B42: 2401.1 | C42: 1449.5 | D42: 1831.7
A43: AP3951566 | B43: 1300 | C43: 887.9 | D43: 1036.1
A44: AP4223947 | B44: 1882.4 | C44: 1223.3 | D44: 1472.9
A45: AP4745289 | B45: 85.8 | C45: 141.7 | D45: 104
A46: AP4972828 | B46: 10.4 | C46: 13 | D46: 10.4
A47: AP5614262 | B47: 63.7 | C47: 48.1 | D47: 53.3
A48: AP5647883 | B48: 6741.8 | C48: 7759.7 | D48: 6745.7
A49: AP5897782 | B49: 217.1 | C49: 159.9 | D49: 178.1
A50: AP853615 | B50: 651.3 | C50: 868.4 | D50: 703.3
A51: AS0105077 | B51: 2694.9 | C51: 3017.3 | D51: 2659.8
A52: AS0125536 | B52: 77730.9 | C52: 72160.4 | D52: 70240.3
A53: AS0888075 | B53: 5252 | C53: 3326.7 | D53: 4072.9
A54: AS1143091 | B54: 9945 | C54: 11611.6 | D54: 10020.4
A55: AS5378181 | B55: 578.5 | C55: 934.7 | D55: 696.8
A56: AS6815735 | B56: 15063.1 | C56: 19188 | D56: 15874.3
A57: BC1086722 | B57: 1082.9 | C57: 1417 | D57: 1158.3
A58: BC1381899 | B58: 1082.9 | C58: 1714.7 | D58: 1287
A59: BC1638233 | B59: 456.3 | C59: 713.7 | D59: 539.5
A60: BC2465775 | B60: 2957.5 | C60: 3892.2 | D60: 3170.7
A61: BC2509115 | B61: 8652.8 | C61: 10450.7 | D61: 8871.2
A62: BC2965316 | B62: 432.9 | C62: 713.7 | D62: 526.5
A63: BC3857293 | B63: 366.6 | C63: 390 | D63: 352.3
A64: BC5752252 | B64: 52 | C64: 62.4 | D64: 53.3
A65: BC6306450 | B65: 4787.9 | C65: 3270.8 | D65: 3816.8
A66: CC0084549 | B66: 9525.1 | C66: 6383 | D66: 7537.4
A67: CC0189122 | B67: 4680 | C67: 5543.2 | D67: 4750.2
A68: CC0921636 | B68: 29710.2 | C68: 21994.7 | D68: 24419.2
A69: CC092903 | B69: 10.4 | C69: 16.9 | D69: 13
A70: CC2454697 | B70: 5808.4 | C70: 4400.5 | D70: 4817.8
A71: CC2566445 | B71: 16889.6 | C71: 17079.4 | D71: 15870.4
A72: CC2575 | B72: 62648.3 | C72: 81100.5 | D72: 66586
A73: CC2936183 | B73: 3900 | C73: 3216.2 | D73: 3348.8
A74: CC2965217 | B74: 29295.5 | C74: 34915.4 | D74: 29828.5
A75: CC3609599 | B75: 18876 | C75: 38343.5 | D75: 21476
A76: CC3979402 | B76: 3905.2 | C76: 4264 | D76: 3806.4
A77: CC4329116 | B77: 117020.8 | C77: 88676.9 | D77: 97065.8
A78: CC4618183 | B78: 127246.6 | C78: 201691.1 | D78: 151314.8
A79: CC4774419 | B79: 1354.6 | C79: 1427.4 | D79: 1298.7
A80: CC4941594 | B80: 1732.9 | C80: 1375.4 | D80: 1465.1
A81: CC4945569 | B81: 49822.5 | C81: 65439.4 | D81: 53363.7
A82: CC5387633 | B82: 15393.3 | C82: 12000.3 | D82: 12914.2
A83: CC5505924 | B83: 75.4 | C83: 106.6 | D83: 84.5
A84: CC5603244 | B84: 2340 | C84: 3324.1 | D84: 2615.6
A85: CC5605066 | B85: 54667.6 | C85: 66066 | D85: 50957.4
A86: CC5646794 | B86: 2165.8 | C86: 1640.6 | D86: 1796.6
A87: CC5671451 | B87: 2762.5 | C87: 2945.8 | D87: 2662.4
A88: CC5798817 | B88: 8622.9 | C88: 5774.6 | D88: 6822.4
A89: CC5805891 | B89: 3032.9 | C89: 1900.6 | D89: 2342.6
A90: CC5803851 | B90: 14669.2 | C90: 24849.5 | D90: 18138.9
A91: CC5835642 | B91: 10.4 | C91: 6.5 | D91: 9.1
A92: CC5844379 | B92: 11077.3 | C92: 8044.4 | D92: 9036.3
A93: CC5859307 | B93: 605.8 | C93: 581.1 | D93: 556.4
A94: CC5877145 | B94: 1675.7 | C94: 2368.6 | D94: 1868.1
A95: CC5872620 | B95: 95162.6 | C95: 144521 | D95: 110416.8
A96: CC5949597 | B96: 11845.6 | C96: 13192.4 | D96: 11658.4
A97: CC5951749 | B97: 128.7 | C97: 141.7 | D97: 126.1
A98: CC6069687 | B98: 172.9 | C98: 286 | D98: 211.9
A99: CC6146771 | B99: 2875.6 | C99: 3030.3 | D99: 2754.7
A100: CC642531 | B100: 1385.8 | C100: 945.1 | D100: 1103.7
A101: CC6514546 | B101: 107.9 | C101: 161.2 | D101: 123.5
A102: CL1528731 | B102: 5370.3 | C102: 6384.3 | D102: 5461.3
A103: CL4179003 | B103: 20885.8 | C103: 27354.6 | D103: 22886.5
A104: CM2146129 | B104: 1661.4 | C104: 2657.2 | D104: 1986.4
A105: CM2144500 | B105: 6932.9 | C105: 11057.8 | D105: 8274.5
A106: CM2364748 | B106: 1426.1 | C106: 1259.7 | D106: 1261
A107: CM2573429 | B107: 31211.7 | C107: 22811.1 | D107: 25524.2
A108: CM267912 | B108: 115.7 | C108: 153.4 | D108: 124.8
A109: CM2981742 | B109: 15.6 | C109: 20.8 | D109: 16.9
A110: CM350886 | B110: 13 | C110: 6.5 | D110: 9.1
A111: CM3509051 | B111: 9591.4 | C111: 11904.1 | D111: 9971
A112: CM5648071 | B112: 1055.6 | C112: 1675.7 | D112: 1255.8
A113: CM5946003 | B113: 13094.9 | C113: 11021.4 | D113: 11339.9
A114: CM5947011 | B114: 15689.7 | C114: 9657.7 | D114: 12044.5
A115: CP2759269 | B115: 8866 | C115: 9885.2 | D115: 8732.1
A116: CP3651771 | B116: 12678.9 | C116: 16747.9 | D116: 13621.4
A117: CP3782517 | B117: 6982.3 | C117: 6124.3 | D117: 6154.2
A118: CP5891290 | B118: 172.9 | C118: 141.7 | D118: 148.2
A119: CP5915175 | B119: 568.1 | C119: 616.2 | D119: 552.5
A120: CT0314214 | B120: 56875 | C120: 95626.7 | D120: 70014.1
A121: CT0686710 | B121: 2490.8 | C121: 3781.7 | D121: 2889.9
A122: CT0911438 | B122: 1840.8 | C122: 1953.9 | D122: 1770.6
A123: CT1153413 | B123: 3972.8 | C123: 6085.3 | D123: 4631.9
A124: CT1195860 | B124: 1732.9 | C124: 2801.5 | D124: 2083.9
A125: CT1344126 | B125: 10832.9 | C125: 8486.4 | D125: 9106.5
A126: CT1427436 | B126: 283.4 | C126: 331.5 | D126: 286
A127: CT1422602 | B127: 6093.1 | C127: 7488 | D127: 6302.4
A128: CT1693771 | B128: 13973.7 | C128: 18470.4 | D128: 15017.6
A129: CT2356543 | B129: 4115.8 | C129: 4786.6 | D129: 4139.2
A130: CT2727204 | B130: 6845.8 | C130: 4988.1 | D130: 5592.6
A131: CT2748008 | B131: 692.9 | C131: 512.2 | D131: 569.4
A132: CT2882108 | B132: 147712.5 | C132: 126293.7 | D132: 128766.3
A133: CT2899279 | B133: 2165.8 | C133: 2444 | D133: 2146.3
A134: CT2921184 | B134: 17440.8 | C134: 21563.1 | D134: 18096
A135: CT2976643 | B135: 1420.9 | C135: 2243.8 | D135: 1686.1
A136: CT3251740 | B136: 7312.5 | C136: 8057.4 | D136: 7159.1
A137: CT3327591 | B137: 22250.8 | C137: 36829 | D137: 27137.5
A138: CT3389630 | B138: 1054.3 | C138: 1730.3 | D138: 1280.5
A139: CT3513686 | B139: 100.1 | C139: 113.1 | D139: 98.8
A140: CT3676279 | B140: 51902.5 | C140: 53511.9 | D140: 49218
A141: CT3847465 | B141: 134392.7 | C141: 103559.3 | D141: 112222.5
A142: CT3866790 | B142: 88800.4 | C142: 93485.6 | D142: 85046
A143: CT4394015 | B143: 31617.3 | C143: 47378.5 | D143: 29074.5
A144: CT4485707 | B144: 75.4 | C144: 81.9 | D144: 72.8
A145: CT4625235 | B145: 1602.9 | C145: 2494.7 | D145: 1886.3
A146: CT4696984 | B146: 8333 | C146: 10176.4 | D146: 8591.7
A147: CT4766693 | B147: 15554.5 | C147: 23588.5 | D147: 18033.6
A148: CT4972454 | B148: 64127.7 | C148: 57613.4 | D148: 57112.9
A149: CT4983245 | B149: 16640 | C149: 15904.2 | D149: 15234.7
A150: CT4998062 | B150: 540.8 | C150: 474.5 | D150: 477.1
A151: CT5306052 | B151: 312 | C151: 301.6 | D151: 287.3
A152: CT5312249 | B152: 10.4 | C152: 14.3 | D152: 11.7
A153: CT5387974 | B153: 10.4 | C153: 6.5 | D153: 7.8
A154: CT5424793 | B154: 3333.2 | C154: 2892.5 | D154: 2923.7
A155: CT54540 | B155: 23678.2 | C155: 25030.2 | D155: 22721.4
A156: CT5587547 | B156: 123.5 | C156: 102.7 | D156: 106.6
A157: CT5594793 | B157: 1365 | C157: 2130.7 | D157: 1609.4
A158: CT5668919 | B158: 644.8 | C158: 612.3 | D158: 588.9
A159: CT5745169 | B159: 263.9 | C159: 344.5 | D159: 282.1
A160: CT5745914 | B160: 2057.9 | C160: 2178.8 | D160: 1977.3
A161: CT5783436 | B161: 35.1 | C161: 42.9 | D161: 36.4
A162: CT5802839 | B162: 1515.8 | C162: 1955.2 | D162: 1608.1
A163: CT5819298 | B163: 261.3 | C163: 322.4 | D163: 271.7
A164: CT5829315 | B164: 432.9 | C164: 336.7 | D164: 362.7
A165: CT5869387 | B165: 9349.6 | C165: 13786.5 | D165: 10669.1
A166: CT588550 | B166: 938.6 | C166: 574.6 | D166: 718.9
A167: CT5885641 | B167: 4505.8 | C167: 3630.9 | D167: 3832.4
A168: CT593521 | B168: 75630.1 | C168: 94032.9 | D168: 78699.4
A169: CT5932817 | B169: 172.9 | C169: 184.6 | D169: 166.4
A170: CT5982395 | B170: 357.5 | C170: 386.1 | D170: 347.1
A171: CT6358073 | B171: 32.5 | C171: 35.1 | D171: 31.2
A172: CT6438604 | B172: 10.4 | C172: 15.6 | D172: 11.7
A173: CT6445143 | B173: 5838.3 | C173: 8635.9 | D173: 6674.2
A174: CT823663 | B174: 1407.9 | C174: 1040 | D174: 1155.7
A175: DA2128864 | B175: 5200 | C175: 5652.4 | D175: 5057
A176: DA5685201 | B176: 172.9 | C176: 111.8 | D176: 135.2
A177: DP0098702 | B177: 10112.7 | C177: 13036.4 | D177: 10723.7
A178: DP087138 | B178: 39018.2 | C178: 56084.6 | D178: 43893.2
A179: DP1792938 | B179: 33878 | C179: 48295 | D179: 37936.6
A180: DP2403779 | B180: 11536.2 | C180: 10297.3 | D180: 10245.3
A181: DP2404504 | B181: 757.9 | C181: 1283.1 | D181: 937.3
A182: DP4769417 | B182: 2133.3 | C182: 1770.6 | D182: 1836.9
A183: DP4764853 | B183: 24584.3 | C183: 26763.1 | D183: 23929.1
A184: DP5007199 | B184: 52600.6 | C184: 51070.5 | D184: 48504.3
A185: DP5383174 | B185: 6390.8 | C185: 6799 | D185: 6151.6
A186: DP5698799 | B186: 1293.5 | C186: 839.8 | D186: 1012.7
A187: DP5908334 | B187: 46003.1 | C187: 49315.5 | D187: 44443.1
A188: DP638679 | B188: 123.5 | C188: 80.6 | D188: 97.5
A189: FR0061274 | B189: 93.6 | C189: 89.7 | D189: 85.8
A190: FR009628 | B190: 32643 | C190: 51675 | D190: 38789.4
A191: FR0362571 | B191: 18089.5 | C191: 22215.7 | D191: 18703.1
A192: FR0614261 | B192: 2967.9 | C192: 1994.2 | D192: 2351.7
A193: FR0622263 | B193: 692.9 | C193: 1017.9 | D193: 789.1
A194: FR066151 | B194: 1783.6 | C194: 3053.7 | D194: 2219.1
A195: FR0667973 | B195: 2165.8 | C195: 2376.4 | D195: 2116.4
A196: FR0679719 | B196: 140.4 | C196: 81.9 | D196: 105.3
A197: FR0696557 | B197: 2407.6 | C197: 4109.3 | D197: 2991.3
A198: FR0905418 | B198: 3510 | C198: 4635.8 | D198: 3770
A199: FR0919209 | B199: 4378.4 | C199: 2902.9 | D199: 3451.5
A200: FR0935436 | B200: 152.1 | C200: 244.4 | D200: 183.3
... 294 more rows

Sheet Tools avail
A1: Available time (in hours) per time bucket | B1: =6*24 -> 144 | C1: =6*24 -> 144 | D1: =6*24 -> 144
A2: =Tools!A1 -> Tools | B2: =Orders!B2 -> Week1 | C2: =Orders!C2 -> Week2 | D2: =Orders!D2 -> Week3
A3: =Tools!A2 -> Tool 01 | B3: =$B$1*Tools!B2 -> 113.0383336 | C3: =$C$1*Tools!B2 -> 113.0383336 | D3: =$D$1*Tools!B2 -> 113.0383336
A4: =Tools!A3 -> Tool 02 | B4: =$B$1*Tools!B3 -> 201.6 | C4: =$C$1*Tools!B3 -> 201.6 | D4: =$D$1*Tools!B3 -> 201.6
A5: =Tools!A4 -> Tool 03 | B5: =$B$1*Tools!B4 -> 93.03555616 | C5: =$C$1*Tools!B4 -> 93.03555616 | D5: =$D$1*Tools!B4 -> 93.03555616
A6: =Tools!A5 -> Tool 04 | B6: =$B$1*Tools!B5 -> 98.9072232 | C6: =$C$1*Tools!B5 -> 98.9072232 | D6: =$D$1*Tools!B5 -> 98.9072232
A7: =Tools!A6 -> Tool 05 | B7: =$B$1*Tools!B6 -> 113.0383336 | C7: =$C$1*Tools!B6 -> 113.0383336 | D7: =$D$1*Tools!B6 -> 113.0383336
A8: =Tools!A7 -> Tool 06 | B8: =$B$1*Tools!B7 -> 96.17555558 | C8: =$C$1*Tools!B7 -> 96.17555558 | D8: =$D$1*Tools!B7 -> 96.17555558
A9: =Tools!A8 -> Tool 07 | B9: =$B$1*Tools!B8 -> 89.36944491 | C9: =$C$1*Tools!B8 -> 89.36944491 | D9: =$D$1*Tools!B8 -> 89.36944491
A10: =Tools!A9 -> Tool 08 | B10: =$B$1*Tools!B9 -> 172.8 | C10: =$C$1*Tools!B9 -> 172.8 | D10: =$D$1*Tools!B9 -> 172.8
A11: =Tools!A10 -> Tool 09 | B11: =$B$1*Tools!B10 -> 114.1194447 | C11: =$C$1*Tools!B10 -> 114.1194447 | D11: =$D$1*Tools!B10 -> 114.1194447
A12: =Tools!A11 -> Tool 10 | B12: =$B$1*Tools!B11 -> 116.9361114 | C12: =$C$1*Tools!B11 -> 116.9361114 | D12: =$D$1*Tools!B11 -> 116.9361114
A13: =Tools!A12 -> Tool 11 | B13: =$B$1*Tools!B12 -> 89.72277819 | C13: =$C$1*Tools!B12 -> 89.72277819 | D13: =$D$1*Tools!B12 -> 89.72277819
A14: =Tools!A13 -> Tool 12 | B14: =$B$1*Tools!B13 -> 92.91111128 | C14: =$C$1*Tools!B13 -> 92.91111128 | D14: =$D$1*Tools!B13 -> 92.91111128
A15: =Tools!A14 -> Tool 13 | B15: =$B$1*Tools!B14 -> 73.97277786 | C15: =$C$1*Tools!B14 -> 73.97277786 | D15: =$D$1*Tools!B14 -> 73.97277786
A16: =Tools!A15 -> Tool 14 | B16: =$B$1*Tools!B15 -> 96.32281679 | C16: =$C$1*Tools!B15 -> 96.32281679 | D16: =$D$1*Tools!B15 -> 96.32281679
A17: =Tools!A16 -> Tool 15 | B17: =$B$1*Tools!B16 -> 86.92777781 | C17: =$C$1*Tools!B16 -> 86.92777781 | D17: =$D$1*Tools!B16 -> 86.92777781
A18: =Tools!A17 -> Tool 16 | B18: =$B$1*Tools!B17 -> 97.62333333 | C18: =$C$1*Tools!B17 -> 97.62333333 | D18: =$D$1*Tools!B17 -> 97.62333333
A19: =Tools!A18 -> Tool 17 | B19: =$B$1*Tools!B18 -> 101.9234292 | C19: =$C$1*Tools!B18 -> 101.9234292 | D19: =$D$1*Tools!B18 -> 101.9234292
A20: =Tools!A19 -> Tool 18 | B20: =$B$1*Tools!B19 -> 118.6776537 | C20: =$C$1*Tools!B19 -> 118.6776537 | D20: =$D$1*Tools!B19 -> 118.6776537
A21: =Tools!A20 -> Tool 19 | B21: =$B$1*Tools!B20 -> 116.5922224 | C21: =$C$1*Tools!B20 -> 116.5922224 | D21: =$D$1*Tools!B20 -> 116.5922224
A22: =Tools!A21 -> Tool 20 | B22: =$B$1*Tools!B21 -> 116.5922224 | C22: =$C$1*Tools!B21 -> 116.5922224 | D22: =$D$1*Tools!B21 -> 116.5922224

Sheet Tool time needed per product
A1: =Orders!A2 -> Product | B1: Tool | C1: UPH | D1: =Orders!B2 -> Week1 | E1: =Orders!C2 -> Week2 | F1: =Orders!D2 -> Week3
A2: =Orders!A3 -> AB0329160 | B2: =VLOOKUP(A2,'Product-tool'!A:E,2,0) -> Tool 10 | C2: =VLOOKUP(A2&B2,'Standard output'!A:D,4,0) -> 1553 | D2: =Orders!B3/$C2 -> 7.115260786 | E2: =Orders!C3/$C2 -> 7.533805538 | F2: =Orders!D3/$C2 -> 7.287701223
A3: =Orders!A4 -> AB0513704 | B3: =VLOOKUP(A3,'Product-tool'!A:E,2,0) -> Tool 10 | C3: =VLOOKUP(A3&B3,'Standard output'!A:D,4,0) -> 1646 | D3: =Orders!B4/$C3 -> 0.06555285541 | E3: =Orders!C4/$C3 -> 0.07660996355 | F3: =Orders!D4/$C3 -> 0.06634264885
A4: =Orders!A5 -> AB0635046 | B4: =VLOOKUP(A4,'Product-tool'!A:E,2,0) -> Tool 10 | C4: =VLOOKUP(A4&B4,'Standard output'!A:D,4,0) -> 1628 | D4: =Orders!B5/$C4 -> 2.016277641 | E4: =Orders!C5/$C4 -> 1.753562654 | F4: =Orders!D5/$C4 -> 1.770331695
A5: =Orders!A6 -> AB0975463 | B5: =VLOOKUP(A5,'Product-tool'!A:E,2,0) -> Tool 09 | C5: =VLOOKUP(A5&B5,'Standard output'!A:D,4,0) -> 491 | D5: =Orders!B6/$C5 -> 0.7042769857 | E5: =Orders!C6/$C5 -> 1.172912424 | F5: =Orders!D6/$C5 -> 0.8631364562
A6: =Orders!A7 -> AB1018910 | B6: =VLOOKUP(A6,'Product-tool'!A:E,2,0) -> Tool 10 | C6: =VLOOKUP(A6&B6,'Standard output'!A:D,4,0) -> 1608 | D6: =Orders!B7/$C6 -> 2.365547264 | E6: =Orders!C7/$C6 -> 1.96778607 | F6: =Orders!D7/$C6 -> 2.038930348
A7: =Orders!A8 -> AB1305109 | B7: =VLOOKUP(A7,'Product-tool'!A:E,2,0) -> Tool 04 | C7: =VLOOKUP(A7&B7,'Standard output'!A:D,4,0) -> 2272 | D7: =Orders!B8/$C7 -> 0.02345950704 | E7: =Orders!C8/$C7 -> 0.01945422535 | F7: =Orders!D8/$C7 -> 0.02002640845
A8: =Orders!A9 -> AB2092362 | B8: =VLOOKUP(A8,'Product-tool'!A:E,2,0) -> Tool 10 | C8: =VLOOKUP(A8&B8,'Standard output'!A:D,4,0) -> 1631 | D8: =Orders!B9/$C8 -> 7.050766401 | E8: =Orders!C9/$C8 -> 8.593868792 | F8: =Orders!D9/$C8 -> 7.261986511
A9: =Orders!A10 -> AB2569538 | B9: =VLOOKUP(A9,'Product-tool'!A:E,2,0) -> Tool 10 | C9: =VLOOKUP(A9&B9,'Standard output'!A:D,4,0) -> 1616 | D9: =Orders!B10/$C9 -> 1.811633663 | E9: =Orders!C10/$C9 -> 3.016707921 | F9: =Orders!D10/$C9 -> 2.217079208
A10: =Orders!A11 -> AB2665756 | B10: =VLOOKUP(A10,'Product-tool'!A:E,2,0) -> Tool 06 | C10: =VLOOKUP(A10&B10,'Standard output'!A:D,4,0) -> 5847 | D10: =Orders!B11/$C10 -> 0.03690781597 | E10: =Orders!C11/$C10 -> 0.04113220455 | F10: =Orders!D11/$C10 -> 0.03624080725
A11: =Orders!A12 -> AB3534415 | B11: =VLOOKUP(A11,'Product-tool'!A:E,2,0) -> Tool 05 | C11: =VLOOKUP(A11&B11,'Standard output'!A:D,4,0) -> 1214 | D11: =Orders!B12/$C11 -> 0.2677100494 | E11: =Orders!C12/$C11 -> 0.4197693575 | F11: =Orders!D12/$C11 -> 0.3158978583
A12: =Orders!A13 -> AB3839653 | B12: =VLOOKUP(A12,'Product-tool'!A:E,2,0) -> Tool 10 | C12: =VLOOKUP(A12&B12,'Standard output'!A:D,4,0) -> 1581 | D12: =Orders!B13/$C12 -> 1.918342821 | E12: =Orders!C13/$C12 -> 1.678241619 | F12: =Orders!D13/$C12 -> 1.688931056
A13: =Orders!A14 -> AB4133650 | B13: =VLOOKUP(A13,'Product-tool'!A:E,2,0) -> Tool 04 | C13: =VLOOKUP(A13&B13,'Standard output'!A:D,4,0) -> 2242 | D13: =Orders!B14/$C13 -> 0.1542372881 | E13: =Orders!C14/$C13 -> 0.1901873327 | F13: =Orders!D14/$C13 -> 0.1600356824
A14: =Orders!A15 -> AB4302436 | B14: =VLOOKUP(A14,'Product-tool'!A:E,2,0) -> Tool 10 | C14: =VLOOKUP(A14&B14,'Standard output'!A:D,4,0) -> 1560 | D14: =Orders!B15/$C14 -> 3.048333333 | E14: =Orders!C15/$C14 -> 3.306666667 | F14: =Orders!D15/$C14 -> 2.961666667
A15: =Orders!A16 -> AB4952945 | B15: =VLOOKUP(A15,'Product-tool'!A:E,2,0) -> Tool 16 | C15: =VLOOKUP(A15&B15,'Standard output'!A:D,4,0) -> 6802 | D15: =Orders!B16/$C15 -> 0.1286239341 | E15: =Orders!C16/$C15 -> 0.130726257 | F15: =Orders!D16/$C15 -> 0.121170244
A16: =Orders!A17 -> AB5677022 | B16: =VLOOKUP(A16,'Product-tool'!A:E,2,0) -> Tool 07 | C16: =VLOOKUP(A16&B16,'Standard output'!A:D,4,0) -> 6488 | D16: =Orders!B17/$C16 -> 2.756689273 | E16: =Orders!C17/$C16 -> 2.276803329 | F16: =Orders!D17/$C16 -> 2.36837238
A17: =Orders!A18 -> AB617476 | B17: =VLOOKUP(A17,'Product-tool'!A:E,2,0) -> Tool 18 | C17: =VLOOKUP(A17&B17,'Standard output'!A:D,4,0) -> 2875 | D17: =Orders!B18/$C17 -> 0.007234782609 | E17: =Orders!C18/$C17 -> 0.01130434783 | F17: =Orders!D18/$C17 -> 0.008591304348
A18: =Orders!A19 -> AB6803301 | B18: =VLOOKUP(A18,'Product-tool'!A:E,2,0) -> Tool 04 | C18: =VLOOKUP(A18&B18,'Standard output'!A:D,4,0) -> 2277 | D18: =Orders!B19/$C18 -> 0.1472990777 | E18: =Orders!C19/$C18 -> 0.2420729029 | F18: =Orders!D19/$C18 -> 0.1787000439
A19: =Orders!A20 -> AB6883086 | B19: =VLOOKUP(A19,'Product-tool'!A:E,2,0) -> Tool 09 | C19: =VLOOKUP(A19&B19,'Standard output'!A:D,4,0) -> 554 | D19: =Orders!B20/$C19 -> 0.171299639 | E19: =Orders!C20/$C19 -> 0.2839350181 | F19: =Orders!D20/$C19 -> 0.2111913357
A20: =Orders!A21 -> AF2334989 | B20: =VLOOKUP(A20,'Product-tool'!A:E,2,0) -> Tool 17 | C20: =VLOOKUP(A20&B20,'Standard output'!A:D,4,0) -> 6837 | D20: =Orders!B21/$C20 -> 23.00716689 | E20: =Orders!C21/$C20 -> 32.43516162 | F20: =Orders!D21/$C20 -> 24.85059237
A21: =Orders!A22 -> AF2797300 | B21: =VLOOKUP(A21,'Product-tool'!A:E,2,0) -> Tool 09 | C21: =VLOOKUP(A21&B21,'Standard output'!A:D,4,0) -> 538 | D21: =Orders!B22/$C21 -> 0.4204460967 | E21: =Orders!C22/$C21 -> 0.3914498141 | F21: =Orders!D22/$C21 -> 0.3817843866
A22: =Orders!A23 -> AF4224863 | B22: =VLOOKUP(A22,'Product-tool'!A:E,2,0) -> Tool 09 | C22: =VLOOKUP(A22&B22,'Standard output'!A:D,4,0) -> 579 | D22: =Orders!B23/$C22 -> 6.327115717 | E22: =Orders!C23/$C22 -> 8.844041451 | F22: =Orders!D23/$C22 -> 7.009671848
A23: =Orders!A24 -> AF4955974 | B23: =VLOOKUP(A23,'Product-tool'!A:E,2,0) -> Tool 09 | C23: =VLOOKUP(A23&B23,'Standard output'!A:D,4,0) -> 505 | D23: =Orders!B24/$C23 -> 14.37465347 | E23: =Orders!C24/$C23 -> 19.07267327 | F23: =Orders!D24/$C23 -> 15.4790099
A24: =Orders!A25 -> AF5847200 | B24: =VLOOKUP(A24,'Product-tool'!A:E,2,0) -> Tool 15 | C24: =VLOOKUP(A24&B24,'Standard output'!A:D,4,0) -> 4457 | D24: =Orders!B25/$C24 -> 0.0898362127 | E24: =Orders!C25/$C24 -> 0.1085034777 | F24: =Orders!D25/$C24 -> 0.09216962082
A25: =Orders!A26 -> AL1492544 | B25: =VLOOKUP(A25,'Product-tool'!A:E,2,0) -> Tool 06 | C25: =VLOOKUP(A25&B25,'Standard output'!A:D,4,0) -> 5884 | D25: =Orders!B26/$C25 -> 4.944816451 | E25: =Orders!C26/$C25 -> 8.435418083 | F25: =Orders!D26/$C25 -> 6.140091774
A26: =Orders!A27 -> AL2661736 | B26: =VLOOKUP(A26,'Product-tool'!A:E,2,0) -> Tool 15 | C26: =VLOOKUP(A26&B26,'Standard output'!A:D,4,0) -> 4446 | D26: =Orders!B27/$C26 -> 0.08450292398 | E26: =Orders!C27/$C26 -> 0.09415204678 | F26: =Orders!D27/$C26 -> 0.08333333333
A27: =Orders!A28 -> AO0324556 | B27: =VLOOKUP(A27,'Product-tool'!A:E,2,0) -> Tool 16 | C27: =VLOOKUP(A27&B27,'Standard output'!A:D,4,0) -> 6866 | D27: =Orders!B28/$C27 -> 0.008330905913 | E27: =Orders!C28/$C27 -> 0.004733469269 | F27: =Orders!D28/$C27 -> 0.006248179435
A28: =Orders!A29 -> AO0414069 | B28: =VLOOKUP(A28,'Product-tool'!A:E,2,0) -> Tool 02 | C28: =VLOOKUP(A28&B28,'Standard output'!A:D,4,0) -> 2673 | D28: =Orders!B29/$C28 -> 0.1133183689 | E28: =Orders!C29/$C28 -> 0.09532360643 | F28: =Orders!D29/$C28 -> 0.09824167602
A29: =Orders!A30 -> AO2105290 | B29: =VLOOKUP(A29,'Product-tool'!A:E,2,0) -> Tool 15 | C29: =VLOOKUP(A29&B29,'Standard output'!A:D,4,0) -> 4418 | D29: =Orders!B30/$C29 -> 0.8439112721 | E29: =Orders!C30/$C29 -> 0.5387732005 | F29: =Orders!D30/$C29 -> 0.6561792666
A30: =Orders!A31 -> AO4874959 | B30: =VLOOKUP(A30,'Product-tool'!A:E,2,0) -> Tool 18 | C30: =VLOOKUP(A30&B30,'Standard output'!A:D,4,0) -> 2881 | D30: =Orders!B31/$C30 -> 0.9796251302 | E30: =Orders!C31/$C30 -> 1.352794169 | F30: =Orders!D31/$C30 -> 1.077993752
A31: =Orders!A32 -> AO5342652 | B31: =VLOOKUP(A31,'Product-tool'!A:E,2,0) -> Tool 07 | C31: =VLOOKUP(A31&B31,'Standard output'!A:D,4,0) -> 6408 | D31: =Orders!B32/$C31 -> 0.1797440699 | E31: =Orders!C32/$C31 -> 0.1129993758 | F31: =Orders!D32/$C31 -> 0.1389669164
A32: =Orders!A33 -> AO5834357 | B32: =VLOOKUP(A32,'Product-tool'!A:E,2,0) -> Tool 15 | C32: =VLOOKUP(A32&B32,'Standard output'!A:D,4,0) -> 4429 | D32: =Orders!B33/$C32 -> 0.828606909 | E32: =Orders!C33/$C32 -> 0.6856626778 | F32: =Orders!D33/$C32 -> 0.7126665161
A33: =Orders!A34 -> AO8517171 | B33: =VLOOKUP(A33,'Product-tool'!A:E,2,0) -> Tool 14 | C33: =VLOOKUP(A33&B33,'Standard output'!A:D,4,0) -> 2377 | D33: =Orders!B34/$C33 -> 0.008750525873 | E33: =Orders!C34/$C33 -> 0.01093815734 | F33: =Orders!D34/$C33 -> 0.00929743374
A34: =Orders!A35 -> AO855133 | B34: =VLOOKUP(A34,'Product-tool'!A:E,2,0) -> Tool 07 | C34: =VLOOKUP(A34&B34,'Standard output'!A:D,4,0) -> 6471 | D34: =Orders!B35/$C34 -> 0.2067222995 | E34: =Orders!C35/$C34 -> 0.2006954103 | F34: =Orders!D35/$C34 -> 0.190650595
A35: =Orders!A36 -> AP0171319 | B35: =VLOOKUP(A35,'Product-tool'!A:E,2,0) -> Tool 07 | C35: =VLOOKUP(A35&B35,'Standard output'!A:D,4,0) -> 6492 | D35: =Orders!B36/$C35 -> 0.2048521257 | E35: =Orders!C36/$C35 -> 0.2330868762 | F35: =Orders!D36/$C35 -> 0.2038508934
A36: =Orders!A37 -> AP0202155 | B36: =VLOOKUP(A36,'Product-tool'!A:E,2,0) -> Tool 15 | C36: =VLOOKUP(A36&B36,'Standard output'!A:D,4,0) -> 4426 | D36: =Orders!B37/$C36 -> 1.621328513 | E36: =Orders!C37/$C36 -> 1.720899232 | F36: =Orders!D37/$C36 -> 1.559060099
A37: =Orders!A38 -> AP086256 | B37: =VLOOKUP(A37,'Product-tool'!A:E,2,0) -> Tool 07 | C37: =VLOOKUP(A37&B37,'Standard output'!A:D,4,0) -> 6448 | D37: =Orders!B38/$C37 -> 0.001612903226 | E37: =Orders!C38/$C37 -> 0.002419354839 | F37: =Orders!D38/$C37 -> 0.001814516129
A38: =Orders!A39 -> AP242884 | B38: =VLOOKUP(A38,'Product-tool'!A:E,2,0) -> Tool 16 | C38: =VLOOKUP(A38&B38,'Standard output'!A:D,4,0) -> 6871 | D38: =Orders!B39/$C38 -> 1.005035657 | E38: =Orders!C39/$C38 -> 1.297161985 | F38: =Orders!D39/$C38 -> 1.066525979
A39: =Orders!A40 -> AP3078837 | B39: =VLOOKUP(A39,'Product-tool'!A:E,2,0) -> Tool 07 | C39: =VLOOKUP(A39&B39,'Standard output'!A:D,4,0) -> 6438 | D39: =Orders!B40/$C39 -> 0.132665424 | E39: =Orders!C40/$C39 -> 0.09934762349 | F39: =Orders!D40/$C39 -> 0.1096458527
A40: =Orders!A41 -> AP352983 | B40: =VLOOKUP(A40,'Product-tool'!A:E,2,0) -> Tool 17 | C40: =VLOOKUP(A40&B40,'Standard output'!A:D,4,0) -> 6884 | D40: =Orders!B41/$C40 -> 1.153457292 | E40: =Orders!C41/$C40 -> 0.9912405578 | F40: =Orders!D41/$C40 -> 1.007669959
A41: =Orders!A42 -> AP3728500 | B41: =VLOOKUP(A41,'Product-tool'!A:E,2,0) -> Tool 02 | C41: =VLOOKUP(A41&B41,'Standard output'!A:D,4,0) -> 2647 | D41: =Orders!B42/$C41 -> 0.9071023801 | E41: =Orders!C42/$C41 -> 0.5476010578 | F41: =Orders!D42/$C41 -> 0.6919909331
A42: =Orders!A43 -> AP3951566 | B42: =VLOOKUP(A42,'Product-tool'!A:E,2,0) -> Tool 02 | C42: =VLOOKUP(A42&B42,'Standard output'!A:D,4,0) -> 2668 | D42: =Orders!B43/$C42 -> 0.4872563718 | E42: =Orders!C43/$C42 -> 0.3327961019 | F42: =Orders!D43/$C42 -> 0.3883433283
A43: =Orders!A44 -> AP4223947 | B43: =VLOOKUP(A43,'Product-tool'!A:E,2,0) -> Tool 02 | C43: =VLOOKUP(A43&B43,'Standard output'!A:D,4,0) -> 2623 | D43: =Orders!B44/$C43 -> 0.717651544 | E43: =Orders!C44/$C43 -> 0.4663743805 | F43: =Orders!D44/$C43 -> 0.5615325963
A44: =Orders!A45 -> AP4745289 | B44: =VLOOKUP(A44,'Product-tool'!A:E,2,0) -> Tool 02 | C44: =VLOOKUP(A44&B44,'Standard output'!A:D,4,0) -> 2609 | D44: =Orders!B45/$C44 -> 0.03288616328 | E44: =Orders!C45/$C44 -> 0.05431199693 | F44: =Orders!D45/$C44 -> 0.0398620161
A45: =Orders!A46 -> AP4972828 | B45: =VLOOKUP(A45,'Product-tool'!A:E,2,0) -> Tool 07 | C45: =VLOOKUP(A45&B45,'Standard output'!A:D,4,0) -> 6498 | D45: =Orders!B46/$C45 -> 0.001600492459 | E45: =Orders!C46/$C45 -> 0.002000615574 | F45: =Orders!D46/$C45 -> 0.001600492459
A46: =Orders!A47 -> AP5614262 | B46: =VLOOKUP(A46,'Product-tool'!A:E,2,0) -> Tool 07 | C46: =VLOOKUP(A46&B46,'Standard output'!A:D,4,0) -> 6484 | D46: =Orders!B47/$C46 -> 0.009824182603 | E46: =Orders!C47/$C46 -> 0.007418260333 | F46: =Orders!D47/$C46 -> 0.008220234423
A47: =Orders!A48 -> AP5647883 | B47: =VLOOKUP(A47,'Product-tool'!A:E,2,0) -> Tool 15 | C47: =VLOOKUP(A47&B47,'Standard output'!A:D,4,0) -> 4419 | D47: =Orders!B48/$C47 -> 1.525639285 | E47: =Orders!C48/$C47 -> 1.755985517 | F47: =Orders!D48/$C47 -> 1.526521838
A48: =Orders!A49 -> AP5897782 | B48: =VLOOKUP(A48,'Product-tool'!A:E,2,0) -> Tool 07 | C48: =VLOOKUP(A48&B48,'Standard output'!A:D,4,0) -> 6452 | D48: =Orders!B49/$C48 -> 0.03364848109 | E48: =Orders!C49/$C48 -> 0.02478301302 | F48: =Orders!D49/$C48 -> 0.02760384377
A49: =Orders!A50 -> AP853615 | B49: =VLOOKUP(A49,'Product-tool'!A:E,2,0) -> Tool 13 | C49: =VLOOKUP(A49&B49,'Standard output'!A:D,4,0) -> 2423 | D49: =Orders!B50/$C49 -> 0.2687990095 | E49: =Orders!C50/$C49 -> 0.3583986793 | F49: =Orders!D50/$C49 -> 0.2902600083
A50: =Orders!A51 -> AS0105077 | B50: =VLOOKUP(A50,'Product-tool'!A:E,2,0) -> Tool 12 | C50: =VLOOKUP(A50&B50,'Standard output'!A:D,4,0) -> 4006 | D50: =Orders!B51/$C50 -> 0.6727159261 | E50: =Orders!C51/$C50 -> 0.7531952072 | F50: =Orders!D51/$C50 -> 0.6639540689
A51: =Orders!A52 -> AS0125536 | B51: =VLOOKUP(A51,'Product-tool'!A:E,2,0) -> Tool 05 | C51: =VLOOKUP(A51&B51,'Standard output'!A:D,4,0) -> 1237 | D51: =Orders!B52/$C51 -> 62.83823767 | E51: =Orders!C52/$C51 -> 58.33500404 | F51: =Orders!D52/$C51 -> 56.78278092
A52: =Orders!A53 -> AS0888075 | B52: =VLOOKUP(A52,'Product-tool'!A:E,2,0) -> Tool 13 | C52: =VLOOKUP(A52&B52,'Standard output'!A:D,4,0) -> 2458 | D52: =Orders!B53/$C52 -> 2.136696501 | E52: =Orders!C53/$C52 -> 1.353417413 | F52: =Orders!D53/$C52 -> 1.656997559
A53: =Orders!A54 -> AS1143091 | B53: =VLOOKUP(A53,'Product-tool'!A:E,2,0) -> Tool 05 | C53: =VLOOKUP(A53&B53,'Standard output'!A:D,4,0) -> 1269 | D53: =Orders!B54/$C53 -> 7.836879433 | E53: =Orders!C54/$C53 -> 9.150197006 | F53: =Orders!D54/$C53 -> 7.896296296
A54: =Orders!A55 -> AS5378181 | B54: =VLOOKUP(A54,'Product-tool'!A:E,2,0) -> Tool 13 | C54: =VLOOKUP(A54&B54,'Standard output'!A:D,4,0) -> 2493 | D54: =Orders!B55/$C54 -> 0.2320497393 | E54: =Orders!C55/$C54 -> 0.3749298034 | F54: =Orders!D55/$C54 -> 0.2795026073
A55: =Orders!A56 -> AS6815735 | B55: =VLOOKUP(A55,'Product-tool'!A:E,2,0) -> Tool 06 | C55: =VLOOKUP(A55&B55,'Standard output'!A:D,4,0) -> 5827 | D55: =Orders!B56/$C55 -> 2.585052343 | E55: =Orders!C56/$C55 -> 3.292946628 | F55: =Orders!D56/$C55 -> 2.724266346
A56: =Orders!A57 -> BC1086722 | B56: =VLOOKUP(A56,'Product-tool'!A:E,2,0) -> Tool 06 | C56: =VLOOKUP(A56&B56,'Standard output'!A:D,4,0) -> 5805 | D56: =Orders!B57/$C56 -> 0.186546081 | E56: =Orders!C57/$C56 -> 0.2440999139 | F56: =Orders!D57/$C56 -> 0.1995348837
A57: =Orders!A58 -> BC1381899 | B57: =VLOOKUP(A57,'Product-tool'!A:E,2,0) -> Tool 06 | C57: =VLOOKUP(A57&B57,'Standard output'!A:D,4,0) -> 5808 | D57: =Orders!B58/$C57 -> 0.1864497245 | E57: =Orders!C58/$C57 -> 0.2952307163 | F57: =Orders!D58/$C57 -> 0.2215909091
A58: =Orders!A59 -> BC1638233 | B58: =VLOOKUP(A58,'Product-tool'!A:E,2,0) -> Tool 06 | C58: =VLOOKUP(A58&B58,'Standard output'!A:D,4,0) -> 5837 | D58: =Orders!B59/$C58 -> 0.07817371938 | E58: =Orders!C59/$C58 -> 0.1222717149 | F58: =Orders!D59/$C58 -> 0.09242761693
A59: =Orders!A60 -> BC2465775 | B59: =VLOOKUP(A59,'Product-tool'!A:E,2,0) -> Tool 06 | C59: =VLOOKUP(A59&B59,'Standard output'!A:D,4,0) -> 5873 | D59: =Orders!B60/$C59 -> 0.5035756853 | E59: =Orders!C60/$C59 -> 0.6627277371 | F59: =Orders!D60/$C59 -> 0.5398774051
A60: =Orders!A61 -> BC2509115 | B60: =VLOOKUP(A60,'Product-tool'!A:E,2,0) -> Tool 06 | C60: =VLOOKUP(A60&B60,'Standard output'!A:D,4,0) -> 5828 | D60: =Orders!B61/$C60 -> 1.484694578 | E60: =Orders!C61/$C60 -> 1.793188058 | F60: =Orders!D61/$C60 -> 1.52216884
A61: =Orders!A62 -> BC2965316 | B61: =VLOOKUP(A61,'Product-tool'!A:E,2,0) -> Tool 06 | C61: =VLOOKUP(A61&B61,'Standard output'!A:D,4,0) -> 5864 | D61: =Orders!B62/$C61 -> 0.07382332879 | E61: =Orders!C62/$C61 -> 0.1217087312 | F61: =Orders!D62/$C61 -> 0.0897851296
A62: =Orders!A63 -> BC3857293 | B62: =VLOOKUP(A62,'Product-tool'!A:E,2,0) -> Tool 15 | C62: =VLOOKUP(A62&B62,'Standard output'!A:D,4,0) -> 4476 | D62: =Orders!B63/$C62 -> 0.08190348525 | E62: =Orders!C63/$C62 -> 0.08713136729 | F62: =Orders!D63/$C62 -> 0.07870866845
A63: =Orders!A64 -> BC5752252 | B63: =VLOOKUP(A63,'Product-tool'!A:E,2,0) -> Tool 06 | C63: =VLOOKUP(A63&B63,'Standard output'!A:D,4,0) -> 5843 | D63: =Orders!B64/$C63 -> 0.008899537909 | E63: =Orders!C64/$C63 -> 0.01067944549 | F63: =Orders!D64/$C63 -> 0.009122026356
A64: =Orders!A65 -> BC6306450 | B64: =VLOOKUP(A64,'Product-tool'!A:E,2,0) -> Tool 05 | C64: =VLOOKUP(A64&B64,'Standard output'!A:D,4,0) -> 1249 | D64: =Orders!B65/$C64 -> 3.833386709 | E64: =Orders!C65/$C64 -> 2.618734988 | F64: =Orders!D65/$C64 -> 3.055884708
A65: =Orders!A66 -> CC0084549 | B65: =VLOOKUP(A65,'Product-tool'!A:E,2,0) -> Tool 12 | C65: =VLOOKUP(A65&B65,'Standard output'!A:D,4,0) -> 4031 | D65: =Orders!B66/$C65 -> 2.362962044 | E65: =Orders!C66/$C65 -> 1.583478045 | F65: =Orders!D66/$C65 -> 1.869858596
A66: =Orders!A67 -> CC0189122 | B66: =VLOOKUP(A66,'Product-tool'!A:E,2,0) -> Tool 20 | C66: =VLOOKUP(A66&B66,'Standard output'!A:D,4,0) -> 7862.642235 | D66: =Orders!B67/$C66 -> 0.5952197569 | E66: =Orders!C67/$C66 -> 0.7050047343 | F66: =Orders!D67/$C66 -> 0.6041480533
A67: =Orders!A68 -> CC0921636 | B67: =VLOOKUP(A67,'Product-tool'!A:E,2,0) -> Tool 20 | C67: =VLOOKUP(A67&B67,'Standard output'!A:D,4,0) -> 7933.642235 | D67: =Orders!B68/$C67 -> 3.74483738 | E67: =Orders!C68/$C67 -> 2.77233323 | F67: =Orders!D68/$C67 -> 3.077930574
A68: =Orders!A69 -> CC092903 | B68: =VLOOKUP(A68,'Product-tool'!A:E,2,0) -> Tool 20 | C68: =VLOOKUP(A68&B68,'Standard output'!A:D,4,0) -> 7930.642235 | D68: =Orders!B69/$C68 -> 0.001311369205 | E68: =Orders!C69/$C68 -> 0.002130974958 | F68: =Orders!D69/$C68 -> 0.001639211506
A69: =Orders!A70 -> CC2454697 | B69: =VLOOKUP(A69,'Product-tool'!A:E,2,0) -> Tool 20 | C69: =VLOOKUP(A69&B69,'Standard output'!A:D,4,0) -> 7849.642235 | D69: =Orders!B70/$C69 -> 0.7399572906 | E69: =Orders!C70/$C69 -> 0.5605987978 | F69: =Orders!D70/$C69 -> 0.6137604563
A70: =Orders!A71 -> CC2566445 | B70: =VLOOKUP(A70,'Product-tool'!A:E,2,0) -> Tool 15 | C70: =VLOOKUP(A70&B70,'Standard output'!A:D,4,0) -> 4481 | D70: =Orders!B71/$C70 -> 3.76915867 | E70: =Orders!C71/$C70 -> 3.811515287 | F70: =Orders!D71/$C70 -> 3.54170944
A71: =Orders!A72 -> CC2575 | B71: =VLOOKUP(A71,'Product-tool'!A:E,2,0) -> Tool 19 | C71: =VLOOKUP(A71&B71,'Standard output'!A:D,4,0) -> 10239 | D71: =Orders!B72/$C71 -> 6.118595566 | E71: =Orders!C72/$C71 -> 7.920744213 | F71: =Orders!D72/$C71 -> 6.503174138
A72: =Orders!A73 -> CC2936183 | B72: =VLOOKUP(A72,'Product-tool'!A:E,2,0) -> Tool 20 | C72: =VLOOKUP(A72&B72,'Standard output'!A:D,4,0) -> 7918.642235 | D72: =Orders!B73/$C72 -> 0.4925086756 | E72: =Orders!C73/$C72 -> 0.4061554878 | F72: =Orders!D73/$C72 -> 0.4229007828
A73: =Orders!A74 -> CC2965217 | B73: =VLOOKUP(A73,'Product-tool'!A:E,2,0) -> Tool 20 | C73: =VLOOKUP(A73&B73,'Standard output'!A:D,4,0) -> 7927.642235 | D73: =Orders!B74/$C73 -> 3.695361008 | E73: =Orders!C74/$C73 -> 4.404260304 | F73: =Orders!D74/$C73 -> 3.762594113
A74: =Orders!A75 -> CC3609599 | B74: =VLOOKUP(A74,'Product-tool'!A:E,2,0) -> Tool 04 | C74: =VLOOKUP(A74&B74,'Standard output'!A:D,4,0) -> 2235 | D74: =Orders!B75/$C74 -> 8.445637584 | E74: =Orders!C75/$C74 -> 17.15592841 | F74: =Orders!D75/$C74 -> 9.608948546
A75: =Orders!A76 -> CC3979402 | B75: =VLOOKUP(A75,'Product-tool'!A:E,2,0) -> Tool 13 | C75: =VLOOKUP(A75&B75,'Standard output'!A:D,4,0) -> 2458 | D75: =Orders!B76/$C75 -> 1.588771359 | E75: =Orders!C76/$C75 -> 1.734743694 | F75: =Orders!D76/$C75 -> 1.548576078
A76: =Orders!A77 -> CC4329116 | B76: =VLOOKUP(A76,'Product-tool'!A:E,2,0) -> Tool 19 | C76: =VLOOKUP(A76&B76,'Standard output'!A:D,4,0) -> 10217 | D76: =Orders!B77/$C76 -> 11.45353822 | E76: =Orders!C77/$C76 -> 8.679348145 | F76: =Orders!D77/$C76 -> 9.500420867
A77: =Orders!A78 -> CC4618183 | B77: =VLOOKUP(A77,'Product-tool'!A:E,2,0) -> Tool 18 | C77: =VLOOKUP(A77&B77,'Standard output'!A:D,4,0) -> 2806 | D77: =Orders!B78/$C77 -> 45.34803991 | E77: =Orders!C78/$C77 -> 71.87851033 | F77: =Orders!D78/$C77 -> 53.92544547
A78: =Orders!A79 -> CC4774419 | B78: =VLOOKUP(A78,'Product-tool'!A:E,2,0) -> Tool 12 | C78: =VLOOKUP(A78&B78,'Standard output'!A:D,4,0) -> 4021 | D78: =Orders!B79/$C78 -> 0.3368813728 | E78: =Orders!C79/$C78 -> 0.3549863218 | F78: =Orders!D79/$C78 -> 0.3229793584
A79: =Orders!A80 -> CC4941594 | B79: =VLOOKUP(A79,'Product-tool'!A:E,2,0) -> Tool 13 | C79: =VLOOKUP(A79&B79,'Standard output'!A:D,4,0) -> 2438 | D79: =Orders!B80/$C79 -> 0.7107875308 | E79: =Orders!C80/$C79 -> 0.5641509434 | F79: =Orders!D80/$C79 -> 0.6009433962
A80: =Orders!A81 -> CC4945569 | B80: =VLOOKUP(A80,'Product-tool'!A:E,2,0) -> Tool 04 | C80: =VLOOKUP(A80&B80,'Standard output'!A:D,4,0) -> 2261 | D80: =Orders!B81/$C80 -> 22.03560372 | E80: =Orders!C81/$C80 -> 28.94268023 | F80: =Orders!D81/$C80 -> 23.60181336
A81: =Orders!A82 -> CC5387633 | B81: =VLOOKUP(A81,'Product-tool'!A:E,2,0) -> Tool 04 | C81: =VLOOKUP(A81&B81,'Standard output'!A:D,4,0) -> 2248 | D81: =Orders!B82/$C81 -> 6.847553381 | E81: =Orders!C82/$C81 -> 5.338211744 | F81: =Orders!D82/$C81 -> 5.74475089
A82: =Orders!A83 -> CC5505924 | B82: =VLOOKUP(A82,'Product-tool'!A:E,2,0) -> Tool 19 | C82: =VLOOKUP(A82&B82,'Standard output'!A:D,4,0) -> 10196 | D82: =Orders!B83/$C82 -> 0.007395056885 | E82: =Orders!C83/$C82 -> 0.01045508042 | F82: =Orders!D83/$C82 -> 0.00828756375
A83: =Orders!A84 -> CC5603244 | B83: =VLOOKUP(A83,'Product-tool'!A:E,2,0) -> Tool 12 | C83: =VLOOKUP(A83&B83,'Standard output'!A:D,4,0) -> 4024 | D83: =Orders!B84/$C83 -> 0.5815109344 | E83: =Orders!C84/$C83 -> 0.8260685885 | F83: =Orders!D84/$C83 -> 0.65
A84: =Orders!A85 -> CC5605066 | B84: =VLOOKUP(A84,'Product-tool'!A:E,2,0) -> Tool 08 | C84: =VLOOKUP(A84&B84,'Standard output'!A:D,4,0) -> 3943 | D84: =Orders!B85/$C84 -> 13.86446868 | E84: =Orders!C85/$C84 -> 16.75526249 | F84: =Orders!D85/$C84 -> 12.92351002
A85: =Orders!A86 -> CC5646794 | B85: =VLOOKUP(A85,'Product-tool'!A:E,2,0) -> Tool 20 | C85: =VLOOKUP(A85&B85,'Standard output'!A:D,4,0) -> 7897.642235 | D85: =Orders!B86/$C85 -> 0.2742337441 | E85: =Orders!C86/$C85 -> 0.2077328842 | F85: =Orders!D86/$C85 -> 0.2274856149
A86: =Orders!A87 -> CC5671451 | B86: =VLOOKUP(A86,'Product-tool'!A:E,2,0) -> Tool 19 | C86: =VLOOKUP(A86&B86,'Standard output'!A:D,4,0) -> 10198 | D86: =Orders!B87/$C86 -> 0.2708864483 | E86: =Orders!C87/$C86 -> 0.2888605609 | F86: =Orders!D87/$C86 -> 0.2610707982
A87: =Orders!A88 -> CC5798817 | B87: =VLOOKUP(A87,'Product-tool'!A:E,2,0) -> Tool 20 | C87: =VLOOKUP(A87&B87,'Standard output'!A:D,4,0) -> 7915.642235 | D87: =Orders!B88/$C87 -> 1.089349385 | E87: =Orders!C88/$C87 -> 0.7295175589 | F87: =Orders!D88/$C87 -> 0.8618883721
A88: =Orders!A89 -> CC5805891 | B88: =VLOOKUP(A88,'Product-tool'!A:E,2,0) -> Tool 04 | C88: =VLOOKUP(A88&B88,'Standard output'!A:D,4,0) -> 2308 | D88: =Orders!B89/$C88 -> 1.314081456 | E88: =Orders!C89/$C88 -> 0.8234835355 | F88: =Orders!D89/$C88 -> 1.014991334
A89: =Orders!A90 -> CC5803851 | B89: =VLOOKUP(A89,'Product-tool'!A:E,2,0) -> Tool 20 | C89: =VLOOKUP(A89&B89,'Standard output'!A:D,4,0) -> 7859.642235 | D89: =Orders!B90/$C89 -> 1.866395386 | E89: =Orders!C90/$C89 -> 3.161657905 | F89: =Orders!D90/$C89 -> 2.307853139
A90: =Orders!A91 -> CC5835642 | B90: =VLOOKUP(A90,'Product-tool'!A:E,2,0) -> Tool 12 | C90: =VLOOKUP(A90&B90,'Standard output'!A:D,4,0) -> 4039 | D90: =Orders!B91/$C90 -> 0.002574894776 | E90: =Orders!C91/$C90 -> 0.001609309235 | F90: =Orders!D91/$C90 -> 0.002253032929
A91: =Orders!A92 -> CC5844379 | B91: =VLOOKUP(A91,'Product-tool'!A:E,2,0) -> Tool 13 | C91: =VLOOKUP(A91&B91,'Standard output'!A:D,4,0) -> 2483 | D91: =Orders!B92/$C91 -> 4.461256545 | E91: =Orders!C92/$C91 -> 3.239790576 | F91: =Orders!D92/$C91 -> 3.639267016
A92: =Orders!A93 -> CC5859307 | B92: =VLOOKUP(A92,'Product-tool'!A:E,2,0) -> Tool 15 | C92: =VLOOKUP(A92&B92,'Standard output'!A:D,4,0) -> 4481 | D92: =Orders!B93/$C92 -> 0.1351930373 | E92: =Orders!C93/$C92 -> 0.1296808748 | F92: =Orders!D93/$C92 -> 0.1241687123
A93: =Orders!A94 -> CC5877145 | B93: =VLOOKUP(A93,'Product-tool'!A:E,2,0) -> Tool 12 | C93: =VLOOKUP(A93&B93,'Standard output'!A:D,4,0) -> 4037 | D93: =Orders!B94/$C93 -> 0.4150854595 | E93: =Orders!C94/$C93 -> 0.586722814 | F93: =Orders!D94/$C93 -> 0.4627446123
A94: =Orders!A95 -> CC5872620 | B94: =VLOOKUP(A94,'Product-tool'!A:E,2,0) -> Tool 19 | C94: =VLOOKUP(A94&B94,'Standard output'!A:D,4,0) -> 10241 | D94: =Orders!B95/$C94 -> 9.292315204 | E94: =Orders!C95/$C94 -> 14.11200078 | F94: =Orders!D95/$C94 -> 10.78183771
A95: =Orders!A96 -> CC5949597 | B95: =VLOOKUP(A95,'Product-tool'!A:E,2,0) -> Tool 15 | C95: =VLOOKUP(A95&B95,'Standard output'!A:D,4,0) -> 4434 | D95: =Orders!B96/$C95 -> 2.671538115 | E95: =Orders!C96/$C95 -> 2.975281912 | F95: =Orders!D96/$C95 -> 2.629318899
A96: =Orders!A97 -> CC5951749 | B96: =VLOOKUP(A96,'Product-tool'!A:E,2,0) -> Tool 19 | C96: =VLOOKUP(A96&B96,'Standard output'!A:D,4,0) -> 10212 | D96: =Orders!B97/$C96 -> 0.01260282021 | E96: =Orders!C97/$C96 -> 0.01387583235 | F96: =Orders!D97/$C96 -> 0.01234821778
A97: =Orders!A98 -> CC6069687 | B97: =VLOOKUP(A97,'Product-tool'!A:E,2,0) -> Tool 04 | C97: =VLOOKUP(A97&B97,'Standard output'!A:D,4,0) -> 2315 | D97: =Orders!B98/$C97 -> 0.07468682505 | E97: =Orders!C98/$C97 -> 0.1235421166 | F97: =Orders!D98/$C97 -> 0.09153347732
A98: =Orders!A99 -> CC6146771 | B98: =VLOOKUP(A98,'Product-tool'!A:E,2,0) -> Tool 19 | C98: =VLOOKUP(A98&B98,'Standard output'!A:D,4,0) -> 10189 | D98: =Orders!B99/$C98 -> 0.2822259299 | E98: =Orders!C99/$C98 -> 0.2974089705 | F98: =Orders!D99/$C98 -> 0.2703601924
A99: =Orders!A100 -> CC642531 | B99: =VLOOKUP(A99,'Product-tool'!A:E,2,0) -> Tool 19 | C99: =VLOOKUP(A99&B99,'Standard output'!A:D,4,0) -> 10186 | D99: =Orders!B100/$C99 -> 0.1360494797 | E99: =Orders!C100/$C99 -> 0.09278421363 | F99: =Orders!D100/$C99 -> 0.1083546044
A100: =Orders!A101 -> CC6514546 | B100: =VLOOKUP(A100,'Product-tool'!A:E,2,0) -> Tool 15 | C100: =VLOOKUP(A100&B100,'Standard output'!A:D,4,0) -> 4404 | D100: =Orders!B101/$C100 -> 0.02450045413 | E100: =Orders!C101/$C100 -> 0.0366030881 | F100: =Orders!D101/$C100 -> 0.02804268847
A101: =Orders!A102 -> CL1528731 | B101: =VLOOKUP(A101,'Product-tool'!A:E,2,0) -> Tool 15 | C101: =VLOOKUP(A101&B101,'Standard output'!A:D,4,0) -> 4477 | D101: =Orders!B102/$C101 -> 1.199530936 | E101: =Orders!C102/$C101 -> 1.42602189 | F101: =Orders!D102/$C101 -> 1.219857047
A102: =Orders!A103 -> CL4179003 | B102: =VLOOKUP(A102,'Product-tool'!A:E,2,0) -> Tool 08 | C102: =VLOOKUP(A102&B102,'Standard output'!A:D,4,0) -> 4001 | D102: =Orders!B103/$C102 -> 5.220144964 | E102: =Orders!C103/$C102 -> 6.836940765 | F102: =Orders!D103/$C102 -> 5.720194951
A103: =Orders!A104 -> CM2146129 | B103: =VLOOKUP(A103,'Product-tool'!A:E,2,0) -> Tool 08 | C103: =VLOOKUP(A103&B103,'Standard output'!A:D,4,0) -> 3935 | D103: =Orders!B104/$C103 -> 0.4222109276 | E103: =Orders!C104/$C103 -> 0.6752731893 | F103: =Orders!D104/$C103 -> 0.5048030496
A104: =Orders!A105 -> CM2144500 | B104: =VLOOKUP(A104,'Product-tool'!A:E,2,0) -> Tool 08 | C104: =VLOOKUP(A104&B104,'Standard output'!A:D,4,0) -> 3949 | D104: =Orders!B105/$C104 -> 1.755609015 | E104: =Orders!C105/$C104 -> 2.800151937 | F104: =Orders!D105/$C104 -> 2.095340593
A105: =Orders!A106 -> CM2364748 | B105: =VLOOKUP(A105,'Product-tool'!A:E,2,0) -> Tool 04 | C105: =VLOOKUP(A105&B105,'Standard output'!A:D,4,0) -> 2234 | D105: =Orders!B106/$C105 -> 0.6383616831 | E105: =Orders!C106/$C105 -> 0.5638764548 | F105: =Orders!D106/$C105 -> 0.5644583706
A106: =Orders!A107 -> CM2573429 | B106: =VLOOKUP(A106,'Product-tool'!A:E,2,0) -> Tool 08 | C106: =VLOOKUP(A106&B106,'Standard output'!A:D,4,0) -> 3930 | D106: =Orders!B107/$C106 -> 7.941908397 | E106: =Orders!C107/$C106 -> 5.804351145 | F106: =Orders!D107/$C106 -> 6.494707379
A107: =Orders!A108 -> CM267912 | B107: =VLOOKUP(A107,'Product-tool'!A:E,2,0) -> Tool 08 | C107: =VLOOKUP(A107&B107,'Standard output'!A:D,4,0) -> 3932 | D107: =Orders!B108/$C107 -> 0.02942522889 | E107: =Orders!C108/$C107 -> 0.03901322482 | F107: =Orders!D108/$C107 -> 0.03173957274
A108: =Orders!A109 -> CM2981742 | B108: =VLOOKUP(A108,'Product-tool'!A:E,2,0) -> Tool 10 | C108: =VLOOKUP(A108&B108,'Standard output'!A:D,4,0) -> 1619 | D108: =Orders!B109/$C108 -> 0.009635577517 | E108: =Orders!C109/$C108 -> 0.01284743669 | F108: =Orders!D109/$C108 -> 0.01043854231
A109: =Orders!A110 -> CM350886 | B109: =VLOOKUP(A109,'Product-tool'!A:E,2,0) -> Tool 08 | C109: =VLOOKUP(A109&B109,'Standard output'!A:D,4,0) -> 3937 | D109: =Orders!B110/$C109 -> 0.003302006604 | E109: =Orders!C110/$C109 -> 0.001651003302 | F109: =Orders!D110/$C109 -> 0.002311404623
A110: =Orders!A111 -> CM3509051 | B110: =VLOOKUP(A110,'Product-tool'!A:E,2,0) -> Tool 08 | C110: =VLOOKUP(A110&B110,'Standard output'!A:D,4,0) -> 3942 | D110: =Orders!B111/$C110 -> 2.433130391 | E110: =Orders!C111/$C110 -> 3.019812278 | F110: =Orders!D111/$C110 -> 2.529426687
A111: =Orders!A112 -> CM5648071 | B111: =VLOOKUP(A111,'Product-tool'!A:E,2,0) -> Tool 19 | C111: =VLOOKUP(A111&B111,'Standard output'!A:D,4,0) -> 10173 | D111: =Orders!B112/$C111 -> 0.1037648678 | E111: =Orders!C112/$C111 -> 0.1647203382 | F111: =Orders!D112/$C111 -> 0.1234444117
A112: =Orders!A113 -> CM5946003 | B112: =VLOOKUP(A112,'Product-tool'!A:E,2,0) -> Tool 19 | C112: =VLOOKUP(A112&B112,'Standard output'!A:D,4,0) -> 10242 | D112: =Orders!B113/$C112 -> 1.278549112 | E112: =Orders!C113/$C112 -> 1.076098418 | F112: =Orders!D113/$C112 -> 1.10719586
A113: =Orders!A114 -> CM5947011 | B113: =VLOOKUP(A113,'Product-tool'!A:E,2,0) -> Tool 04 | C113: =VLOOKUP(A113&B113,'Standard output'!A:D,4,0) -> 2298 | D113: =Orders!B114/$C113 -> 6.827545692 | E113: =Orders!C114/$C113 -> 4.202654482 | F113: =Orders!D114/$C113 -> 5.24129678
A114: =Orders!A115 -> CP2759269 | B114: =VLOOKUP(A114,'Product-tool'!A:E,2,0) -> Tool 09 | C114: =VLOOKUP(A114&B114,'Standard output'!A:D,4,0) -> 484 | D114: =Orders!B115/$C114 -> 18.31818182 | E114: =Orders!C115/$C114 -> 20.42396694 | F114: =Orders!D115/$C114 -> 18.04152893
A115: =Orders!A116 -> CP3651771 | B115: =VLOOKUP(A115,'Product-tool'!A:E,2,0) -> Tool 02 | C115: =VLOOKUP(A115&B115,'Standard output'!A:D,4,0) -> 2681 | D115: =Orders!B116/$C115 -> 4.729168221 | E115: =Orders!C116/$C115 -> 6.24688549 | F115: =Orders!D116/$C115 -> 5.080716151
A116: =Orders!A117 -> CP3782517 | B116: =VLOOKUP(A116,'Product-tool'!A:E,2,0) -> Tool 16 | C116: =VLOOKUP(A116&B116,'Standard output'!A:D,4,0) -> 6861 | D116: =Orders!B117/$C116 -> 1.017679639 | E116: =Orders!C117/$C116 -> 0.8926249818 | F116: =Orders!D117/$C116 -> 0.8969829471
A117: =Orders!A118 -> CP5891290 | B117: =VLOOKUP(A117,'Product-tool'!A:E,2,0) -> Tool 12 | C117: =VLOOKUP(A117&B117,'Standard output'!A:D,4,0) -> 4089 | D117: =Orders!B118/$C117 -> 0.04228417706 | E117: =Orders!C118/$C117 -> 0.03465394962 | F117: =Orders!D118/$C117 -> 0.03624358034
A118: =Orders!A119 -> CP5915175 | B118: =VLOOKUP(A118,'Product-tool'!A:E,2,0) -> Tool 17 | C118: =VLOOKUP(A118&B118,'Standard output'!A:D,4,0) -> 6839 | D118: =Orders!B119/$C118 -> 0.08306769996 | E118: =Orders!C119/$C118 -> 0.09010089194 | F118: =Orders!D119/$C118 -> 0.08078666472
A119: =Orders!A120 -> CT0314214 | B119: =VLOOKUP(A119,'Product-tool'!A:E,2,0) -> Tool 20 | C119: =VLOOKUP(A119&B119,'Standard output'!A:D,4,0) -> 7870.642235 | D119: =Orders!B120/$C119 -> 7.226220974 | E119: =Orders!C120/$C119 -> 12.14979631 | F119: =Orders!D120/$C119 -> 8.895601898
A120: =Orders!A121 -> CT0686710 | B120: =VLOOKUP(A120,'Product-tool'!A:E,2,0) -> Tool 04 | C120: =VLOOKUP(A120&B120,'Standard output'!A:D,4,0) -> 2295 | D120: =Orders!B121/$C120 -> 1.085315904 | E120: =Orders!C121/$C120 -> 1.647799564 | F120: =Orders!D121/$C120 -> 1.259215686
A121: =Orders!A122 -> CT0911438 | B121: =VLOOKUP(A121,'Product-tool'!A:E,2,0) -> Tool 13 | C121: =VLOOKUP(A121&B121,'Standard output'!A:D,4,0) -> 2444 | D121: =Orders!B122/$C121 -> 0.7531914894 | E121: =Orders!C122/$C121 -> 0.7994680851 | F121: =Orders!D122/$C121 -> 0.7244680851
A122: =Orders!A123 -> CT1153413 | B122: =VLOOKUP(A122,'Product-tool'!A:E,2,0) -> Tool 20 | C122: =VLOOKUP(A122&B122,'Standard output'!A:D,4,0) -> 7871.642235 | D122: =Orders!B123/$C122 -> 0.5046977342 | E122: =Orders!C123/$C122 -> 0.7730661301 | F122: =Orders!D123/$C122 -> 0.5884286737
A123: =Orders!A124 -> CT1195860 | B123: =VLOOKUP(A123,'Product-tool'!A:E,2,0) -> Tool 19 | C123: =VLOOKUP(A123&B123,'Standard output'!A:D,4,0) -> 10244 | D123: =Orders!B124/$C123 -> 0.1691624365 | E123: =Orders!C124/$C123 -> 0.2734771574 | F123: =Orders!D124/$C123 -> 0.2034263959
A124: =Orders!A125 -> CT1344126 | B124: =VLOOKUP(A124,'Product-tool'!A:E,2,0) -> Tool 16 | C124: =VLOOKUP(A124&B124,'Standard output'!A:D,4,0) -> 6833 | D124: =Orders!B125/$C124 -> 1.585379775 | E124: =Orders!C125/$C124 -> 1.241972779 | F124: =Orders!D125/$C124 -> 1.332723547
A125: =Orders!A126 -> CT1427436 | B125: =VLOOKUP(A125,'Product-tool'!A:E,2,0) -> Tool 16 | C125: =VLOOKUP(A125&B125,'Standard output'!A:D,4,0) -> 6841 | D125: =Orders!B126/$C125 -> 0.041426692 | E125: =Orders!C126/$C125 -> 0.0484578278 | F125: =Orders!D126/$C125 -> 0.0418067534
A126: =Orders!A127 -> CT1422602 | B126: =VLOOKUP(A126,'Product-tool'!A:E,2,0) -> Tool 13 | C126: =VLOOKUP(A126&B126,'Standard output'!A:D,4,0) -> 2401 | D126: =Orders!B127/$C126 -> 2.537734277 | E126: =Orders!C127/$C126 -> 3.118700541 | F126: =Orders!D127/$C126 -> 2.624906289
A127: =Orders!A128 -> CT1693771 | B127: =VLOOKUP(A127,'Product-tool'!A:E,2,0) -> Tool 19 | C127: =VLOOKUP(A127&B127,'Standard output'!A:D,4,0) -> 10241 | D127: =Orders!B128/$C127 -> 1.36448589 | E127: =Orders!C128/$C127 -> 1.80357387 | F127: =Orders!D128/$C127 -> 1.466419295
A128: =Orders!A129 -> CT2356543 | B128: =VLOOKUP(A128,'Product-tool'!A:E,2,0) -> Tool 18 | C128: =VLOOKUP(A128&B128,'Standard output'!A:D,4,0) -> 2829 | D128: =Orders!B129/$C128 -> 1.454860375 | E128: =Orders!C129/$C128 -> 1.691975963 | F128: =Orders!D129/$C128 -> 1.463131849
A129: =Orders!A130 -> CT2727204 | B129: =VLOOKUP(A129,'Product-tool'!A:E,2,0) -> Tool 11 | C129: =VLOOKUP(A129&B129,'Standard output'!A:D,4,0) -> 2035 | D129: =Orders!B130/$C129 -> 3.364029484 | E129: =Orders!C130/$C129 -> 2.451154791 | F129: =Orders!D130/$C129 -> 2.748206388
A130: =Orders!A131 -> CT2748008 | B130: =VLOOKUP(A130,'Product-tool'!A:E,2,0) -> Tool 20 | C130: =VLOOKUP(A130&B130,'Standard output'!A:D,4,0) -> 7862.642235 | D130: =Orders!B131/$C130 -> 0.08812559179 | E130: =Orders!C131/$C130 -> 0.06514349562 | F130: =Orders!D131/$C130 -> 0.07241840376
A131: =Orders!A132 -> CT2882108 | B131: =VLOOKUP(A131,'Product-tool'!A:E,2,0) -> Tool 19 | C131: =VLOOKUP(A131&B131,'Standard output'!A:D,4,0) -> 10248 | D131: =Orders!B132/$C131 -> 14.41378806 | E131: =Orders!C132/$C131 -> 12.32374122 | F131: =Orders!D132/$C131 -> 12.56501756
A132: =Orders!A133 -> CT2899279 | B132: =VLOOKUP(A132,'Product-tool'!A:E,2,0) -> Tool 11 | C132: =VLOOKUP(A132&B132,'Standard output'!A:D,4,0) -> 2121 | D132: =Orders!B133/$C132 -> 1.021122112 | E132: =Orders!C133/$C132 -> 1.152286657 | F132: =Orders!D133/$C132 -> 1.011928336
A133: =Orders!A134 -> CT2921184 | B133: =VLOOKUP(A133,'Product-tool'!A:E,2,0) -> Tool 15 | C133: =VLOOKUP(A133&B133,'Standard output'!A:D,4,0) -> 4472 | D133: =Orders!B134/$C133 -> 3.9 | E133: =Orders!C134/$C133 -> 4.821802326 | F133: =Orders!D134/$C133 -> 4.046511628
A134: =Orders!A135 -> CT2976643 | B134: =VLOOKUP(A134,'Product-tool'!A:E,2,0) -> Tool 18 | C134: =VLOOKUP(A134&B134,'Standard output'!A:D,4,0) -> 2834 | D134: =Orders!B135/$C134 -> 0.5013761468 | E134: =Orders!C135/$C134 -> 0.7917431193 | F134: =Orders!D135/$C134 -> 0.5949541284
A135: =Orders!A136 -> CT3251740 | B135: =VLOOKUP(A135,'Product-tool'!A:E,2,0) -> Tool 18 | C135: =VLOOKUP(A135&B135,'Standard output'!A:D,4,0) -> 2887 | D135: =Orders!B136/$C135 -> 2.532906131 | E135: =Orders!C136/$C135 -> 2.790924835 | F135: =Orders!D136/$C135 -> 2.479771389
A136: =Orders!A137 -> CT3327591 | B136: =VLOOKUP(A136,'Product-tool'!A:E,2,0) -> Tool 20 | C136: =VLOOKUP(A136&B136,'Standard output'!A:D,4,0) -> 7931.642235 | D136: =Orders!B137/$C136 -> 2.805320682 | E136: =Orders!C137/$C136 -> 4.643300707 | F136: =Orders!D137/$C136 -> 3.4214226
A137: =Orders!A138 -> CT3389630 | B137: =VLOOKUP(A137,'Product-tool'!A:E,2,0) -> Tool 03 | C137: =VLOOKUP(A137&B137,'Standard output'!A:D,4,0) -> 2447 | D137: =Orders!B138/$C137 -> 0.4308541071 | E137: =Orders!C138/$C137 -> 0.7071107479 | F137: =Orders!D138/$C137 -> 0.5232938292
A138: =Orders!A139 -> CT3513686 | B138: =VLOOKUP(A138,'Product-tool'!A:E,2,0) -> Tool 15 | C138: =VLOOKUP(A138&B138,'Standard output'!A:D,4,0) -> 4406 | D138: =Orders!B139/$C138 -> 0.02271901952 | E138: =Orders!C139/$C138 -> 0.02566954153 | F138: =Orders!D139/$C138 -> 0.02242396732
A139: =Orders!A140 -> CT3676279 | B139: =VLOOKUP(A139,'Product-tool'!A:E,2,0) -> Tool 18 | C139: =VLOOKUP(A139&B139,'Standard output'!A:D,4,0) -> 2803 | D139: =Orders!B140/$C139 -> 18.51676775 | E139: =Orders!C140/$C139 -> 19.09093828 | F139: =Orders!D140/$C139 -> 17.55904388
A140: =Orders!A141 -> CT3847465 | B140: =VLOOKUP(A140,'Product-tool'!A:E,2,0) -> Tool 08 | C140: =VLOOKUP(A140&B140,'Standard output'!A:D,4,0) -> 3955 | D140: =Orders!B141/$C140 -> 33.98045512 | E140: =Orders!C141/$C140 -> 26.18439949 | F140: =Orders!D141/$C140 -> 28.37484197
A141: =Orders!A142 -> CT3866790 | B141: =VLOOKUP(A141,'Product-tool'!A:E,2,0) -> Tool 20 | C141: =VLOOKUP(A141&B141,'Standard output'!A:D,4,0) -> 7941.642235 | D141: =Orders!B142/$C141 -> 11.18161677 | E141: =Orders!C142/$C141 -> 11.77157032 | F141: =Orders!D142/$C141 -> 10.7088682
A142: =Orders!A143 -> CT4394015 | B142: =VLOOKUP(A142,'Product-tool'!A:E,2,0) -> Tool 04 | C142: =VLOOKUP(A142&B142,'Standard output'!A:D,4,0) -> 2230 | D142: =Orders!B143/$C142 -> 14.17816143 | E142: =Orders!C143/$C142 -> 21.24596413 | F142: =Orders!D143/$C142 -> 13.03789238
A143: =Orders!A144 -> CT4485707 | B143: =VLOOKUP(A143,'Product-tool'!A:E,2,0) -> Tool 19 | C143: =VLOOKUP(A143&B143,'Standard output'!A:D,4,0) -> 10169 | D143: =Orders!B144/$C143 -> 0.00741469171 | E143: =Orders!C144/$C143 -> 0.008053889271 | F143: =Orders!D144/$C143 -> 0.007159012686
A144: =Orders!A145 -> CT4625235 | B144: =VLOOKUP(A144,'Product-tool'!A:E,2,0) -> Tool 11 | C144: =VLOOKUP(A144&B144,'Standard output'!A:D,4,0) -> 2067 | D144: =Orders!B145/$C144 -> 0.7754716981 | E144: =Orders!C145/$C144 -> 1.206918239 | F144: =Orders!D145/$C144 -> 0.9125786164
A145: =Orders!A146 -> CT4696984 | B145: =VLOOKUP(A145,'Product-tool'!A:E,2,0) -> Tool 12 | C145: =VLOOKUP(A145&B145,'Standard output'!A:D,4,0) -> 4054 | D145: =Orders!B146/$C145 -> 2.05550074 | E145: =Orders!C146/$C145 -> 2.510212136 | F145: =Orders!D146/$C145 -> 2.119314258
A146: =Orders!A147 -> CT4766693 | B146: =VLOOKUP(A146,'Product-tool'!A:E,2,0) -> Tool 19 | C146: =VLOOKUP(A146&B146,'Standard output'!A:D,4,0) -> 10225 | D146: =Orders!B147/$C146 -> 1.521222494 | E146: =Orders!C147/$C146 -> 2.306943765 | F146: =Orders!D147/$C146 -> 1.763677262
A147: =Orders!A148 -> CT4972454 | B147: =VLOOKUP(A147,'Product-tool'!A:E,2,0) -> Tool 20 | C147: =VLOOKUP(A147&B147,'Standard output'!A:D,4,0) -> 7868.642235 | D147: =Orders!B148/$C147 -> 8.149779604 | E147: =Orders!C148/$C147 -> 7.321898528 | F147: =Orders!D148/$C147 -> 7.258291621
A148: =Orders!A149 -> CT4983245 | B148: =VLOOKUP(A148,'Product-tool'!A:E,2,0) -> Tool 19 | C148: =VLOOKUP(A148&B148,'Standard output'!A:D,4,0) -> 10224 | D148: =Orders!B149/$C148 -> 1.627543036 | E148: =Orders!C149/$C148 -> 1.555575117 | F148: =Orders!D149/$C148 -> 1.490091941
A149: =Orders!A150 -> CT4998062 | B149: =VLOOKUP(A149,'Product-tool'!A:E,2,0) -> Tool 19 | C149: =VLOOKUP(A149&B149,'Standard output'!A:D,4,0) -> 10186 | D149: =Orders!B150/$C149 -> 0.05309247987 | E149: =Orders!C150/$C149 -> 0.04658354604 | F149: =Orders!D150/$C149 -> 0.04683879835
A150: =Orders!A151 -> CT5306052 | B150: =VLOOKUP(A150,'Product-tool'!A:E,2,0) -> Tool 20 | C150: =VLOOKUP(A150&B150,'Standard output'!A:D,4,0) -> 7869.642235 | D150: =Orders!B151/$C150 -> 0.03964602083 | E150: =Orders!C151/$C150 -> 0.03832448681 | F150: =Orders!D151/$C150 -> 0.03650737752
A151: =Orders!A152 -> CT5312249 | B151: =VLOOKUP(A151,'Product-tool'!A:E,2,0) -> Tool 19 | C151: =VLOOKUP(A151&B151,'Standard output'!A:D,4,0) -> 10265 | D151: =Orders!B152/$C151 -> 0.001013151486 | E151: =Orders!C152/$C151 -> 0.001393083293 | F151: =Orders!D152/$C151 -> 0.001139795421
A152: =Orders!A153 -> CT5387974 | B152: =VLOOKUP(A152,'Product-tool'!A:E,2,0) -> Tool 10 | C152: =VLOOKUP(A152&B152,'Standard output'!A:D,4,0) -> 1586 | D152: =Orders!B153/$C152 -> 0.006557377049 | E152: =Orders!C153/$C152 -> 0.004098360656 | F152: =Orders!D153/$C152 -> 0.004918032787
A153: =Orders!A154 -> CT5424793 | B153: =VLOOKUP(A153,'Product-tool'!A:E,2,0) -> Tool 12 | C153: =VLOOKUP(A153&B153,'Standard output'!A:D,4,0) -> 4056 | D153: =Orders!B154/$C153 -> 0.8217948718 | E153: =Orders!C154/$C153 -> 0.7131410256 | F153: =Orders!D154/$C153 -> 0.7208333333
A154: =Orders!A155 -> CT54540 | B154: =VLOOKUP(A154,'Product-tool'!A:E,2,0) -> Tool 15 | C154: =VLOOKUP(A154&B154,'Standard output'!A:D,4,0) -> 4467 | D154: =Orders!B155/$C154 -> 5.300693978 | E154: =Orders!C155/$C154 -> 5.603357958 | F154: =Orders!D155/$C154 -> 5.086501007
A155: =Orders!A156 -> CT5587547 | B155: =VLOOKUP(A155,'Product-tool'!A:E,2,0) -> Tool 19 | C155: =VLOOKUP(A155&B155,'Standard output'!A:D,4,0) -> 10202 | D155: =Orders!B156/$C155 -> 0.01210546952 | E155: =Orders!C156/$C155 -> 0.0100666536 | F155: =Orders!D156/$C155 -> 0.01044893158
A156: =Orders!A157 -> CT5594793 | B156: =VLOOKUP(A156,'Product-tool'!A:E,2,0) -> Tool 18 | C156: =VLOOKUP(A156&B156,'Standard output'!A:D,4,0) -> 2864 | D156: =Orders!B157/$C156 -> 0.4766061453 | E156: =Orders!C157/$C156 -> 0.7439594972 | F156: =Orders!D157/$C156 -> 0.5619413408
A157: =Orders!A158 -> CT5668919 | B157: =VLOOKUP(A157,'Product-tool'!A:E,2,0) -> Tool 20 | C157: =VLOOKUP(A157&B157,'Standard output'!A:D,4,0) -> 7912.642235 | D157: =Orders!B158/$C157 -> 0.08148984636 | E157: =Orders!C158/$C157 -> 0.07738249523 | F157: =Orders!D158/$C157 -> 0.07442520242
A158: =Orders!A159 -> CT5745169 | B158: =VLOOKUP(A158,'Product-tool'!A:E,2,0) -> Tool 12 | C158: =VLOOKUP(A158&B158,'Standard output'!A:D,4,0) -> 4071 | D158: =Orders!B159/$C158 -> 0.06482436748 | E158: =Orders!C159/$C158 -> 0.08462294277 | F158: =Orders!D159/$C158 -> 0.06929501351
A159: =Orders!A160 -> CT5745914 | B159: =VLOOKUP(A159,'Product-tool'!A:E,2,0) -> Tool 12 | C159: =VLOOKUP(A159&B159,'Standard output'!A:D,4,0) -> 4054 | D159: =Orders!B160/$C159 -> 0.5076221016 | E159: =Orders!C160/$C159 -> 0.5374444993 | F159: =Orders!D160/$C159 -> 0.4877405032
A160: =Orders!A161 -> CT5783436 | B160: =VLOOKUP(A160,'Product-tool'!A:E,2,0) -> Tool 20 | C160: =VLOOKUP(A160&B160,'Standard output'!A:D,4,0) -> 7869.642235 | D160: =Orders!B161/$C160 -> 0.004460177344 | E160: =Orders!C161/$C160 -> 0.005451327865 | F160: =Orders!D161/$C160 -> 0.004625369097
A161: =Orders!A162 -> CT5802839 | B161: =VLOOKUP(A161,'Product-tool'!A:E,2,0) -> Tool 19 | C161: =VLOOKUP(A161&B161,'Standard output'!A:D,4,0) -> 10173 | D161: =Orders!B162/$C161 -> 0.1490022609 | E161: =Orders!C162/$C161 -> 0.192195026 | F161: =Orders!D162/$C161 -> 0.1580752974
A162: =Orders!A163 -> CT5819298 | B162: =VLOOKUP(A162,'Product-tool'!A:E,2,0) -> Tool 20 | C162: =VLOOKUP(A162&B162,'Standard output'!A:D,4,0) -> 7858.642235 | D162: =Orders!B163/$C162 -> 0.03325001854 | E162: =Orders!C163/$C162 -> 0.0410248985 | F162: =Orders!D163/$C162 -> 0.03457340236
A163: =Orders!A164 -> CT5829315 | B163: =VLOOKUP(A163,'Product-tool'!A:E,2,0) -> Tool 18 | C163: =VLOOKUP(A163&B163,'Standard output'!A:D,4,0) -> 2851 | D163: =Orders!B164/$C163 -> 0.1518414591 | E163: =Orders!C164/$C163 -> 0.1180989127 | F163: =Orders!D164/$C163 -> 0.1272185198
A164: =Orders!A165 -> CT5869387 | B164: =VLOOKUP(A164,'Product-tool'!A:E,2,0) -> Tool 19 | C164: =VLOOKUP(A164&B164,'Standard output'!A:D,4,0) -> 10217 | D164: =Orders!B165/$C164 -> 0.9151022805 | E164: =Orders!C165/$C164 -> 1.349368699 | F164: =Orders!D165/$C164 -> 1.04424978
A165: =Orders!A166 -> CT588550 | B165: =VLOOKUP(A165,'Product-tool'!A:E,2,0) -> Tool 11 | C165: =VLOOKUP(A165&B165,'Standard output'!A:D,4,0) -> 2063 | D165: =Orders!B166/$C165 -> 0.4549684925 | E165: =Orders!C166/$C165 -> 0.2785264178 | F165: =Orders!D166/$C165 -> 0.3484730974
A166: =Orders!A167 -> CT5885641 | B166: =VLOOKUP(A166,'Product-tool'!A:E,2,0) -> Tool 18 | C166: =VLOOKUP(A166&B166,'Standard output'!A:D,4,0) -> 2814 | D166: =Orders!B167/$C166 -> 1.601208244 | E166: =Orders!C167/$C166 -> 1.290298507 | F166: =Orders!D167/$C166 -> 1.361904762
A167: =Orders!A168 -> CT593521 | B167: =VLOOKUP(A167,'Product-tool'!A:E,2,0) -> Tool 18 | C167: =VLOOKUP(A167&B167,'Standard output'!A:D,4,0) -> 2853 | D167: =Orders!B168/$C167 -> 26.50897301 | E167: =Orders!C168/$C167 -> 32.95930599 | F167: =Orders!D168/$C167 -> 27.58478794
A168: =Orders!A169 -> CT5932817 | B168: =VLOOKUP(A168,'Product-tool'!A:E,2,0) -> Tool 20 | C168: =VLOOKUP(A168&B168,'Standard output'!A:D,4,0) -> 7850.642235 | D168: =Orders!B169/$C168 -> 0.02202367588 | E168: =Orders!C169/$C168 -> 0.02351399981 | F168: =Orders!D169/$C168 -> 0.02119571814
A169: =Orders!A170 -> CT5982395 | B169: =VLOOKUP(A169,'Product-tool'!A:E,2,0) -> Tool 04 | C169: =VLOOKUP(A169&B169,'Standard output'!A:D,4,0) -> 2227 | D169: =Orders!B170/$C169 -> 0.1605298608 | E169: =Orders!C170/$C169 -> 0.1733722497 | F169: =Orders!D170/$C169 -> 0.1558599012
A170: =Orders!A171 -> CT6358073 | B170: =VLOOKUP(A170,'Product-tool'!A:E,2,0) -> Tool 20 | C170: =VLOOKUP(A170&B170,'Standard output'!A:D,4,0) -> 7883.642235 | D170: =Orders!B171/$C170 -> 0.004122460029 | E170: =Orders!C171/$C170 -> 0.004452256832 | F170: =Orders!D171/$C170 -> 0.003957561628
A171: =Orders!A172 -> CT6438604 | B171: =VLOOKUP(A171,'Product-tool'!A:E,2,0) -> Tool 20 | C171: =VLOOKUP(A171&B171,'Standard output'!A:D,4,0) -> 7893.642235 | D171: =Orders!B172/$C171 -> 0.001317516007 | E171: =Orders!C172/$C171 -> 0.001976274011 | F171: =Orders!D172/$C171 -> 0.001482205508
A172: =Orders!A173 -> CT6445143 | B172: =VLOOKUP(A172,'Product-tool'!A:E,2,0) -> Tool 20 | C172: =VLOOKUP(A172&B172,'Standard output'!A:D,4,0) -> 7913.642235 | D172: =Orders!B173/$C172 -> 0.7377513194 | E172: =Orders!C173/$C172 -> 1.091267427 | F172: =Orders!D173/$C172 -> 0.8433790411
A173: =Orders!A174 -> CT823663 | B173: =VLOOKUP(A173,'Product-tool'!A:E,2,0) -> Tool 07 | C173: =VLOOKUP(A173&B173,'Standard output'!A:D,4,0) -> 6446 | D173: =Orders!B174/$C173 -> 0.2184145206 | E173: =Orders!C174/$C173 -> 0.1613403661 | F173: =Orders!D174/$C173 -> 0.1792894818
A174: =Orders!A175 -> DA2128864 | B174: =VLOOKUP(A174,'Product-tool'!A:E,2,0) -> Tool 05 | C174: =VLOOKUP(A174&B174,'Standard output'!A:D,4,0) -> 1267 | D174: =Orders!B175/$C174 -> 4.10418311 | E174: =Orders!C175/$C174 -> 4.46124704 | F174: =Orders!D175/$C174 -> 3.991318074
A175: =Orders!A176 -> DA5685201 | B175: =VLOOKUP(A175,'Product-tool'!A:E,2,0) -> Tool 01 | C175: =VLOOKUP(A175&B175,'Standard output'!A:D,4,0) -> 1270 | D175: =Orders!B176/$C175 -> 0.1361417323 | E175: =Orders!C176/$C175 -> 0.08803149606 | F175: =Orders!D176/$C175 -> 0.1064566929
A176: =Orders!A177 -> DP0098702 | B176: =VLOOKUP(A176,'Product-tool'!A:E,2,0) -> Tool 17 | C176: =VLOOKUP(A176&B176,'Standard output'!A:D,4,0) -> 6800 | D176: =Orders!B177/$C176 -> 1.487161765 | E176: =Orders!C177/$C176 -> 1.917117647 | F176: =Orders!D177/$C176 -> 1.577014706
A177: =Orders!A178 -> DP087138 | B177: =VLOOKUP(A177,'Product-tool'!A:E,2,0) -> Tool 14 | C177: =VLOOKUP(A177&B177,'Standard output'!A:D,4,0) -> 2350 | D177: =Orders!B178/$C177 -> 16.60348936 | E177: =Orders!C178/$C177 -> 23.86578723 | F177: =Orders!D178/$C177 -> 18.67795745
A178: =Orders!A179 -> DP1792938 | B178: =VLOOKUP(A178,'Product-tool'!A:E,2,0) -> Tool 15 | C178: =VLOOKUP(A178&B178,'Standard output'!A:D,4,0) -> 4404 | D178: =Orders!B179/$C178 -> 7.692552225 | E178: =Orders!C179/$C178 -> 10.96616712 | F178: =Orders!D179/$C178 -> 8.614123524
A179: =Orders!A180 -> DP2403779 | B179: =VLOOKUP(A179,'Product-tool'!A:E,2,0) -> Tool 15 | C179: =VLOOKUP(A179&B179,'Standard output'!A:D,4,0) -> 4406 | D179: =Orders!B180/$C179 -> 2.618293236 | E179: =Orders!C180/$C179 -> 2.337108488 | F179: =Orders!D180/$C179 -> 2.3253064
A180: =Orders!A181 -> DP2404504 | B180: =VLOOKUP(A180,'Product-tool'!A:E,2,0) -> Tool 03 | C180: =VLOOKUP(A180&B180,'Standard output'!A:D,4,0) -> 2460 | D180: =Orders!B181/$C180 -> 0.3080894309 | E180: =Orders!C181/$C180 -> 0.5215853659 | F180: =Orders!D181/$C180 -> 0.3810162602
A181: =Orders!A182 -> DP4769417 | B181: =VLOOKUP(A181,'Product-tool'!A:E,2,0) -> Tool 17 | C181: =VLOOKUP(A181&B181,'Standard output'!A:D,4,0) -> 6853 | D181: =Orders!B182/$C181 -> 0.3112943237 | E181: =Orders!C182/$C181 -> 0.2583685977 | F181: =Orders!D182/$C181 -> 0.2680431928
A182: =Orders!A183 -> DP4764853 | B182: =VLOOKUP(A182,'Product-tool'!A:E,2,0) -> Tool 18 | C182: =VLOOKUP(A182&B182,'Standard output'!A:D,4,0) -> 2863 | D182: =Orders!B183/$C182 -> 8.586901851 | E182: =Orders!C183/$C182 -> 9.34792176 | F182: =Orders!D183/$C182 -> 8.358050995
A183: =Orders!A184 -> DP5007199 | B183: =VLOOKUP(A183,'Product-tool'!A:E,2,0) -> Tool 01 | C183: =VLOOKUP(A183&B183,'Standard output'!A:D,4,0) -> 1279 | D183: =Orders!B184/$C183 -> 41.12634871 | E183: =Orders!C184/$C183 -> 39.93002346 | F183: =Orders!D184/$C183 -> 37.9236122
A184: =Orders!A185 -> DP5383174 | B184: =VLOOKUP(A184,'Product-tool'!A:E,2,0) -> Tool 01 | C184: =VLOOKUP(A184&B184,'Standard output'!A:D,4,0) -> 1278 | D184: =Orders!B185/$C184 -> 5.000625978 | E184: =Orders!C185/$C184 -> 5.320031299 | F184: =Orders!D185/$C184 -> 4.813458529
A185: =Orders!A186 -> DP5698799 | B185: =VLOOKUP(A185,'Product-tool'!A:E,2,0) -> Tool 01 | C185: =VLOOKUP(A185&B185,'Standard output'!A:D,4,0) -> 1281 | D185: =Orders!B186/$C185 -> 1.009758002 | E185: =Orders!C186/$C185 -> 0.6555815769 | F185: =Orders!D186/$C185 -> 0.7905542545
A186: =Orders!A187 -> DP5908334 | B186: =VLOOKUP(A186,'Product-tool'!A:E,2,0) -> Tool 01 | C186: =VLOOKUP(A186&B186,'Standard output'!A:D,4,0) -> 1276 | D186: =Orders!B187/$C186 -> 36.05258621 | E186: =Orders!C187/$C186 -> 38.64851097 | F186: =Orders!D187/$C186 -> 34.83001567
A187: =Orders!A188 -> DP638679 | B187: =VLOOKUP(A187,'Product-tool'!A:E,2,0) -> Tool 18 | C187: =VLOOKUP(A187&B187,'Standard output'!A:D,4,0) -> 2889 | D187: =Orders!B188/$C187 -> 0.04274835583 | E187: =Orders!C188/$C187 -> 0.02789892696 | F187: =Orders!D188/$C187 -> 0.03374870197
A188: =Orders!A189 -> FR0061274 | B188: =VLOOKUP(A188,'Product-tool'!A:E,2,0) -> Tool 11 | C188: =VLOOKUP(A188&B188,'Standard output'!A:D,4,0) -> 2069 | D188: =Orders!B189/$C188 -> 0.04523924601 | E188: =Orders!C189/$C188 -> 0.04335427743 | F188: =Orders!D189/$C188 -> 0.04146930884
A189: =Orders!A190 -> FR009628 | B189: =VLOOKUP(A189,'Product-tool'!A:E,2,0) -> Tool 11 | C189: =VLOOKUP(A189&B189,'Standard output'!A:D,4,0) -> 2089 | D189: =Orders!B190/$C189 -> 15.62613691 | E189: =Orders!C190/$C189 -> 24.73671613 | F189: =Orders!D190/$C189 -> 18.56840594
A190: =Orders!A191 -> FR0362571 | B190: =VLOOKUP(A190,'Product-tool'!A:E,2,0) -> Tool 11 | C190: =VLOOKUP(A190&B190,'Standard output'!A:D,4,0) -> 2087 | D190: =Orders!B191/$C190 -> 8.667704839 | E190: =Orders!C191/$C190 -> 10.64480115 | F190: =Orders!D191/$C190 -> 8.961715381
A191: =Orders!A192 -> FR0614261 | B191: =VLOOKUP(A191,'Product-tool'!A:E,2,0) -> Tool 11 | C191: =VLOOKUP(A191&B191,'Standard output'!A:D,4,0) -> 2107 | D191: =Orders!B192/$C191 -> 1.408590413 | E191: =Orders!C192/$C191 -> 0.9464641671 | F191: =Orders!D192/$C191 -> 1.116136687
A192: =Orders!A193 -> FR0622263 | B192: =VLOOKUP(A192,'Product-tool'!A:E,2,0) -> Tool 11 | C192: =VLOOKUP(A192&B192,'Standard output'!A:D,4,0) -> 2035 | D192: =Orders!B193/$C192 -> 0.3404914005 | E192: =Orders!C193/$C192 -> 0.5001965602 | F192: =Orders!D193/$C192 -> 0.3877641278
A193: =Orders!A194 -> FR066151 | B193: =VLOOKUP(A193,'Product-tool'!A:E,2,0) -> Tool 04 | C193: =VLOOKUP(A193&B193,'Standard output'!A:D,4,0) -> 2257 | D193: =Orders!B194/$C193 -> 0.7902525476 | E193: =Orders!C194/$C193 -> 1.352990696 | F193: =Orders!D194/$C193 -> 0.983207798
A194: =Orders!A195 -> FR0667973 | B194: =VLOOKUP(A194,'Product-tool'!A:E,2,0) -> Tool 11 | C194: =VLOOKUP(A194&B194,'Standard output'!A:D,4,0) -> 2050 | D194: =Orders!B195/$C194 -> 1.056487805 | E194: =Orders!C195/$C194 -> 1.159219512 | F194: =Orders!D195/$C194 -> 1.032390244
A195: =Orders!A196 -> FR0679719 | B195: =VLOOKUP(A195,'Product-tool'!A:E,2,0) -> Tool 10 | C195: =VLOOKUP(A195&B195,'Standard output'!A:D,4,0) -> 1605 | D195: =Orders!B196/$C195 -> 0.08747663551 | E195: =Orders!C196/$C195 -> 0.05102803738 | F195: =Orders!D196/$C195 -> 0.06560747664
A196: =Orders!A197 -> FR0696557 | B196: =VLOOKUP(A196,'Product-tool'!A:E,2,0) -> Tool 15 | C196: =VLOOKUP(A196&B196,'Standard output'!A:D,4,0) -> 4478 | D196: =Orders!B197/$C196 -> 0.5376507369 | E196: =Orders!C197/$C196 -> 0.9176641358 | F196: =Orders!D197/$C196 -> 0.6679991067
A197: =Orders!A198 -> FR0905418 | B197: =VLOOKUP(A197,'Product-tool'!A:E,2,0) -> Tool 15 | C197: =VLOOKUP(A197&B197,'Standard output'!A:D,4,0) -> 4421 | D197: =Orders!B198/$C197 -> 0.7939380231 | E197: =Orders!C198/$C197 -> 1.048586293 | F197: =Orders!D198/$C197 -> 0.852748247
A198: =Orders!A199 -> FR0919209 | B198: =VLOOKUP(A198,'Product-tool'!A:E,2,0) -> Tool 11 | C198: =VLOOKUP(A198&B198,'Standard output'!A:D,4,0) -> 2083 | D198: =Orders!B199/$C198 -> 2.101968315 | E198: =Orders!C199/$C198 -> 1.393614978 | F198: =Orders!D199/$C198 -> 1.656985118
A199: =Orders!A200 -> FR0935436 | B199: =VLOOKUP(A199,'Product-tool'!A:E,2,0) -> Tool 11 | C199: =VLOOKUP(A199&B199,'Standard output'!A:D,4,0) -> 2087 | D199: =Orders!B200/$C199 -> 0.07287973167 | E199: =Orders!C200/$C199 -> 0.1171058936 | F199: =Orders!D200/$C199 -> 0.08782942022
A200: =Orders!A201 -> FR1379592 | B200: =VLOOKUP(A200,'Product-tool'!A:E,2,0) -> Tool 15 | C200: =VLOOKUP(A200&B200,'Standard output'!A:D,4,0) -> 4494 | D200: =Orders!B201/$C200 -> 0.2377837116 | E200: =Orders!C201/$C200 -> 0.2024922118 | F200: =Orders!D201/$C200 -> 0.2071206053
... 1300 more rows

Sheet Sum of needed tool time (hidden)
A1: ='Tool time needed per product'!B1 -> Tool | B1: ='Tool time needed per product'!D1 -> Week1 | C1: ='Tool time needed per product'!E1 -> Week2 | D1: ='Tool time needed per product'!F1 -> Week3
A2: Tool 01 | B2: =SUMIF('Tool time needed per product'!B:B,A2,'Tool time needed per product'!D:D) -> 83.32546063 | C2: =SUMIF('Tool time needed per product'!B:B,A2,'Tool time needed per product'!E:E) -> 84.6421788 | D2: =SUMIF('Tool time needed per product'!B:B,A2,'Tool time needed per product'!F:F) -> 78.46409735
A3: Tool 02 | B3: =SUMIF('Tool time needed per product'!B:B,A3,'Tool time needed per product'!D:D) -> 95.8875735 | C3: =SUMIF('Tool time needed per product'!B:B,A3,'Tool time needed per product'!E:E) -> 113.132956 | D3: =SUMIF('Tool time needed per product'!B:B,A3,'Tool time needed per product'!F:F) -> 97.13585226
A4: Tool 03 | B4: =SUMIF('Tool time needed per product'!B:B,A4,'Tool time needed per product'!D:D) -> 4.740347477 | C4: =SUMIF('Tool time needed per product'!B:B,A4,'Tool time needed per product'!E:E) -> 6.307772682 | D4: =SUMIF('Tool time needed per product'!B:B,A4,'Tool time needed per product'!F:F) -> 5.113953566
A5: Tool 04 | B5: =SUMIF('Tool time needed per product'!B:B,A5,'Tool time needed per product'!D:D) -> 122.7403048 | C5: =SUMIF('Tool time needed per product'!B:B,A5,'Tool time needed per product'!E:E) -> 170.9440528 | D5: =SUMIF('Tool time needed per product'!B:B,A5,'Tool time needed per product'!F:F) -> 114.8182021
A6: Tool 05 | B6: =SUMIF('Tool time needed per product'!B:B,A6,'Tool time needed per product'!D:D) -> 112.8398995 | C6: =SUMIF('Tool time needed per product'!B:B,A6,'Tool time needed per product'!E:E) -> 116.6611956 | D6: =SUMIF('Tool time needed per product'!B:B,A6,'Tool time needed per product'!F:F) -> 107.1431315
A7: Tool 06 | B7: =SUMIF('Tool time needed per product'!B:B,A7,'Tool time needed per product'!D:D) -> 10.08893926 | C7: =SUMIF('Tool time needed per product'!B:B,A7,'Tool time needed per product'!E:E) -> 15.01940323 | D7: =SUMIF('Tool time needed per product'!B:B,A7,'Tool time needed per product'!F:F) -> 11.57510574
A8: Tool 07 | B8: =SUMIF('Tool time needed per product'!B:B,A8,'Tool time needed per product'!D:D) -> 12.01855122 | C8: =SUMIF('Tool time needed per product'!B:B,A8,'Tool time needed per product'!E:E) -> 11.20638633 | D8: =SUMIF('Tool time needed per product'!B:B,A8,'Tool time needed per product'!F:F) -> 10.88213805
A9: Tool 08 | B9: =SUMIF('Tool time needed per product'!B:B,A9,'Tool time needed per product'!D:D) -> 108.5916796 | C9: =SUMIF('Tool time needed per product'!B:B,A9,'Tool time needed per product'!E:E) -> 120.7341186 | D9: =SUMIF('Tool time needed per product'!B:B,A9,'Tool time needed per product'!F:F) -> 105.6342958
A10: Tool 09 | B10: =SUMIF('Tool time needed per product'!B:B,A10,'Tool time needed per product'!D:D) -> 106.9046011 | C10: =SUMIF('Tool time needed per product'!B:B,A10,'Tool time needed per product'!E:E) -> 138.0778416 | D10: =SUMIF('Tool time needed per product'!B:B,A10,'Tool time needed per product'!F:F) -> 113.4941448
A11: Tool 10 | B11: =SUMIF('Tool time needed per product'!B:B,A11,'Tool time needed per product'!D:D) -> 106.4497755 | C11: =SUMIF('Tool time needed per product'!B:B,A11,'Tool time needed per product'!E:E) -> 136.6299205 | D11: =SUMIF('Tool time needed per product'!B:B,A11,'Tool time needed per product'!F:F) -> 113.0857574
A12: Tool 11 | B12: =SUMIF('Tool time needed per product'!B:B,A12,'Tool time needed per product'!D:D) -> 113.425682 | C12: =SUMIF('Tool time needed per product'!B:B,A12,'Tool time needed per product'!E:E) -> 146.8014175 | D12: =SUMIF('Tool time needed per product'!B:B,A12,'Tool time needed per product'!F:F) -> 128.4397477
A13: Tool 12 | B13: =SUMIF('Tool time needed per product'!B:B,A13,'Tool time needed per product'!D:D) -> 15.29291147 | C13: =SUMIF('Tool time needed per product'!B:B,A13,'Tool time needed per product'!E:E) -> 19.33643611 | D13: =SUMIF('Tool time needed per product'!B:B,A13,'Tool time needed per product'!F:F) -> 16.05450662
A14: Tool 13 | B14: =SUMIF('Tool time needed per product'!B:B,A14,'Tool time needed per product'!D:D) -> 12.77809304 | C14: =SUMIF('Tool time needed per product'!B:B,A14,'Tool time needed per product'!E:E) -> 11.59977257 | D14: =SUMIF('Tool time needed per product'!B:B,A14,'Tool time needed per product'!F:F) -> 11.43393338
A15: Tool 14 | B15: =SUMIF('Tool time needed per product'!B:B,A15,'Tool time needed per product'!D:D) -> 46.39388632 | C15: =SUMIF('Tool time needed per product'!B:B,A15,'Tool time needed per product'!E:E) -> 60.77123052 | D15: =SUMIF('Tool time needed per product'!B:B,A15,'Tool time needed per product'!F:F) -> 49.62295945
A16: Tool 15 | B16: =SUMIF('Tool time needed per product'!B:B,A16,'Tool time needed per product'!D:D) -> 55.51387399 | C16: =SUMIF('Tool time needed per product'!B:B,A16,'Tool time needed per product'!E:E) -> 66.51881098 | D16: =SUMIF('Tool time needed per product'!B:B,A16,'Tool time needed per product'!F:F) -> 56.68078909
A17: Tool 16 | B17: =SUMIF('Tool time needed per product'!B:B,A17,'Tool time needed per product'!D:D) -> 15.52820754 | C17: =SUMIF('Tool time needed per product'!B:B,A17,'Tool time needed per product'!E:E) -> 18.15751746 | D17: =SUMIF('Tool time needed per product'!B:B,A17,'Tool time needed per product'!F:F) -> 15.65952163
A18: Tool 17 | B18: =SUMIF('Tool time needed per product'!B:B,A18,'Tool time needed per product'!D:D) -> 28.63358471 | C18: =SUMIF('Tool time needed per product'!B:B,A18,'Tool time needed per product'!E:E) -> 39.04424997 | D18: =SUMIF('Tool time needed per product'!B:B,A18,'Tool time needed per product'!F:F) -> 30.53756059
A19: Tool 18 | B19: =SUMIF('Tool time needed per product'!B:B,A19,'Tool time needed per product'!D:D) -> 191.7981647 | C19: =SUMIF('Tool time needed per product'!B:B,A19,'Tool time needed per product'!E:E) -> 211.7116847 | D19: =SUMIF('Tool time needed per product'!B:B,A19,'Tool time needed per product'!F:F) -> 187.9498004
A20: Tool 19 | B20: =SUMIF('Tool time needed per product'!B:B,A20,'Tool time needed per product'!D:D) -> 63.72136182 | C20: =SUMIF('Tool time needed per product'!B:B,A20,'Tool time needed per product'!E:E) -> 71.15822482 | D20: =SUMIF('Tool time needed per product'!B:B,A20,'Tool time needed per product'!F:F) -> 62.79939837
A21: Tool 20 | B21: =SUMIF('Tool time needed per product'!B:B,A21,'Tool time needed per product'!D:D) -> 43.37899639 | C21: =SUMIF('Tool time needed per product'!B:B,A21,'Tool time needed per product'!E:E) -> 50.95756053 | D21: =SUMIF('Tool time needed per product'!B:B,A21,'Tool time needed per product'!F:F) -> 43.84537759

Sheet Hours per product per tool
A1: Tools | B1: Week1 | C1: Week2 | D1: Week3
A2: Tool 01 | B2: 83.32546063 | C2: 84.6421788 | D2: 78.46409735
A3: DP5007199 | B3: 41.12634871 | C3: 39.93002346 | D3: 37.9236122
A4: DP5908334 | B4: 36.05258621 | C4: 38.64851097 | D4: 34.83001567
A5: DP5383174 | B5: 5.000625978 | C5: 5.320031299 | D5: 4.813458529
A6: DP5698799 | B6: 1.009758002 | C6: 0.6555815769 | D6: 0.7905542545
A7: DA5685201 | B7: 0.1361417323 | C7: 0.08803149606 | D7: 0.1064566929
A8: Tool 02 | B8: 95.8875735 | C8: 113.132956 | D8: 97.13585226
A9: UV2189115 | B9: 9.148551829 | C9: 11.94721799 | D9: 9.76882622
A10: ZD2443045 | B10: 8.396656535 | C10: 12.43841185 | D10: 9.606268997
A11: UV6411805 | B11: 8.221196064 | C11: 8.437206662 | D11: 7.778841787
A12: UV4094667 | B12: 7.722630781 | C12: 5.026042456 | D12: 6.046626232
A13: CP3651771 | B13: 4.729168221 | C13: 6.24688549 | D13: 5.080716151
A14: SB6619702 | B14: 4.111661699 | C14: 4.08938152 | D14: 3.834128167
A15: ST0044507 | B15: 3.628256812 | C15: 3.850503919 | D15: 3.488017917
A16: UV2535805 | B16: 3.594607843 | C16: 4.665196078 | D16: 3.825980392
A17: UV3633599 | B17: 3.310852121 | C17: 3.334199465 | D17: 3.10519679
A18: VE8168353 | B18: 3.136342857 | C18: 3.962895238 | D18: 3.291352381
A19: UV6241191 | B19: 2.778625954 | C19: 4.481526718 | D19: 3.337824427
A20: SL4542202 | B20: 2.64211128 | C20: 4.222522866 | D20: 3.156859756
A21: UV8505006 | B21: 2.503260453 | C21: 3.457192175 | D21: 2.754583813
A22: ST1444632 | B22: 2.475845411 | C22: 3.960386473 | D22: 2.959903382
A23: VE8166035 | B23: 2.277806985 | C23: 2.722042809 | D23: 2.322718738
A24: UV046672 | B24: 2.234698521 | C24: 3.127986348 | D24: 2.477246871
A25: NU2703355 | B25: 1.812731394 | C25: 3.088175293 | D25: 2.248847752
A26: UV5379200 | B26: 1.639173303 | C26: 1.220136519 | D26: 1.350284414
A27: UV2213161 | B27: 1.593869732 | C27: 1.200881226 | D27: 1.318927203
A28: UV3942188 | B28: 1.58464684 | C28: 1.14535316 | D28: 1.290334572
A29: UV2452537 | B29: 1.56876621 | C29: 1.364060763 | D29: 1.37754724
A30: UV0787788 | B30: 1.417870579 | C30: 1.667306245 | D30: 1.434010534
A31: ST086120 | B31: 1.210260279 | C31: 1.791852131 | D31: 1.38434553
A32: NU3708683 | B32: 1.036922489 | C32: 1.70106911 | D32: 1.258304696
A33: ST0904669 | B33: 0.9690644801 | C33: 0.8421170332 | D33: 0.8508386135
A34: UV3595016 | B34: 0.9327765405 | C34: 1.485300668 | D34: 1.112286563
A35: AP3728500 | B35: 0.9071023801 | C35: 0.5476010578 | D35: 0.6919909331
A36: ST5444150 | B36: 0.8197761194 | C36: 0.5820895522 | D36: 0.6630970149
A37: UV8538779 | B37: 0.8006458967 | C37: 0.9680851064 | D37: 0.8213905775
A38: AP4223947 | B38: 0.717651544 | C38: 0.4663743805 | D38: 0.5615325963
A39: UV0787562 | B39: 0.6939589666 | C39: 0.9221504559 | D39: 0.7477963526
A40: ST3795473 | B40: 0.640776699 | C40: 0.6587378641 | D40: 0.6067961165
A41: SL1814144 | B41: 0.5912650602 | C41: 0.7885165663 | D41: 0.638253012
A42: UV0008455 | B42: 0.5672904192 | C42: 0.9531062874 | D42: 0.6981661677
A43: AP3951566 | B43: 0.4872563718 | C43: 0.3327961019 | D43: 0.3883433283
A44: NU3827246 | B44: 0.4566654289 | C44: 0.5898997401 | D44: 0.4851466766
A45: SL1205692 | B45: 0.434478852 | C45: 0.5807779456 | D45: 0.469826284
A46: VE8096041 | B46: 0.4098788796 | C46: 0.2647236942 | D46: 0.3198334595
A47: UV4926151 | B47: 0.399846213 | C47: 0.2349096501 | D47: 0.3018838908
A48: ST3859207 | B48: 0.3657965451 | C48: 0.4651055662 | D48: 0.3852591171
A49: ST3078513 | B49: 0.3206699657 | C49: 0.4216216216 | D49: 0.3434335744
A50: UV5473062 | B50: 0.2842835709 | C50: 0.3276819205 | D50: 0.2847711928
A51: UV2985514 | B51: 0.2603908305 | C51: 0.2051860203 | D51: 0.2198421646
A52: ST1661696 | B52: 0.2586412841 | C52: 0.3042553191 | D52: 0.2615528182
A53: UV579433 | B53: 0.2041936714 | C53: 0.2101410599 | D53: 0.1932901258
A54: UV5677822 | B54: 0.1938851603 | C54: 0.1395973154 | D54: 0.1575316928
A55: UV5416692 | B55: 0.1572970961 | C55: 0.2439314966 | D55: 0.1848845867
A56: ST0248243 | B56: 0.1518968134 | C56: 0.1553490137 | D56: 0.1435128983
A57: SL1739082 | B57: 0.1489686784 | C57: 0.2001145913 | D57: 0.1613827349
A58: UV5815295 | B58: 0.1243435859 | C58: 0.08777194299 | D58: 0.1004501125
A59: UV4787798 | B59: 0.1212234241 | C59: 0.1760164118 | D59: 0.1372249161
A60: AO0414069 | B60: 0.1133183689 | C60: 0.09532360643 | D60: 0.09824167602
A61: ST5622830 | B61: 0.112679788 | C61: 0.1195685087 | D61: 0.1082513248
A62: UV1106642 | B62: 0.1032438479 | C62: 0.1628635347 | D62: 0.1226323639
A63: ST5866857 | B63: 0.09303387895 | C63: 0.1370765131 | D63: 0.1059002665
A64: SB4985987 | B64: 0.06283987915 | C64: 0.06333081571 | D64: 0.05891238671
A65: ST5775560 | B65: 0.05364312268 | C65: 0.05219330855 | D65: 0.0492936803
A66: NU4893598 | B66: 0.04119893089 | C66: 0.04765177549 | D66: 0.04169530355
A67: UV4105152 | B67: 0.03298731257 | C67: 0.03748558247 | D67: 0.03298731257
A68: AP4745289 | B68: 0.03288616328 | C68: 0.05431199693 | D68: 0.0398620161
A69: UV6937295 | B69: 0.02722513089 | C69: 0.04181002244 | D69: 0.03208676141
A70: VE8008533 | B70: 0.00775251584 | C70: 0.009206112561 | D70: 0.008237048081
A71: SB3338674 | B71: 0.006343843844 | C71: 0.006831831832 | D71: 0.006343843844
A72: SL2223216 | B72: 0.003882045539 | C72: 0.002911534155 | D72: 0.003396789847
A73: Tool 03 | B73: 4.740347477 | C73: 6.307772682 | D73: 5.113953566
A74: UV562824 | B74: 1.146647351 | C74: 1.639528146 | D74: 1.286548013
A75: UV5956413 | B75: 0.82505002 | C75: 1.18607443 | D75: 0.9280512205
A76: UV5947578 | B76: 0.8170821414 | C76: 1.057744177 | D76: 0.8686146302
A77: UV5362907 | B77: 0.6534673779 | C77: 0.3862125564 | D77: 0.4945014362
A78: CT3389630 | B78: 0.4308541071 | C78: 0.7071107479 | D78: 0.5232938292
A79: DP2404504 | B79: 0.3080894309 | C79: 0.5215853659 | D79: 0.3810162602
A80: UV5813627 | B80: 0.2139718076 | C80: 0.3578772803 | D80: 0.2624792703
A81: VE5219409 | B81: 0.1935054457 | C81: 0.2197256958 | D81: 0.1924566357
A82: UV2805946 | B82: 0.1431884058 | C82: 0.2260869565 | D82: 0.1701035197
A83: FR3966167 | B83: 0.004329725229 | C83: 0.002706078268 | D83: 0.003247293922
A84: UV5689814 | B84: 0.004161664666 | C84: 0.003121248499 | D84: 0.003641456583
A85: Tool 04 | B85: 122.7403048 | C85: 170.9440528 | D85: 114.8182021
A86: CC4945569 | B86: 22.03560372 | C86: 28.94268023 | D86: 23.60181336
A87: MP8026858 | B87: 18.65525965 | C87: 18.39906791 | D87: 17.32756325
A88: MP8104858 | B88: 18.15595135 | C88: 43.38227628 | D88: 12.42397915
A89: CT4394015 | B89: 14.17816143 | C89: 21.24596413 | D89: 13.03789238
A90: MP8061520 | B90: 13.04189845 | C90: 19.52582781 | D90: 15.01055188
A91: MP8004078 | B91: 8.648713476 | C91: 5.772612298 | D91: 6.834496293
A92: CC3609599 | B92: 8.445637584 | C92: 17.15592841 | D92: 9.608948546
A93: CC5387633 | B93: 6.847553381 | C93: 5.338211744 | D93: 5.74475089
A94: CM5947011 | B94: 6.827545692 | C94: 4.202654482 | D94: 5.24129678
A95: CC5805891 | B95: 1.314081456 | C95: 0.8234835355 | D95: 1.014991334
A96: CT0686710 | B96: 1.085315904 | C96: 1.647799564 | D96: 1.259215686
A97: MP8109471 | B97: 1.067877216 | C97: 1.520319931 | D97: 1.1948984
A98: FR066151 | B98: 0.7902525476 | C98: 1.352990696 | D98: 0.983207798
A99: CM2364748 | B99: 0.6383616831 | C99: 0.5638764548 | D99: 0.5644583706
A100: UV5494145 | B100: 0.2445772466 | C100: 0.1726427623 | D100: 0.1973882249
A101: ME8876987 | B101: 0.203301477 | C101: 0.1490877498 | D101: 0.1665942659
A102: CT5982395 | B102: 0.1605298608 | C102: 0.1733722497 | D102: 0.1558599012
A103: AB4133650 | B103: 0.1542372881 | C103: 0.1901873327 | D103: 0.1600356824
A104: AB6803301 | B104: 0.1472990777 | C104: 0.2420729029 | D104: 0.1787000439
A105: CC6069687 | B105: 0.07468682505 | C105: 0.1235421166 | D105: 0.09153347732
A106: AB1305109 | B106: 0.02345950704 | C106: 0.01945422535 | D106: 0.02002640845
A107: Tool 05 | B107: 112.8398995 | C107: 116.6611956 | D107: 107.1431315
A108: AS0125536 | B108: 62.83823767 | C108: 58.33500404 | D108: 56.78278092
A109: MC5625753 | B109: 19.83648316 | C109: 20.21676253 | D109: 18.70846343
A110: AS1143091 | B110: 7.836879433 | C110: 9.150197006 | D110: 7.896296296
A111: ZD173254 | B111: 7.422512235 | C111: 11.78907015 | D111: 8.837030995
A112: DA2128864 | B112: 4.10418311 | C112: 4.46124704 | D112: 3.991318074
A113: BC6306450 | B113: 3.833386709 | C113: 2.618734988 | D113: 3.055884708
A114: NU2754771 | B114: 3.782001552 | C114: 5.789992242 | D114: 4.408301009
A115: ZD1471989 | B115: 1.387351779 | C115: 2.19201581 | D115: 1.646324111
A116: ZD1446821 | B116: 0.8102952913 | C116: 0.6961691939 | D116: 0.7086193136
A117: IR539559 | B117: 0.3446656051 | C117: 0.5371815287 | D117: 0.4057324841
A118: AB3534415 | B118: 0.2677100494 | C118: 0.4197693575 | D118: 0.3158978583
A119: IP453302 | B119: 0.202020202 | C119: 0.3060606061 | D119: 0.2343434343
A120: MC5663542 | B120: 0.1741727199 | C120: 0.1489911219 | D120: 0.1521388216
A121: Tool 06 | B121: 10.08893926 | C121: 15.01940323 | D121: 11.57510574
A122: AL1492544 | B122: 4.944816451 | C122: 8.435418083 | D122: 6.140091774
A123: AS6815735 | B123: 2.585052343 | C123: 3.292946628 | D123: 2.724266346
A124: BC2509115 | B124: 1.484694578 | C124: 1.793188058 | D124: 1.52216884
A125: BC2465775 | B125: 0.5035756853 | C125: 0.6627277371 | D125: 0.5398774051
A126: BC1086722 | B126: 0.186546081 | C126: 0.2440999139 | D126: 0.1995348837
A127: BC1381899 | B127: 0.1864497245 | C127: 0.2952307163 | D127: 0.2215909091
A128: BC1638233 | B128: 0.07817371938 | C128: 0.1222717149 | D128: 0.09242761693
A129: BC2965316 | B129: 0.07382332879 | C129: 0.1217087312 | D129: 0.0897851296
A130: AB2665756 | B130: 0.03690781597 | C130: 0.04113220455 | D130: 0.03624080725
A131: BC5752252 | B131: 0.008899537909 | C131: 0.01067944549 | D131: 0.009122026356
A132: Tool 07 | B132: 12.01855122 | C132: 11.20638633 | D132: 10.88213805
A133: MP8189416 | B133: 5.928371659 | C133: 4.271659416 | D133: 4.821472965
A134: AB5677022 | B134: 2.756689273 | C134: 2.276803329 | D134: 2.36837238
A135: UV2195087 | B135: 1.295546559 | C135: 2.191093117 | D135: 1.600404858
A136: UV4665563 | B136: 0.6103819174 | C136: 1.04182385 | D136: 0.7583164458
A137: UV5555407 | B137: 0.2755314197 | C137: 0.4540418929 | D137: 0.3352366175
A138: CT823663 | B138: 0.2184145206 | C138: 0.1613403661 | D138: 0.1792894818
A139: AO855133 | B139: 0.2067222995 | C139: 0.2006954103 | D139: 0.190650595
A140: AP0171319 | B140: 0.2048521257 | C140: 0.2330868762 | D140: 0.2038508934
A141: AO5342652 | B141: 0.1797440699 | C141: 0.1129993758 | D141: 0.1389669164
A142: SB0898923 | B142: 0.1562885327 | C142: 0.1210234279 | D142: 0.1308415536
A143: AP3078837 | B143: 0.132665424 | C143: 0.09934762349 | D143: 0.1096458527
A144: AP5897782 | B144: 0.03364848109 | C144: 0.02478301302 | D144: 0.02760384377
A145: AP5614262 | B145: 0.009824182603 | C145: 0.007418260333 | D145: 0.008220234423
A146: UV6252256 | B146: 0.00665735568 | C146: 0.005850403476 | D146: 0.005850403476
A147: AP086256 | B147: 0.001612903226 | C147: 0.002419354839 | D147: 0.001814516129
A148: AP4972828 | B148: 0.001600492459 | C148: 0.002000615574 | D148: 0.001600492459
A149: Tool 08 | B149: 108.5916796 | C149: 120.7341186 | D149: 105.6342958
A150: CT3847465 | B150: 33.98045512 | C150: 26.18439949 | D150: 28.37484197
A151: ME8804901 | B151: 14.13935927 | C151: 23.99661836 | D151: 17.50322909
A152: CC5605066 | B152: 13.86446868 | C152: 16.75526249 | D152: 12.92351002
A153: CM2573429 | B153: 7.941908397 | C153: 5.804351145 | D153: 6.494707379
A154: ME8183894 | B154: 6.178459199 | C154: 8.005904714 | D154: 6.570172326
A155: CL4179003 | B155: 5.220144964 | C155: 6.836940765 | D155: 5.720194951
A156: ME8183059 | B156: 4.066248746 | C156: 5.409929789 | D156: 4.385381143
A157: ME8203838 | B157: 3.453512293 | C157: 2.926467637 | D157: 2.99919719
A158: ME8846873 | B158: 2.788033975 | C158: 2.571421434 | D158: 2.512315763
A159: CM3509051 | B159: 2.433130391 | C159: 3.019812278 | D159: 2.529426687
A160: ME8294469 | B160: 1.853371772 | C160: 2.977713713 | D160: 2.221308599
A161: CM2144500 | B161: 1.755609015 | C161: 2.800151937 | D161: 2.095340593
A162: ME8004064 | B162: 1.64265858 | C162: 1.471493556 | D162: 1.460980541
A163: ME8219605 | B163: 1.359225513 | C163: 2.140344217 | D163: 1.61027588
A164: ME8216708 | B164: 1.173520562 | C164: 1.819608826 | D164: 1.377908726
A165: ME8009107 | B165: 1.126994949 | C165: 1.355808081 | D165: 1.153257576
A166: ME8004536 | B166: 0.9769637462 | C166: 1.411933535 | D166: 1.102316213
A167: ME8182883 | B167: 0.8741660396 | C167: 0.7460245799 | D167: 0.7613493855
A168: ME8808939 | B168: 0.6495096807 | C168: 0.8603469952 | D168: 0.6988684938
A169: ME8144143 | B169: 0.5414217533 | C169: 0.5838733986 | D169: 0.5244410952
A170: ME8186457 | B170: 0.4403802852 | C170: 0.3018263698 | D170: 0.3512634476
A171: CM2146129 | B171: 0.4222109276 | C171: 0.6752731893 | D171: 0.5048030496
A172: ME8212034 | B172: 0.3691478697 | C172: 0.3913032581 | D172: 0.3548120301
A173: MC594145 | B173: 0.3313019391 | C173: 0.4003777386 | D173: 0.339813649
A174: ME8082434 | B174: 0.2287128713 | C174: 0.3283828383 | D174: 0.2574257426
A175: ME8809588 | B175: 0.2098373157 | C175: 0.2134722928 | D175: 0.1976105745
A176: ME8254069 | B176: 0.1648490997 | C176: 0.2011159016 | D176: 0.1697945727
A177: ME81564 | B177: 0.1376081425 | C177: 0.1726717557 | D177: 0.1438931298
A178: ME8314847 | B178: 0.1247064701 | C178: 0.1857606795 | D178: 0.1432175868
A179: ME8115997 | B179: 0.03714285714 | C179: 0.04477040816 | D179: 0.0381377551
A180: ME8007924 | B180: 0.03714285714 | C180: 0.04398496241 | D180: 0.03779448622
A181: ME8227923 | B181: 0.03674911661 | C181: 0.05610802625 | D181: 0.04265522463
A182: CM267912 | B182: 0.02942522889 | C182: 0.03901322482 | D182: 0.03173957274
A183: CM350886 | B183: 0.003302006604 | C183: 0.001651003302 | D183: 0.002311404623
A184: Tool 09 | B184: 106.9046011 | C184: 138.0778416 | D184: 113.4941448
A185: SL0979997 | B185: 21.37513711 | C185: 28.82815356 | D185: 23.22175503
A186: CP2759269 | B186: 18.31818182 | C186: 20.42396694 | D186: 18.04152893
A187: AF4955974 | B187: 14.37465347 | C187: 19.07267327 | D187: 15.4790099
A188: ST1025440 | B188: 11.34728682 | C188: 15.91996124 | D188: 12.59437984
A189: MT458935 | B189: 7.14484127 | C189: 9.682936508 | D189: 7.78452381
A190: AF4224863 | B190: 6.327115717 | C190: 8.844041451 | D190: 7.009671848
A191: MT0524796 | B191: 4.693852459 | C191: 7.237909836 | D191: 5.495696721
A192: UV0185671 | B192: 4.652351738 | C192: 4.062167689 | D192: 4.091411043
A193: UV251396 | B193: 3.79789272 | C193: 5.391762452 | D193: 4.243678161
A194: UV2198207 | B194: 3.179274611 | C194: 4.501727116 | D194: 3.547495682
A195: UV3287428 | B195: 2.766067864 | C195: 4.393013972 | D195: 3.292814371
A196: SS0108 | B196: 2.52 | C196: 2.82 | D196: 2.485
A197: UV1585237 | B197: 1.386998088 | C197: 0.8998087954 | D197: 1.08374761
A198: UV5762734 | B198: 1.256586271 | C198: 1.669016698 | D198: 1.353061224
A199: SL6949404 | B199: 0.9471766849 | C199: 0.8903460838 | D199: 0.8595628415
A200: UV2285856 | B200: 0.7554973822 | C200: 0.5354275742 | D200: 0.6102966841
... 316 more rows

Sheet Tools loading
A1: ='Tool time needed per product'!B1 -> Tool | B1: ='Tool time needed per product'!D1 -> Week1 | C1: ='Tool time needed per product'!E1 -> Week2 | D1: ='Tool time needed per product'!F1 -> Week3 | I1: ="Balance result for " & TimeBucketName -> Balance result for Week1
A2: Tool 01 | B2: ='Sum of needed tool time'!B2/'Tools avail'!B3 -> 0.7371433918 | C2: ='Sum of needed tool time'!C2/'Tools avail'!C3 -> 0.7487918134 | D2: ='Sum of needed tool time'!D2/'Tools avail'!D3 -> 0.6941370671 | I2: 0.7371433918
A3: Tool2 | B3: ='Sum of needed tool time'!B3/'Tools avail'!B4 -> 0.475632805 | C3: ='Sum of needed tool time'!C3/'Tools avail'!C4 -> 0.5611753772 | D3: ='Sum of needed tool time'!D3/'Tools avail'!D4 -> 0.481824664 | I3: 0.475632805
A4: Tool 03 | B4: ='Sum of needed tool time'!B4/'Tools avail'!B5 -> 0.05095199807 | C4: ='Sum of needed tool time'!C4/'Tools avail'!C5 -> 0.06779959128 | D4: ='Sum of needed tool time'!D4/'Tools avail'!D5 -> 0.05496773252 | I4: 0.05095199807
A5: Tool 04 | B5: ='Sum of needed tool time'!B5/'Tools avail'!B6 -> 1.240964015 | C5: ='Sum of needed tool time'!C5/'Tools avail'!C6 -> 1.728327288 | D5: ='Sum of needed tool time'!D5/'Tools avail'!D6 -> 1.160867714 | I5: 0.7648133831 | S5: This is the first result sheet:
A6: Tool 05 | B6: ='Sum of needed tool time'!B6/'Tools avail'!B7 -> 0.9982445417 | C6: ='Sum of needed tool time'!C6/'Tools avail'!C7 -> 1.032049853 | D6: ='Sum of needed tool time'!D6/'Tools avail'!D7 -> 0.9478477615 | I6: 0.9982445417
A7: Tool 06 | B7: ='Sum of needed tool time'!B7/'Tools avail'!B8 -> 0.1049012839 | C7: ='Sum of needed tool time'!C7/'Tools avail'!C8 -> 0.1561665346 | D7: ='Sum of needed tool time'!D7/'Tools avail'!D8 -> 0.1203539264 | I7: 0.1049012839
A8: Tool 07 | B8: ='Sum of needed tool time'!B8/'Tools avail'!B9 -> 0.134481659 | C8: ='Sum of needed tool time'!C8/'Tools avail'!C9 -> 0.1253939346 | D8: ='Sum of needed tool time'!D8/'Tools avail'!D9 -> 0.1217657563 | I8: 0.134481659
A9: Tool 08 | B9: ='Sum of needed tool time'!B9/'Tools avail'!B10 -> 0.6284240719 | C9: ='Sum of needed tool time'!C9/'Tools avail'!C10 -> 0.6986928159 | D9: ='Sum of needed tool time'!D9/'Tools avail'!D10 -> 0.6113095824 | I9: 0.6284240719
A10: Tool 09 | B10: ='Sum of needed tool time'!B10/'Tools avail'!B11 -> 0.9367781396 | C10: ='Sum of needed tool time'!C10/'Tools avail'!C11 -> 1.209941408 | D10: ='Sum of needed tool time'!D10/'Tools avail'!D11 -> 0.9945206543 | I10: 0.9367781396
A11: Tool 10 | B11: ='Sum of needed tool time'!B11/'Tools avail'!B12 -> 0.9103242294 | C11: ='Sum of needed tool time'!C11/'Tools avail'!C12 -> 1.168415119 | D11: ='Sum of needed tool time'!D11/'Tools avail'!D12 -> 0.967073011 | I11: 0.9103242294
A12: Tool 11 | B12: ='Sum of needed tool time'!B12/'Tools avail'!B13 -> 1.264179335 | C12: ='Sum of needed tool time'!C12/'Tools avail'!C13 -> 1.636166651 | D12: ='Sum of needed tool time'!D12/'Tools avail'!D13 -> 1.43151773 | I12: 0.9233662368
A13: Tool 12 | B13: ='Sum of needed tool time'!B13/'Tools avail'!B14 -> 0.1645972291 | C13: ='Sum of needed tool time'!C13/'Tools avail'!C14 -> 0.2081175851 | D13: ='Sum of needed tool time'!D13/'Tools avail'!D14 -> 0.172794259 | I13: 0.3317890575
A14: Tool 13 | B14: ='Sum of needed tool time'!B14/'Tools avail'!B15 -> 0.1727404784 | C14: ='Sum of needed tool time'!C14/'Tools avail'!C15 -> 0.1568113691 | D14: ='Sum of needed tool time'!D14/'Tools avail'!D15 -> 0.1545694743 | I14: 0.8390159844
A15: Tool 14 | B15: ='Sum of needed tool time'!B15/'Tools avail'!B16 -> 0.4816500167 | C15: ='Sum of needed tool time'!C15/'Tools avail'!C16 -> 0.630912099 | D15: ='Sum of needed tool time'!D15/'Tools avail'!D16 -> 0.5151734667 | I15: 0.4816500167
A16: Tool 15 | B16: ='Sum of needed tool time'!B16/'Tools avail'!B17 -> 0.6386206503 | C16: ='Sum of needed tool time'!C16/'Tools avail'!C17 -> 0.7652192735 | D16: ='Sum of needed tool time'!D16/'Tools avail'!D17 -> 0.6520446112 | I16: 0.6386206503
A17: Tool 16 | B17: ='Sum of needed tool time'!B17/'Tools avail'!B18 -> 0.1590624599 | C17: ='Sum of needed tool time'!C17/'Tools avail'!C18 -> 0.1859956718 | D17: ='Sum of needed tool time'!D17/'Tools avail'!D18 -> 0.1604075695 | I17: 0.1590624599
A18: Tool 17 | B18: ='Sum of needed tool time'!B18/'Tools avail'!B19 -> 0.280932313 | C18: ='Sum of needed tool time'!C18/'Tools avail'!C19 -> 0.3830743362 | D18: ='Sum of needed tool time'!D18/'Tools avail'!D19 -> 0.2996127665 | I18: 0.4319851539
A19: Tool 18 | B19: ='Sum of needed tool time'!B19/'Tools avail'!B20 -> 1.616127036 | C19: ='Sum of needed tool time'!C19/'Tools avail'!C20 -> 1.783922062 | D19: ='Sum of needed tool time'!D19/'Tools avail'!D20 -> 1.583700002 | I19: 1.260159794
A20: Tool 19 | B20: ='Sum of needed tool time'!B20/'Tools avail'!B21 -> 0.5465318397 | C20: ='Sum of needed tool time'!C20/'Tools avail'!C21 -> 0.6103170806 | D20: ='Sum of needed tool time'!D20/'Tools avail'!D21 -> 0.53862425 | I20: 0.5465318397
A21: Tool 20 | B21: ='Sum of needed tool time'!B21/'Tools avail'!B22 -> 0.3720573763 | C21: ='Sum of needed tool time'!C21/'Tools avail'!C22 -> 0.4370579741 | D21: ='Sum of needed tool time'!D21/'Tools avail'!D22 -> 0.376057482 | I21: 0.3720573763

Sheet What products need tool change
A1: Product | B1: Main tool | C1: New tool
A2: AB1305109 | B2: Tool 04 | C2: Tool 17
A3: AB4133650 | B3: Tool 04 | C3: Tool 17
A4: AB617476 | B4: Tool 18 | C4: Tool 13
A5: AB6803301 | B5: Tool 04 | C5: Tool 17
A6: AO4874959 | B6: Tool 18 | C6: Tool 13
A7: CC3609599 | B7: Tool 04 | C7: Tool 17
A8: CC4618183 | B8: Tool 18 | C8: Tool 13
A9: CC4945569 | B9: Tool 04 | C9: Tool 17
A10: CC5387633 | B10: Tool 04 | C10: Tool 17
A11: CC5805891 | B11: Tool 04 | C11: Tool 17
A12: CC6069687 | B12: Tool 04 | C12: Tool 17
A13: CT0686710 | B13: Tool 04 | C13: Tool 17
A14: CT2356543 | B14: Tool 18 | C14: Tool 13
A15: CT2727204 | B15: Tool 11 | C15: Tool 12
A16: CT2899279 | B16: Tool 11 | C16: Tool 12
A17: CT2976643 | B17: Tool 18 | C17: Tool 13
A18: CT4394015 | B18: Tool 04 | C18: Tool 17
A19: CT4625235 | B19: Tool 11 | C19: Tool 12
A20: CT5594793 | B20: Tool 18 | C20: Tool 13
A21: CT5829315 | B21: Tool 18 | C21: Tool 13
A22: CT588550 | B22: Tool 11 | C22: Tool 12
A23: DP638679 | B23: Tool 18 | C23: Tool 13
A24: FR1452826 | B24: Tool 18 | C24: Tool 13
A25: FR457233 | B25: Tool 18 | C25: Tool 13
A26: GF67655 | B26: Tool 11 | C26: Tool 12
A27: MC3543546 | B27: Tool 11 | C27: Tool 12
A28: MC4244977 | B28: Tool 11 | C28: Tool 12
A29: ME8164351 | B29: Tool 11 | C29: Tool 12
A30: NU3927324 | B30: Tool 11 | C30: Tool 12
A31: UV3281153 | B31: Tool 11 | C31: Tool 12

Sheet Balanced Time Per Product
A1: =Orders!A2 -> Product | B1: Tool | C1: UPH | D1: Balanced column
A2: =Orders!A3 -> AB0329160 | B2: =VLOOKUP(A2,'Product-tool'!A:E,5,0) -> Tool 10 | C2: =VLOOKUP(A2&B2,'Standard output'!A:D,4,0) -> 1553 | D2: =INDEX(Orders!A:D,ROW()+1,FindCol("orders",2,TimeBucketName))/$C2 -> 7.115260786
A3: =Orders!A4 -> AB0513704 | B3: =VLOOKUP(A3,'Product-tool'!A:E,5,0) -> Tool 10 | C3: =VLOOKUP(A3&B3,'Standard output'!A:D,4,0) -> 1646 | D3: =INDEX(Orders!A:D,ROW()+1,FindCol("orders",2,TimeBucketName))/$C3 -> 0.06555285541
A4: =Orders!A5 -> AB0635046 | B4: =VLOOKUP(A4,'Product-tool'!A:E,5,0) -> Tool 10 | C4: =VLOOKUP(A4&B4,'Standard output'!A:D,4,0) -> 1628 | D4: =INDEX(Orders!A:D,ROW()+1,FindCol("orders",2,TimeBucketName))/$C4 -> 2.016277641
A5: =Orders!A6 -> AB0975463 | B5: =VLOOKUP(A5,'Product-tool'!A:E,5,0) -> Tool 09 | C5: =VLOOKUP(A5&B5,'Standard output'!A:D,4,0) -> 491 | D5: =INDEX(Orders!A:D,ROW()+1,FindCol("orders",2,TimeBucketName))/$C5 -> 0.7042769857
A6: =Orders!A7 -> AB1018910 | B6: =VLOOKUP(A6,'Product-tool'!A:E,5,0) -> Tool 10 | C6: =VLOOKUP(A6&B6,'Standard output'!A:D,4,0) -> 1608 | D6: =INDEX(Orders!A:D,ROW()+1,FindCol("orders",2,TimeBucketName))/$C6 -> 2.365547264
A7: =Orders!A8 -> AB1305109 | B7: =VLOOKUP(A7,'Product-tool'!A:E,5,0) -> Tool 17 | C7: =VLOOKUP(A7&B7,'Standard output'!A:D,4,0) -> 6879 | D7: =INDEX(Orders!A:D,ROW()+1,FindCol("orders",2,TimeBucketName))/$C7 -> 0.007748219218
A8: =Orders!A9 -> AB2092362 | B8: =VLOOKUP(A8,'Product-tool'!A:E,5,0) -> Tool 10 | C8: =VLOOKUP(A8&B8,'Standard output'!A:D,4,0) -> 1631 | D8: =INDEX(Orders!A:D,ROW()+1,FindCol("orders",2,TimeBucketName))/$C8 -> 7.050766401
A9: =Orders!A10 -> AB2569538 | B9: =VLOOKUP(A9,'Product-tool'!A:E,5,0) -> Tool 10 | C9: =VLOOKUP(A9&B9,'Standard output'!A:D,4,0) -> 1616 | D9: =INDEX(Orders!A:D,ROW()+1,FindCol("orders",2,TimeBucketName))/$C9 -> 1.811633663
A10: =Orders!A11 -> AB2665756 | B10: =VLOOKUP(A10,'Product-tool'!A:E,5,0) -> Tool 06 | C10: =VLOOKUP(A10&B10,'Standard output'!A:D,4,0) -> 5847 | D10: =INDEX(Orders!A:D,ROW()+1,FindCol("orders",2,TimeBucketName))/$C10 -> 0.03690781597
A11: =Orders!A12 -> AB3534415 | B11: =VLOOKUP(A11,'Product-tool'!A:E,5,0) -> Tool 05 | C11: =VLOOKUP(A11&B11,'Standard output'!A:D,4,0) -> 1214 | D11: =INDEX(Orders!A:D,ROW()+1,FindCol("orders",2,TimeBucketName))/$C11 -> 0.2677100494
A12: =Orders!A13 -> AB3839653 | B12: =VLOOKUP(A12,'Product-tool'!A:E,5,0) -> Tool 10 | C12: =VLOOKUP(A12&B12,'Standard output'!A:D,4,0) -> 1581 | D12: =INDEX(Orders!A:D,ROW()+1,FindCol("orders",2,TimeBucketName))/$C12 -> 1.918342821
A13: =Orders!A14 -> AB4133650 | B13: =VLOOKUP(A13,'Product-tool'!A:E,5,0) -> Tool 17 | C13: =VLOOKUP(A13&B13,'Standard output'!A:D,4,0) -> 6871 | D13: =INDEX(Orders!A:D,ROW()+1,FindCol("orders",2,TimeBucketName))/$C13 -> 0.05032746325
A14: =Orders!A15 -> AB4302436 | B14: =VLOOKUP(A14,'Product-tool'!A:E,5,0) -> Tool 10 | C14: =VLOOKUP(A14&B14,'Standard output'!A:D,4,0) -> 1560 | D14: =INDEX(Orders!A:D,ROW()+1,FindCol("orders",2,TimeBucketName))/$C14 -> 3.048333333
A15: =Orders!A16 -> AB4952945 | B15: =VLOOKUP(A15,'Product-tool'!A:E,5,0) -> Tool 16 | C15: =VLOOKUP(A15&B15,'Standard output'!A:D,4,0) -> 6802 | D15: =INDEX(Orders!A:D,ROW()+1,FindCol("orders",2,TimeBucketName))/$C15 -> 0.1286239341
A16: =Orders!A17 -> AB5677022 | B16: =VLOOKUP(A16,'Product-tool'!A:E,5,0) -> Tool 07 | C16: =VLOOKUP(A16&B16,'Standard output'!A:D,4,0) -> 6488 | D16: =INDEX(Orders!A:D,ROW()+1,FindCol("orders",2,TimeBucketName))/$C16 -> 2.756689273
A17: =Orders!A18 -> AB617476 | B17: =VLOOKUP(A17,'Product-tool'!A:E,5,0) -> Tool 13 | C17: =VLOOKUP(A17&B17,'Standard output'!A:D,4,0) -> 2460 | D17: =INDEX(Orders!A:D,ROW()+1,FindCol("orders",2,TimeBucketName))/$C17 -> 0.008455284553
A18: =Orders!A19 -> AB6803301 | B18: =VLOOKUP(A18,'Product-tool'!A:E,5,0) -> Tool 17 | C18: =VLOOKUP(A18&B18,'Standard output'!A:D,4,0) -> 6822 | D18: =INDEX(Orders!A:D,ROW()+1,FindCol("orders",2,TimeBucketName))/$C18 -> 0.0491644679
A19: =Orders!A20 -> AB6883086 | B19: =VLOOKUP(A19,'Product-tool'!A:E,5,0) -> Tool 09 | C19: =VLOOKUP(A19&B19,'Standard output'!A:D,4,0) -> 554 | D19: =INDEX(Orders!A:D,ROW()+1,FindCol("orders",2,TimeBucketName))/$C19 -> 0.171299639
A20: =Orders!A21 -> AF2334989 | B20: =VLOOKUP(A20,'Product-tool'!A:E,5,0) -> Tool 17 | C20: =VLOOKUP(A20&B20,'Standard output'!A:D,4,0) -> 6837 | D20: =INDEX(Orders!A:D,ROW()+1,FindCol("orders",2,TimeBucketName))/$C20 -> 23.00716689
A21: =Orders!A22 -> AF2797300 | B21: =VLOOKUP(A21,'Product-tool'!A:E,5,0) -> Tool 09 | C21: =VLOOKUP(A21&B21,'Standard output'!A:D,4,0) -> 538 | D21: =INDEX(Orders!A:D,ROW()+1,FindCol("orders",2,TimeBucketName))/$C21 -> 0.4204460967
A22: =Orders!A23 -> AF4224863 | B22: =VLOOKUP(A22,'Product-tool'!A:E,5,0) -> Tool 09 | C22: =VLOOKUP(A22&B22,'Standard output'!A:D,4,0) -> 579 | D22: =INDEX(Orders!A:D,ROW()+1,FindCol("orders",2,TimeBucketName))/$C22 -> 6.327115717
A23: =Orders!A24 -> AF4955974 | B23: =VLOOKUP(A23,'Product-tool'!A:E,5,0) -> Tool 09 | C23: =VLOOKUP(A23&B23,'Standard output'!A:D,4,0) -> 505 | D23: =INDEX(Orders!A:D,ROW()+1,FindCol("orders",2,TimeBucketName))/$C23 -> 14.37465347
A24: =Orders!A25 -> AF5847200 | B24: =VLOOKUP(A24,'Product-tool'!A:E,5,0) -> Tool 15 | C24: =VLOOKUP(A24&B24,'Standard output'!A:D,4,0) -> 4457 | D24: =INDEX(Orders!A:D,ROW()+1,FindCol("orders",2,TimeBucketName))/$C24 -> 0.0898362127
A25: =Orders!A26 -> AL1492544 | B25: =VLOOKUP(A25,'Product-tool'!A:E,5,0) -> Tool 06 | C25: =VLOOKUP(A25&B25,'Standard output'!A:D,4,0) -> 5884 | D25: =INDEX(Orders!A:D,ROW()+1,FindCol("orders",2,TimeBucketName))/$C25 -> 4.944816451
A26: =Orders!A27 -> AL2661736 | B26: =VLOOKUP(A26,'Product-tool'!A:E,5,0) -> Tool 15 | C26: =VLOOKUP(A26&B26,'Standard output'!A:D,4,0) -> 4446 | D26: =INDEX(Orders!A:D,ROW()+1,FindCol("orders",2,TimeBucketName))/$C26 -> 0.08450292398
A27: =Orders!A28 -> AO0324556 | B27: =VLOOKUP(A27,'Product-tool'!A:E,5,0) -> Tool 16 | C27: =VLOOKUP(A27&B27,'Standard output'!A:D,4,0) -> 6866 | D27: =INDEX(Orders!A:D,ROW()+1,FindCol("orders",2,TimeBucketName))/$C27 -> 0.008330905913
A28: =Orders!A29 -> AO0414069 | B28: =VLOOKUP(A28,'Product-tool'!A:E,5,0) -> Tool 02 | C28: =VLOOKUP(A28&B28,'Standard output'!A:D,4,0) -> 2673 | D28: =INDEX(Orders!A:D,ROW()+1,FindCol("orders",2,TimeBucketName))/$C28 -> 0.1133183689
A29: =Orders!A30 -> AO2105290 | B29: =VLOOKUP(A29,'Product-tool'!A:E,5,0) -> Tool 15 | C29: =VLOOKUP(A29&B29,'Standard output'!A:D,4,0) -> 4418 | D29: =INDEX(Orders!A:D,ROW()+1,FindCol("orders",2,TimeBucketName))/$C29 -> 0.8439112721
A30: =Orders!A31 -> AO4874959 | B30: =VLOOKUP(A30,'Product-tool'!A:E,5,0) -> Tool 13 | C30: =VLOOKUP(A30&B30,'Standard output'!A:D,4,0) -> 2405 | D30: =INDEX(Orders!A:D,ROW()+1,FindCol("orders",2,TimeBucketName))/$C30 -> 1.173513514
A31: =Orders!A32 -> AO5342652 | B31: =VLOOKUP(A31,'Product-tool'!A:E,5,0) -> Tool 07 | C31: =VLOOKUP(A31&B31,'Standard output'!A:D,4,0) -> 6408 | D31: =INDEX(Orders!A:D,ROW()+1,FindCol("orders",2,TimeBucketName))/$C31 -> 0.1797440699
A32: =Orders!A33 -> AO5834357 | B32: =VLOOKUP(A32,'Product-tool'!A:E,5,0) -> Tool 15 | C32: =VLOOKUP(A32&B32,'Standard output'!A:D,4,0) -> 4429 | D32: =INDEX(Orders!A:D,ROW()+1,FindCol("orders",2,TimeBucketName))/$C32 -> 0.828606909
A33: =Orders!A34 -> AO8517171 | B33: =VLOOKUP(A33,'Product-tool'!A:E,5,0) -> Tool 14 | C33: =VLOOKUP(A33&B33,'Standard output'!A:D,4,0) -> 2377 | D33: =INDEX(Orders!A:D,ROW()+1,FindCol("orders",2,TimeBucketName))/$C33 -> 0.008750525873
A34: =Orders!A35 -> AO855133 | B34: =VLOOKUP(A34,'Product-tool'!A:E,5,0) -> Tool 07 | C34: =VLOOKUP(A34&B34,'Standard output'!A:D,4,0) -> 6471 | D34: =INDEX(Orders!A:D,ROW()+1,FindCol("orders",2,TimeBucketName))/$C34 -> 0.2067222995
A35: =Orders!A36 -> AP0171319 | B35: =VLOOKUP(A35,'Product-tool'!A:E,5,0) -> Tool 07 | C35: =VLOOKUP(A35&B35,'Standard output'!A:D,4,0) -> 6492 | D35: =INDEX(Orders!A:D,ROW()+1,FindCol("orders",2,TimeBucketName))/$C35 -> 0.2048521257
A36: =Orders!A37 -> AP0202155 | B36: =VLOOKUP(A36,'Product-tool'!A:E,5,0) -> Tool 15 | C36: =VLOOKUP(A36&B36,'Standard output'!A:D,4,0) -> 4426 | D36: =INDEX(Orders!A:D,ROW()+1,FindCol("orders",2,TimeBucketName))/$C36 -> 1.621328513
A37: =Orders!A38 -> AP086256 | B37: =VLOOKUP(A37,'Product-tool'!A:E,5,0) -> Tool 07 | C37: =VLOOKUP(A37&B37,'Standard output'!A:D,4,0) -> 6448 | D37: =INDEX(Orders!A:D,ROW()+1,FindCol("orders",2,TimeBucketName))/$C37 -> 0.001612903226
A38: =Orders!A39 -> AP242884 | B38: =VLOOKUP(A38,'Product-tool'!A:E,5,0) -> Tool 16 | C38: =VLOOKUP(A38&B38,'Standard output'!A:D,4,0) -> 6871 | D38: =INDEX(Orders!A:D,ROW()+1,FindCol("orders",2,TimeBucketName))/$C38 -> 1.005035657
A39: =Orders!A40 -> AP3078837 | B39: =VLOOKUP(A39,'Product-tool'!A:E,5,0) -> Tool 07 | C39: =VLOOKUP(A39&B39,'Standard output'!A:D,4,0) -> 6438 | D39: =INDEX(Orders!A:D,ROW()+1,FindCol("orders",2,TimeBucketName))/$C39 -> 0.132665424
A40: =Orders!A41 -> AP352983 | B40: =VLOOKUP(A40,'Product-tool'!A:E,5,0) -> Tool 17 | C40: =VLOOKUP(A40&B40,'Standard output'!A:D,4,0) -> 6884 | D40: =INDEX(Orders!A:D,ROW()+1,FindCol("orders",2,TimeBucketName))/$C40 -> 1.153457292
A41: =Orders!A42 -> AP3728500 | B41: =VLOOKUP(A41,'Product-tool'!A:E,5,0) -> Tool 02 | C41: =VLOOKUP(A41&B41,'Standard output'!A:D,4,0) -> 2647 | D41: =INDEX(Orders!A:D,ROW()+1,FindCol("orders",2,TimeBucketName))/$C41 -> 0.9071023801
A42: =Orders!A43 -> AP3951566 | B42: =VLOOKUP(A42,'Product-tool'!A:E,5,0) -> Tool 02 | C42: =VLOOKUP(A42&B42,'Standard output'!A:D,4,0) -> 2668 | D42: =INDEX(Orders!A:D,ROW()+1,FindCol("orders",2,TimeBucketName))/$C42 -> 0.4872563718
A43: =Orders!A44 -> AP4223947 | B43: =VLOOKUP(A43,'Product-tool'!A:E,5,0) -> Tool 02 | C43: =VLOOKUP(A43&B43,'Standard output'!A:D,4,0) -> 2623 | D43: =INDEX(Orders!A:D,ROW()+1,FindCol("orders",2,TimeBucketName))/$C43 -> 0.717651544
A44: =Orders!A45 -> AP4745289 | B44: =VLOOKUP(A44,'Product-tool'!A:E,5,0) -> Tool 02 | C44: =VLOOKUP(A44&B44,'Standard output'!A:D,4,0) -> 2609 | D44: =INDEX(Orders!A:D,ROW()+1,FindCol("orders",2,TimeBucketName))/$C44 -> 0.03288616328
A45: =Orders!A46 -> AP4972828 | B45: =VLOOKUP(A45,'Product-tool'!A:E,5,0) -> Tool 07 | C45: =VLOOKUP(A45&B45,'Standard output'!A:D,4,0) -> 6498 | D45: =INDEX(Orders!A:D,ROW()+1,FindCol("orders",2,TimeBucketName))/$C45 -> 0.001600492459
A46: =Orders!A47 -> AP5614262 | B46: =VLOOKUP(A46,'Product-tool'!A:E,5,0) -> Tool 07 | C46: =VLOOKUP(A46&B46,'Standard output'!A:D,4,0) -> 6484 | D46: =INDEX(Orders!A:D,ROW()+1,FindCol("orders",2,TimeBucketName))/$C46 -> 0.009824182603
A47: =Orders!A48 -> AP5647883 | B47: =VLOOKUP(A47,'Product-tool'!A:E,5,0) -> Tool 15 | C47: =VLOOKUP(A47&B47,'Standard output'!A:D,4,0) -> 4419 | D47: =INDEX(Orders!A:D,ROW()+1,FindCol("orders",2,TimeBucketName))/$C47 -> 1.525639285
A48: =Orders!A49 -> AP5897782 | B48: =VLOOKUP(A48,'Product-tool'!A:E,5,0) -> Tool 07 | C48: =VLOOKUP(A48&B48,'Standard output'!A:D,4,0) -> 6452 | D48: =INDEX(Orders!A:D,ROW()+1,FindCol("orders",2,TimeBucketName))/$C48 -> 0.03364848109
A49: =Orders!A50 -> AP853615 | B49: =VLOOKUP(A49,'Product-tool'!A:E,5,0) -> Tool 13 | C49: =VLOOKUP(A49&B49,'Standard output'!A:D,4,0) -> 2423 | D49: =INDEX(Orders!A:D,ROW()+1,FindCol("orders",2,TimeBucketName))/$C49 -> 0.2687990095
A50: =Orders!A51 -> AS0105077 | B50: =VLOOKUP(A50,'Product-tool'!A:E,5,0) -> Tool 12 | C50: =VLOOKUP(A50&B50,'Standard output'!A:D,4,0) -> 4006 | D50: =INDEX(Orders!A:D,ROW()+1,FindCol("orders",2,TimeBucketName))/$C50 -> 0.6727159261
A51: =Orders!A52 -> AS0125536 | B51: =VLOOKUP(A51,'Product-tool'!A:E,5,0) -> Tool 05 | C51: =VLOOKUP(A51&B51,'Standard output'!A:D,4,0) -> 1237 | D51: =INDEX(Orders!A:D,ROW()+1,FindCol("orders",2,TimeBucketName))/$C51 -> 62.83823767
A52: =Orders!A53 -> AS0888075 | B52: =VLOOKUP(A52,'Product-tool'!A:E,5,0) -> Tool 13 | C52: =VLOOKUP(A52&B52,'Standard output'!A:D,4,0) -> 2458 | D52: =INDEX(Orders!A:D,ROW()+1,FindCol("orders",2,TimeBucketName))/$C52 -> 2.136696501
A53: =Orders!A54 -> AS1143091 | B53: =VLOOKUP(A53,'Product-tool'!A:E,5,0) -> Tool 05 | C53: =VLOOKUP(A53&B53,'Standard output'!A:D,4,0) -> 1269 | D53: =INDEX(Orders!A:D,ROW()+1,FindCol("orders",2,TimeBucketName))/$C53 -> 7.836879433
A54: =Orders!A55 -> AS5378181 | B54: =VLOOKUP(A54,'Product-tool'!A:E,5,0) -> Tool 13 | C54: =VLOOKUP(A54&B54,'Standard output'!A:D,4,0) -> 2493 | D54: =INDEX(Orders!A:D,ROW()+1,FindCol("orders",2,TimeBucketName))/$C54 -> 0.2320497393
A55: =Orders!A56 -> AS6815735 | B55: =VLOOKUP(A55,'Product-tool'!A:E,5,0) -> Tool 06 | C55: =VLOOKUP(A55&B55,'Standard output'!A:D,4,0) -> 5827 | D55: =INDEX(Orders!A:D,ROW()+1,FindCol("orders",2,TimeBucketName))/$C55 -> 2.585052343
A56: =Orders!A57 -> BC1086722 | B56: =VLOOKUP(A56,'Product-tool'!A:E,5,0) -> Tool 06 | C56: =VLOOKUP(A56&B56,'Standard output'!A:D,4,0) -> 5805 | D56: =INDEX(Orders!A:D,ROW()+1,FindCol("orders",2,TimeBucketName))/$C56 -> 0.186546081
A57: =Orders!A58 -> BC1381899 | B57: =VLOOKUP(A57,'Product-tool'!A:E,5,0) -> Tool 06 | C57: =VLOOKUP(A57&B57,'Standard output'!A:D,4,0) -> 5808 | D57: =INDEX(Orders!A:D,ROW()+1,FindCol("orders",2,TimeBucketName))/$C57 -> 0.1864497245
A58: =Orders!A59 -> BC1638233 | B58: =VLOOKUP(A58,'Product-tool'!A:E,5,0) -> Tool 06 | C58: =VLOOKUP(A58&B58,'Standard output'!A:D,4,0) -> 5837 | D58: =INDEX(Orders!A:D,ROW()+1,FindCol("orders",2,TimeBucketName))/$C58 -> 0.07817371938
A59: =Orders!A60 -> BC2465775 | B59: =VLOOKUP(A59,'Product-tool'!A:E,5,0) -> Tool 06 | C59: =VLOOKUP(A59&B59,'Standard output'!A:D,4,0) -> 5873 | D59: =INDEX(Orders!A:D,ROW()+1,FindCol("orders",2,TimeBucketName))/$C59 -> 0.5035756853
A60: =Orders!A61 -> BC2509115 | B60: =VLOOKUP(A60,'Product-tool'!A:E,5,0) -> Tool 06 | C60: =VLOOKUP(A60&B60,'Standard output'!A:D,4,0) -> 5828 | D60: =INDEX(Orders!A:D,ROW()+1,FindCol("orders",2,TimeBucketName))/$C60 -> 1.484694578
A61: =Orders!A62 -> BC2965316 | B61: =VLOOKUP(A61,'Product-tool'!A:E,5,0) -> Tool 06 | C61: =VLOOKUP(A61&B61,'Standard output'!A:D,4,0) -> 5864 | D61: =INDEX(Orders!A:D,ROW()+1,FindCol("orders",2,TimeBucketName))/$C61 -> 0.07382332879
A62: =Orders!A63 -> BC3857293 | B62: =VLOOKUP(A62,'Product-tool'!A:E,5,0) -> Tool 15 | C62: =VLOOKUP(A62&B62,'Standard output'!A:D,4,0) -> 4476 | D62: =INDEX(Orders!A:D,ROW()+1,FindCol("orders",2,TimeBucketName))/$C62 -> 0.08190348525
A63: =Orders!A64 -> BC5752252 | B63: =VLOOKUP(A63,'Product-tool'!A:E,5,0) -> Tool 06 | C63: =VLOOKUP(A63&B63,'Standard output'!A:D,4,0) -> 5843 | D63: =INDEX(Orders!A:D,ROW()+1,FindCol("orders",2,TimeBucketName))/$C63 -> 0.008899537909
A64: =Orders!A65 -> BC6306450 | B64: =VLOOKUP(A64,'Product-tool'!A:E,5,0) -> Tool 05 | C64: =VLOOKUP(A64&B64,'Standard output'!A:D,4,0) -> 1249 | D64: =INDEX(Orders!A:D,ROW()+1,FindCol("orders",2,TimeBucketName))/$C64 -> 3.833386709
A65: =Orders!A66 -> CC0084549 | B65: =VLOOKUP(A65,'Product-tool'!A:E,5,0) -> Tool 12 | C65: =VLOOKUP(A65&B65,'Standard output'!A:D,4,0) -> 4031 | D65: =INDEX(Orders!A:D,ROW()+1,FindCol("orders",2,TimeBucketName))/$C65 -> 2.362962044
A66: =Orders!A67 -> CC0189122 | B66: =VLOOKUP(A66,'Product-tool'!A:E,5,0) -> Tool 20 | C66: =VLOOKUP(A66&B66,'Standard output'!A:D,4,0) -> 7862.642235 | D66: =INDEX(Orders!A:D,ROW()+1,FindCol("orders",2,TimeBucketName))/$C66 -> 0.5952197569
A67: =Orders!A68 -> CC0921636 | B67: =VLOOKUP(A67,'Product-tool'!A:E,5,0) -> Tool 20 | C67: =VLOOKUP(A67&B67,'Standard output'!A:D,4,0) -> 7933.642235 | D67: =INDEX(Orders!A:D,ROW()+1,FindCol("orders",2,TimeBucketName))/$C67 -> 3.74483738
A68: =Orders!A69 -> CC092903 | B68: =VLOOKUP(A68,'Product-tool'!A:E,5,0) -> Tool 20 | C68: =VLOOKUP(A68&B68,'Standard output'!A:D,4,0) -> 7930.642235 | D68: =INDEX(Orders!A:D,ROW()+1,FindCol("orders",2,TimeBucketName))/$C68 -> 0.001311369205
A69: =Orders!A70 -> CC2454697 | B69: =VLOOKUP(A69,'Product-tool'!A:E,5,0) -> Tool 20 | C69: =VLOOKUP(A69&B69,'Standard output'!A:D,4,0) -> 7849.642235 | D69: =INDEX(Orders!A:D,ROW()+1,FindCol("orders",2,TimeBucketName))/$C69 -> 0.7399572906
A70: =Orders!A71 -> CC2566445 | B70: =VLOOKUP(A70,'Product-tool'!A:E,5,0) -> Tool 15 | C70: =VLOOKUP(A70&B70,'Standard output'!A:D,4,0) -> 4481 | D70: =INDEX(Orders!A:D,ROW()+1,FindCol("orders",2,TimeBucketName))/$C70 -> 3.76915867
A71: =Orders!A72 -> CC2575 | B71: =VLOOKUP(A71,'Product-tool'!A:E,5,0) -> Tool 19 | C71: =VLOOKUP(A71&B71,'Standard output'!A:D,4,0) -> 10239 | D71: =INDEX(Orders!A:D,ROW()+1,FindCol("orders",2,TimeBucketName))/$C71 -> 6.118595566
A72: =Orders!A73 -> CC2936183 | B72: =VLOOKUP(A72,'Product-tool'!A:E,5,0) -> Tool 20 | C72: =VLOOKUP(A72&B72,'Standard output'!A:D,4,0) -> 7918.642235 | D72: =INDEX(Orders!A:D,ROW()+1,FindCol("orders",2,TimeBucketName))/$C72 -> 0.4925086756
A73: =Orders!A74 -> CC2965217 | B73: =VLOOKUP(A73,'Product-tool'!A:E,5,0) -> Tool 20 | C73: =VLOOKUP(A73&B73,'Standard output'!A:D,4,0) -> 7927.642235 | D73: =INDEX(Orders!A:D,ROW()+1,FindCol("orders",2,TimeBucketName))/$C73 -> 3.695361008
A74: =Orders!A75 -> CC3609599 | B74: =VLOOKUP(A74,'Product-tool'!A:E,5,0) -> Tool 17 | C74: =VLOOKUP(A74&B74,'Standard output'!A:D,4,0) -> 6859 | D74: =INDEX(Orders!A:D,ROW()+1,FindCol("orders",2,TimeBucketName))/$C74 -> 2.752004665
A75: =Orders!A76 -> CC3979402 | B75: =VLOOKUP(A75,'Product-tool'!A:E,5,0) -> Tool 13 | C75: =VLOOKUP(A75&B75,'Standard output'!A:D,4,0) -> 2458 | D75: =INDEX(Orders!A:D,ROW()+1,FindCol("orders",2,TimeBucketName))/$C75 -> 1.588771359
A76: =Orders!A77 -> CC4329116 | B76: =VLOOKUP(A76,'Product-tool'!A:E,5,0) -> Tool 19 | C76: =VLOOKUP(A76&B76,'Standard output'!A:D,4,0) -> 10217 | D76: =INDEX(Orders!A:D,ROW()+1,FindCol("orders",2,TimeBucketName))/$C76 -> 11.45353822
A77: =Orders!A78 -> CC4618183 | B77: =VLOOKUP(A77,'Product-tool'!A:E,5,0) -> Tool 13 | C77: =VLOOKUP(A77&B77,'Standard output'!A:D,4,0) -> 2401 | D77: =INDEX(Orders!A:D,ROW()+1,FindCol("orders",2,TimeBucketName))/$C77 -> 52.99733444
A78: =Orders!A79 -> CC4774419 | B78: =VLOOKUP(A78,'Product-tool'!A:E,5,0) -> Tool 12 | C78: =VLOOKUP(A78&B78,'Standard output'!A:D,4,0) -> 4021 | D78: =INDEX(Orders!A:D,ROW()+1,FindCol("orders",2,TimeBucketName))/$C78 -> 0.3368813728
A79: =Orders!A80 -> CC4941594 | B79: =VLOOKUP(A79,'Product-tool'!A:E,5,0) -> Tool 13 | C79: =VLOOKUP(A79&B79,'Standard output'!A:D,4,0) -> 2438 | D79: =INDEX(Orders!A:D,ROW()+1,FindCol("orders",2,TimeBucketName))/$C79 -> 0.7107875308
A80: =Orders!A81 -> CC4945569 | B80: =VLOOKUP(A80,'Product-tool'!A:E,5,0) -> Tool 17 | C80: =VLOOKUP(A80&B80,'Standard output'!A:D,4,0) -> 6888 | D80: =INDEX(Orders!A:D,ROW()+1,FindCol("orders",2,TimeBucketName))/$C80 -> 7.233231707
A81: =Orders!A82 -> CC5387633 | B81: =VLOOKUP(A81,'Product-tool'!A:E,5,0) -> Tool 17 | C81: =VLOOKUP(A81&B81,'Standard output'!A:D,4,0) -> 6863 | D81: =INDEX(Orders!A:D,ROW()+1,FindCol("orders",2,TimeBucketName))/$C81 -> 2.242940405
A82: =Orders!A83 -> CC5505924 | B82: =VLOOKUP(A82,'Product-tool'!A:E,5,0) -> Tool 19 | C82: =VLOOKUP(A82&B82,'Standard output'!A:D,4,0) -> 10196 | D82: =INDEX(Orders!A:D,ROW()+1,FindCol("orders",2,TimeBucketName))/$C82 -> 0.007395056885
A83: =Orders!A84 -> CC5603244 | B83: =VLOOKUP(A83,'Product-tool'!A:E,5,0) -> Tool 12 | C83: =VLOOKUP(A83&B83,'Standard output'!A:D,4,0) -> 4024 | D83: =INDEX(Orders!A:D,ROW()+1,FindCol("orders",2,TimeBucketName))/$C83 -> 0.5815109344
A84: =Orders!A85 -> CC5605066 | B84: =VLOOKUP(A84,'Product-tool'!A:E,5,0) -> Tool 08 | C84: =VLOOKUP(A84&B84,'Standard output'!A:D,4,0) -> 3943 | D84: =INDEX(Orders!A:D,ROW()+1,FindCol("orders",2,TimeBucketName))/$C84 -> 13.86446868
A85: =Orders!A86 -> CC5646794 | B85: =VLOOKUP(A85,'Product-tool'!A:E,5,0) -> Tool 20 | C85: =VLOOKUP(A85&B85,'Standard output'!A:D,4,0) -> 7897.642235 | D85: =INDEX(Orders!A:D,ROW()+1,FindCol("orders",2,TimeBucketName))/$C85 -> 0.2742337441
A86: =Orders!A87 -> CC5671451 | B86: =VLOOKUP(A86,'Product-tool'!A:E,5,0) -> Tool 19 | C86: =VLOOKUP(A86&B86,'Standard output'!A:D,4,0) -> 10198 | D86: =INDEX(Orders!A:D,ROW()+1,FindCol("orders",2,TimeBucketName))/$C86 -> 0.2708864483
A87: =Orders!A88 -> CC5798817 | B87: =VLOOKUP(A87,'Product-tool'!A:E,5,0) -> Tool 20 | C87: =VLOOKUP(A87&B87,'Standard output'!A:D,4,0) -> 7915.642235 | D87: =INDEX(Orders!A:D,ROW()+1,FindCol("orders",2,TimeBucketName))/$C87 -> 1.089349385
A88: =Orders!A89 -> CC5805891 | B88: =VLOOKUP(A88,'Product-tool'!A:E,5,0) -> Tool 17 | C88: =VLOOKUP(A88&B88,'Standard output'!A:D,4,0) -> 6844 | D88: =INDEX(Orders!A:D,ROW()+1,FindCol("orders",2,TimeBucketName))/$C88 -> 0.4431472823
A89: =Orders!A90 -> CC5803851 | B89: =VLOOKUP(A89,'Product-tool'!A:E,5,0) -> Tool 20 | C89: =VLOOKUP(A89&B89,'Standard output'!A:D,4,0) -> 7859.642235 | D89: =INDEX(Orders!A:D,ROW()+1,FindCol("orders",2,TimeBucketName))/$C89 -> 1.866395386
A90: =Orders!A91 -> CC5835642 | B90: =VLOOKUP(A90,'Product-tool'!A:E,5,0) -> Tool 12 | C90: =VLOOKUP(A90&B90,'Standard output'!A:D,4,0) -> 4039 | D90: =INDEX(Orders!A:D,ROW()+1,FindCol("orders",2,TimeBucketName))/$C90 -> 0.002574894776
A91: =Orders!A92 -> CC5844379 | B91: =VLOOKUP(A91,'Product-tool'!A:E,5,0) -> Tool 13 | C91: =VLOOKUP(A91&B91,'Standard output'!A:D,4,0) -> 2483 | D91: =INDEX(Orders!A:D,ROW()+1,FindCol("orders",2,TimeBucketName))/$C91 -> 4.461256545
A92: =Orders!A93 -> CC5859307 | B92: =VLOOKUP(A92,'Product-tool'!A:E,5,0) -> Tool 15 | C92: =VLOOKUP(A92&B92,'Standard output'!A:D,4,0) -> 4481 | D92: =INDEX(Orders!A:D,ROW()+1,FindCol("orders",2,TimeBucketName))/$C92 -> 0.1351930373
A93: =Orders!A94 -> CC5877145 | B93: =VLOOKUP(A93,'Product-tool'!A:E,5,0) -> Tool 12 | C93: =VLOOKUP(A93&B93,'Standard output'!A:D,4,0) -> 4037 | D93: =INDEX(Orders!A:D,ROW()+1,FindCol("orders",2,TimeBucketName))/$C93 -> 0.4150854595
A94: =Orders!A95 -> CC5872620 | B94: =VLOOKUP(A94,'Product-tool'!A:E,5,0) -> Tool 19 | C94: =VLOOKUP(A94&B94,'Standard output'!A:D,4,0) -> 10241 | D94: =INDEX(Orders!A:D,ROW()+1,FindCol("orders",2,TimeBucketName))/$C94 -> 9.292315204
A95: =Orders!A96 -> CC5949597 | B95: =VLOOKUP(A95,'Product-tool'!A:E,5,0) -> Tool 15 | C95: =VLOOKUP(A95&B95,'Standard output'!A:D,4,0) -> 4434 | D95: =INDEX(Orders!A:D,ROW()+1,FindCol("orders",2,TimeBucketName))/$C95 -> 2.671538115
A96: =Orders!A97 -> CC5951749 | B96: =VLOOKUP(A96,'Product-tool'!A:E,5,0) -> Tool 19 | C96: =VLOOKUP(A96&B96,'Standard output'!A:D,4,0) -> 10212 | D96: =INDEX(Orders!A:D,ROW()+1,FindCol("orders",2,TimeBucketName))/$C96 -> 0.01260282021
A97: =Orders!A98 -> CC6069687 | B97: =VLOOKUP(A97,'Product-tool'!A:E,5,0) -> Tool 17 | C97: =VLOOKUP(A97&B97,'Standard output'!A:D,4,0) -> 6837 | D97: =INDEX(Orders!A:D,ROW()+1,FindCol("orders",2,TimeBucketName))/$C97 -> 0.02528886939
A98: =Orders!A99 -> CC6146771 | B98: =VLOOKUP(A98,'Product-tool'!A:E,5,0) -> Tool 19 | C98: =VLOOKUP(A98&B98,'Standard output'!A:D,4,0) -> 10189 | D98: =INDEX(Orders!A:D,ROW()+1,FindCol("orders",2,TimeBucketName))/$C98 -> 0.2822259299
A99: =Orders!A100 -> CC642531 | B99: =VLOOKUP(A99,'Product-tool'!A:E,5,0) -> Tool 19 | C99: =VLOOKUP(A99&B99,'Standard output'!A:D,4,0) -> 10186 | D99: =INDEX(Orders!A:D,ROW()+1,FindCol("orders",2,TimeBucketName))/$C99 -> 0.1360494797
A100: =Orders!A101 -> CC6514546 | B100: =VLOOKUP(A100,'Product-tool'!A:E,5,0) -> Tool 15 | C100: =VLOOKUP(A100&B100,'Standard output'!A:D,4,0) -> 4404 | D100: =INDEX(Orders!A:D,ROW()+1,FindCol("orders",2,TimeBucketName))/$C100 -> 0.02450045413
A101: =Orders!A102 -> CL1528731 | B101: =VLOOKUP(A101,'Product-tool'!A:E,5,0) -> Tool 15 | C101: =VLOOKUP(A101&B101,'Standard output'!A:D,4,0) -> 4477 | D101: =INDEX(Orders!A:D,ROW()+1,FindCol("orders",2,TimeBucketName))/$C101 -> 1.199530936
A102: =Orders!A103 -> CL4179003 | B102: =VLOOKUP(A102,'Product-tool'!A:E,5,0) -> Tool 08 | C102: =VLOOKUP(A102&B102,'Standard output'!A:D,4,0) -> 4001 | D102: =INDEX(Orders!A:D,ROW()+1,FindCol("orders",2,TimeBucketName))/$C102 -> 5.220144964
A103: =Orders!A104 -> CM2146129 | B103: =VLOOKUP(A103,'Product-tool'!A:E,5,0) -> Tool 08 | C103: =VLOOKUP(A103&B103,'Standard output'!A:D,4,0) -> 3935 | D103: =INDEX(Orders!A:D,ROW()+1,FindCol("orders",2,TimeBucketName))/$C103 -> 0.4222109276
A104: =Orders!A105 -> CM2144500 | B104: =VLOOKUP(A104,'Product-tool'!A:E,5,0) -> Tool 08 | C104: =VLOOKUP(A104&B104,'Standard output'!A:D,4,0) -> 3949 | D104: =INDEX(Orders!A:D,ROW()+1,FindCol("orders",2,TimeBucketName))/$C104 -> 1.755609015
A105: =Orders!A106 -> CM2364748 | B105: =VLOOKUP(A105,'Product-tool'!A:E,5,0) -> Tool 04 | C105: =VLOOKUP(A105&B105,'Standard output'!A:D,4,0) -> 2234 | D105: =INDEX(Orders!A:D,ROW()+1,FindCol("orders",2,TimeBucketName))/$C105 -> 0.6383616831
A106: =Orders!A107 -> CM2573429 | B106: =VLOOKUP(A106,'Product-tool'!A:E,5,0) -> Tool 08 | C106: =VLOOKUP(A106&B106,'Standard output'!A:D,4,0) -> 3930 | D106: =INDEX(Orders!A:D,ROW()+1,FindCol("orders",2,TimeBucketName))/$C106 -> 7.941908397
A107: =Orders!A108 -> CM267912 | B107: =VLOOKUP(A107,'Product-tool'!A:E,5,0) -> Tool 08 | C107: =VLOOKUP(A107&B107,'Standard output'!A:D,4,0) -> 3932 | D107: =INDEX(Orders!A:D,ROW()+1,FindCol("orders",2,TimeBucketName))/$C107 -> 0.02942522889
A108: =Orders!A109 -> CM2981742 | B108: =VLOOKUP(A108,'Product-tool'!A:E,5,0) -> Tool 10 | C108: =VLOOKUP(A108&B108,'Standard output'!A:D,4,0) -> 1619 | D108: =INDEX(Orders!A:D,ROW()+1,FindCol("orders",2,TimeBucketName))/$C108 -> 0.009635577517
A109: =Orders!A110 -> CM350886 | B109: =VLOOKUP(A109,'Product-tool'!A:E,5,0) -> Tool 08 | C109: =VLOOKUP(A109&B109,'Standard output'!A:D,4,0) -> 3937 | D109: =INDEX(Orders!A:D,ROW()+1,FindCol("orders",2,TimeBucketName))/$C109 -> 0.003302006604
A110: =Orders!A111 -> CM3509051 | B110: =VLOOKUP(A110,'Product-tool'!A:E,5,0) -> Tool 08 | C110: =VLOOKUP(A110&B110,'Standard output'!A:D,4,0) -> 3942 | D110: =INDEX(Orders!A:D,ROW()+1,FindCol("orders",2,TimeBucketName))/$C110 -> 2.433130391
A111: =Orders!A112 -> CM5648071 | B111: =VLOOKUP(A111,'Product-tool'!A:E,5,0) -> Tool 19 | C111: =VLOOKUP(A111&B111,'Standard output'!A:D,4,0) -> 10173 | D111: =INDEX(Orders!A:D,ROW()+1,FindCol("orders",2,TimeBucketName))/$C111 -> 0.1037648678
A112: =Orders!A113 -> CM5946003 | B112: =VLOOKUP(A112,'Product-tool'!A:E,5,0) -> Tool 19 | C112: =VLOOKUP(A112&B112,'Standard output'!A:D,4,0) -> 10242 | D112: =INDEX(Orders!A:D,ROW()+1,FindCol("orders",2,TimeBucketName))/$C112 -> 1.278549112
A113: =Orders!A114 -> CM5947011 | B113: =VLOOKUP(A113,'Product-tool'!A:E,5,0) -> Tool 04 | C113: =VLOOKUP(A113&B113,'Standard output'!A:D,4,0) -> 2298 | D113: =INDEX(Orders!A:D,ROW()+1,FindCol("orders",2,TimeBucketName))/$C113 -> 6.827545692
A114: =Orders!A115 -> CP2759269 | B114: =VLOOKUP(A114,'Product-tool'!A:E,5,0) -> Tool 09 | C114: =VLOOKUP(A114&B114,'Standard output'!A:D,4,0) -> 484 | D114: =INDEX(Orders!A:D,ROW()+1,FindCol("orders",2,TimeBucketName))/$C114 -> 18.31818182
A115: =Orders!A116 -> CP3651771 | B115: =VLOOKUP(A115,'Product-tool'!A:E,5,0) -> Tool 02 | C115: =VLOOKUP(A115&B115,'Standard output'!A:D,4,0) -> 2681 | D115: =INDEX(Orders!A:D,ROW()+1,FindCol("orders",2,TimeBucketName))/$C115 -> 4.729168221
A116: =Orders!A117 -> CP3782517 | B116: =VLOOKUP(A116,'Product-tool'!A:E,5,0) -> Tool 16 | C116: =VLOOKUP(A116&B116,'Standard output'!A:D,4,0) -> 6861 | D116: =INDEX(Orders!A:D,ROW()+1,FindCol("orders",2,TimeBucketName))/$C116 -> 1.017679639
A117: =Orders!A118 -> CP5891290 | B117: =VLOOKUP(A117,'Product-tool'!A:E,5,0) -> Tool 12 | C117: =VLOOKUP(A117&B117,'Standard output'!A:D,4,0) -> 4089 | D117: =INDEX(Orders!A:D,ROW()+1,FindCol("orders",2,TimeBucketName))/$C117 -> 0.04228417706
A118: =Orders!A119 -> CP5915175 | B118: =VLOOKUP(A118,'Product-tool'!A:E,5,0) -> Tool 17 | C118: =VLOOKUP(A118&B118,'Standard output'!A:D,4,0) -> 6839 | D118: =INDEX(Orders!A:D,ROW()+1,FindCol("orders",2,TimeBucketName))/$C118 -> 0.08306769996
A119: =Orders!A120 -> CT0314214 | B119: =VLOOKUP(A119,'Product-tool'!A:E,5,0) -> Tool 20 | C119: =VLOOKUP(A119&B119,'Standard output'!A:D,4,0) -> 7870.642235 | D119: =INDEX(Orders!A:D,ROW()+1,FindCol("orders",2,TimeBucketName))/$C119 -> 7.226220974
A120: =Orders!A121 -> CT0686710 | B120: =VLOOKUP(A120,'Product-tool'!A:E,5,0) -> Tool 17 | C120: =VLOOKUP(A120&B120,'Standard output'!A:D,4,0) -> 6884 | D120: =INDEX(Orders!A:D,ROW()+1,FindCol("orders",2,TimeBucketName))/$C120 -> 0.3618245206
A121: =Orders!A122 -> CT0911438 | B121: =VLOOKUP(A121,'Product-tool'!A:E,5,0) -> Tool 13 | C121: =VLOOKUP(A121&B121,'Standard output'!A:D,4,0) -> 2444 | D121: =INDEX(Orders!A:D,ROW()+1,FindCol("orders",2,TimeBucketName))/$C121 -> 0.7531914894
A122: =Orders!A123 -> CT1153413 | B122: =VLOOKUP(A122,'Product-tool'!A:E,5,0) -> Tool 20 | C122: =VLOOKUP(A122&B122,'Standard output'!A:D,4,0) -> 7871.642235 | D122: =INDEX(Orders!A:D,ROW()+1,FindCol("orders",2,TimeBucketName))/$C122 -> 0.5046977342
A123: =Orders!A124 -> CT1195860 | B123: =VLOOKUP(A123,'Product-tool'!A:E,5,0) -> Tool 19 | C123: =VLOOKUP(A123&B123,'Standard output'!A:D,4,0) -> 10244 | D123: =INDEX(Orders!A:D,ROW()+1,FindCol("orders",2,TimeBucketName))/$C123 -> 0.1691624365
A124: =Orders!A125 -> CT1344126 | B124: =VLOOKUP(A124,'Product-tool'!A:E,5,0) -> Tool 16 | C124: =VLOOKUP(A124&B124,'Standard output'!A:D,4,0) -> 6833 | D124: =INDEX(Orders!A:D,ROW()+1,FindCol("orders",2,TimeBucketName))/$C124 -> 1.585379775
A125: =Orders!A126 -> CT1427436 | B125: =VLOOKUP(A125,'Product-tool'!A:E,5,0) -> Tool 16 | C125: =VLOOKUP(A125&B125,'Standard output'!A:D,4,0) -> 6841 | D125: =INDEX(Orders!A:D,ROW()+1,FindCol("orders",2,TimeBucketName))/$C125 -> 0.041426692
A126: =Orders!A127 -> CT1422602 | B126: =VLOOKUP(A126,'Product-tool'!A:E,5,0) -> Tool 13 | C126: =VLOOKUP(A126&B126,'Standard output'!A:D,4,0) -> 2401 | D126: =INDEX(Orders!A:D,ROW()+1,FindCol("orders",2,TimeBucketName))/$C126 -> 2.537734277
A127: =Orders!A128 -> CT1693771 | B127: =VLOOKUP(A127,'Product-tool'!A:E,5,0) -> Tool 19 | C127: =VLOOKUP(A127&B127,'Standard output'!A:D,4,0) -> 10241 | D127: =INDEX(Orders!A:D,ROW()+1,FindCol("orders",2,TimeBucketName))/$C127 -> 1.36448589
A128: =Orders!A129 -> CT2356543 | B128: =VLOOKUP(A128,'Product-tool'!A:E,5,0) -> Tool 13 | C128: =VLOOKUP(A128&B128,'Standard output'!A:D,4,0) -> 2434 | D128: =INDEX(Orders!A:D,ROW()+1,FindCol("orders",2,TimeBucketName))/$C128 -> 1.69096138
A129: =Orders!A130 -> CT2727204 | B129: =VLOOKUP(A129,'Product-tool'!A:E,5,0) -> Tool 12 | C129: =VLOOKUP(A129&B129,'Standard output'!A:D,4,0) -> 4023 | D129: =INDEX(Orders!A:D,ROW()+1,FindCol("orders",2,TimeBucketName))/$C129 -> 1.701665424
A130: =Orders!A131 -> CT2748008 | B130: =VLOOKUP(A130,'Product-tool'!A:E,5,0) -> Tool 20 | C130: =VLOOKUP(A130&B130,'Standard output'!A:D,4,0) -> 7862.642235 | D130: =INDEX(Orders!A:D,ROW()+1,FindCol("orders",2,TimeBucketName))/$C130 -> 0.08812559179
A131: =Orders!A132 -> CT2882108 | B131: =VLOOKUP(A131,'Product-tool'!A:E,5,0) -> Tool 19 | C131: =VLOOKUP(A131&B131,'Standard output'!A:D,4,0) -> 10248 | D131: =INDEX(Orders!A:D,ROW()+1,FindCol("orders",2,TimeBucketName))/$C131 -> 14.41378806
A132: =Orders!A133 -> CT2899279 | B132: =VLOOKUP(A132,'Product-tool'!A:E,5,0) -> Tool 12 | C132: =VLOOKUP(A132&B132,'Standard output'!A:D,4,0) -> 4085 | D132: =INDEX(Orders!A:D,ROW()+1,FindCol("orders",2,TimeBucketName))/$C132 -> 0.5301835985
A133: =Orders!A134 -> CT2921184 | B133: =VLOOKUP(A133,'Product-tool'!A:E,5,0) -> Tool 15 | C133: =VLOOKUP(A133&B133,'Standard output'!A:D,4,0) -> 4472 | D133: =INDEX(Orders!A:D,ROW()+1,FindCol("orders",2,TimeBucketName))/$C133 -> 3.9
A134: =Orders!A135 -> CT2976643 | B134: =VLOOKUP(A134,'Product-tool'!A:E,5,0) -> Tool 13 | C134: =VLOOKUP(A134&B134,'Standard output'!A:D,4,0) -> 2493 | D134: =INDEX(Orders!A:D,ROW()+1,FindCol("orders",2,TimeBucketName))/$C134 -> 0.5699558765
A135: =Orders!A136 -> CT3251740 | B135: =VLOOKUP(A135,'Product-tool'!A:E,5,0) -> Tool 18 | C135: =VLOOKUP(A135&B135,'Standard output'!A:D,4,0) -> 2887 | D135: =INDEX(Orders!A:D,ROW()+1,FindCol("orders",2,TimeBucketName))/$C135 -> 2.532906131
A136: =Orders!A137 -> CT3327591 | B136: =VLOOKUP(A136,'Product-tool'!A:E,5,0) -> Tool 20 | C136: =VLOOKUP(A136&B136,'Standard output'!A:D,4,0) -> 7931.642235 | D136: =INDEX(Orders!A:D,ROW()+1,FindCol("orders",2,TimeBucketName))/$C136 -> 2.805320682
A137: =Orders!A138 -> CT3389630 | B137: =VLOOKUP(A137,'Product-tool'!A:E,5,0) -> Tool 03 | C137: =VLOOKUP(A137&B137,'Standard output'!A:D,4,0) -> 2447 | D137: =INDEX(Orders!A:D,ROW()+1,FindCol("orders",2,TimeBucketName))/$C137 -> 0.4308541071
A138: =Orders!A139 -> CT3513686 | B138: =VLOOKUP(A138,'Product-tool'!A:E,5,0) -> Tool 15 | C138: =VLOOKUP(A138&B138,'Standard output'!A:D,4,0) -> 4406 | D138: =INDEX(Orders!A:D,ROW()+1,FindCol("orders",2,TimeBucketName))/$C138 -> 0.02271901952
A139: =Orders!A140 -> CT3676279 | B139: =VLOOKUP(A139,'Product-tool'!A:E,5,0) -> Tool 18 | C139: =VLOOKUP(A139&B139,'Standard output'!A:D,4,0) -> 2803 | D139: =INDEX(Orders!A:D,ROW()+1,FindCol("orders",2,TimeBucketName))/$C139 -> 18.51676775
A140: =Orders!A141 -> CT3847465 | B140: =VLOOKUP(A140,'Product-tool'!A:E,5,0) -> Tool 08 | C140: =VLOOKUP(A140&B140,'Standard output'!A:D,4,0) -> 3955 | D140: =INDEX(Orders!A:D,ROW()+1,FindCol("orders",2,TimeBucketName))/$C140 -> 33.98045512
A141: =Orders!A142 -> CT3866790 | B141: =VLOOKUP(A141,'Product-tool'!A:E,5,0) -> Tool 20 | C141: =VLOOKUP(A141&B141,'Standard output'!A:D,4,0) -> 7941.642235 | D141: =INDEX(Orders!A:D,ROW()+1,FindCol("orders",2,TimeBucketName))/$C141 -> 11.18161677
A142: =Orders!A143 -> CT4394015 | B142: =VLOOKUP(A142,'Product-tool'!A:E,5,0) -> Tool 17 | C142: =VLOOKUP(A142&B142,'Standard output'!A:D,4,0) -> 6893 | D142: =INDEX(Orders!A:D,ROW()+1,FindCol("orders",2,TimeBucketName))/$C142 -> 4.586870738
A143: =Orders!A144 -> CT4485707 | B143: =VLOOKUP(A143,'Product-tool'!A:E,5,0) -> Tool 19 | C143: =VLOOKUP(A143&B143,'Standard output'!A:D,4,0) -> 10169 | D143: =INDEX(Orders!A:D,ROW()+1,FindCol("orders",2,TimeBucketName))/$C143 -> 0.00741469171
A144: =Orders!A145 -> CT4625235 | B144: =VLOOKUP(A144,'Product-tool'!A:E,5,0) -> Tool 12 | C144: =VLOOKUP(A144&B144,'Standard output'!A:D,4,0) -> 4029 | D144: =INDEX(Orders!A:D,ROW()+1,FindCol("orders",2,TimeBucketName))/$C144 -> 0.3978406552
A145: =Orders!A146 -> CT4696984 | B145: =VLOOKUP(A145,'Product-tool'!A:E,5,0) -> Tool 12 | C145: =VLOOKUP(A145&B145,'Standard output'!A:D,4,0) -> 4054 | D145: =INDEX(Orders!A:D,ROW()+1,FindCol("orders",2,TimeBucketName))/$C145 -> 2.05550074
A146: =Orders!A147 -> CT4766693 | B146: =VLOOKUP(A146,'Product-tool'!A:E,5,0) -> Tool 19 | C146: =VLOOKUP(A146&B146,'Standard output'!A:D,4,0) -> 10225 | D146: =INDEX(Orders!A:D,ROW()+1,FindCol("orders",2,TimeBucketName))/$C146 -> 1.521222494
A147: =Orders!A148 -> CT4972454 | B147: =VLOOKUP(A147,'Product-tool'!A:E,5,0) -> Tool 20 | C147: =VLOOKUP(A147&B147,'Standard output'!A:D,4,0) -> 7868.642235 | D147: =INDEX(Orders!A:D,ROW()+1,FindCol("orders",2,TimeBucketName))/$C147 -> 8.149779604
A148: =Orders!A149 -> CT4983245 | B148: =VLOOKUP(A148,'Product-tool'!A:E,5,0) -> Tool 19 | C148: =VLOOKUP(A148&B148,'Standard output'!A:D,4,0) -> 10224 | D148: =INDEX(Orders!A:D,ROW()+1,FindCol("orders",2,TimeBucketName))/$C148 -> 1.627543036
A149: =Orders!A150 -> CT4998062 | B149: =VLOOKUP(A149,'Product-tool'!A:E,5,0) -> Tool 19 | C149: =VLOOKUP(A149&B149,'Standard output'!A:D,4,0) -> 10186 | D149: =INDEX(Orders!A:D,ROW()+1,FindCol("orders",2,TimeBucketName))/$C149 -> 0.05309247987
A150: =Orders!A151 -> CT5306052 | B150: =VLOOKUP(A150,'Product-tool'!A:E,5,0) -> Tool 20 | C150: =VLOOKUP(A150&B150,'Standard output'!A:D,4,0) -> 7869.642235 | D150: =INDEX(Orders!A:D,ROW()+1,FindCol("orders",2,TimeBucketName))/$C150 -> 0.03964602083
A151: =Orders!A152 -> CT5312249 | B151: =VLOOKUP(A151,'Product-tool'!A:E,5,0) -> Tool 19 | C151: =VLOOKUP(A151&B151,'Standard output'!A:D,4,0) -> 10265 | D151: =INDEX(Orders!A:D,ROW()+1,FindCol("orders",2,TimeBucketName))/$C151 -> 0.001013151486
A152: =Orders!A153 -> CT5387974 | B152: =VLOOKUP(A152,'Product-tool'!A:E,5,0) -> Tool 10 | C152: =VLOOKUP(A152&B152,'Standard output'!A:D,4,0) -> 1586 | D152: =INDEX(Orders!A:D,ROW()+1,FindCol("orders",2,TimeBucketName))/$C152 -> 0.006557377049
A153: =Orders!A154 -> CT5424793 | B153: =VLOOKUP(A153,'Product-tool'!A:E,5,0) -> Tool 12 | C153: =VLOOKUP(A153&B153,'Standard output'!A:D,4,0) -> 4056 | D153: =INDEX(Orders!A:D,ROW()+1,FindCol("orders",2,TimeBucketName))/$C153 -> 0.8217948718
A154: =Orders!A155 -> CT54540 | B154: =VLOOKUP(A154,'Product-tool'!A:E,5,0) -> Tool 15 | C154: =VLOOKUP(A154&B154,'Standard output'!A:D,4,0) -> 4467 | D154: =INDEX(Orders!A:D,ROW()+1,FindCol("orders",2,TimeBucketName))/$C154 -> 5.300693978
A155: =Orders!A156 -> CT5587547 | B155: =VLOOKUP(A155,'Product-tool'!A:E,5,0) -> Tool 19 | C155: =VLOOKUP(A155&B155,'Standard output'!A:D,4,0) -> 10202 | D155: =INDEX(Orders!A:D,ROW()+1,FindCol("orders",2,TimeBucketName))/$C155 -> 0.01210546952
A156: =Orders!A157 -> CT5594793 | B156: =VLOOKUP(A156,'Product-tool'!A:E,5,0) -> Tool 13 | C156: =VLOOKUP(A156&B156,'Standard output'!A:D,4,0) -> 2474 | D156: =INDEX(Orders!A:D,ROW()+1,FindCol("orders",2,TimeBucketName))/$C156 -> 0.551738076
A157: =Orders!A158 -> CT5668919 | B157: =VLOOKUP(A157,'Product-tool'!A:E,5,0) -> Tool 20 | C157: =VLOOKUP(A157&B157,'Standard output'!A:D,4,0) -> 7912.642235 | D157: =INDEX(Orders!A:D,ROW()+1,FindCol("orders",2,TimeBucketName))/$C157 -> 0.08148984636
A158: =Orders!A159 -> CT5745169 | B158: =VLOOKUP(A158,'Product-tool'!A:E,5,0) -> Tool 12 | C158: =VLOOKUP(A158&B158,'Standard output'!A:D,4,0) -> 4071 | D158: =INDEX(Orders!A:D,ROW()+1,FindCol("orders",2,TimeBucketName))/$C158 -> 0.06482436748
A159: =Orders!A160 -> CT5745914 | B159: =VLOOKUP(A159,'Product-tool'!A:E,5,0) -> Tool 12 | C159: =VLOOKUP(A159&B159,'Standard output'!A:D,4,0) -> 4054 | D159: =INDEX(Orders!A:D,ROW()+1,FindCol("orders",2,TimeBucketName))/$C159 -> 0.5076221016
A160: =Orders!A161 -> CT5783436 | B160: =VLOOKUP(A160,'Product-tool'!A:E,5,0) -> Tool 20 | C160: =VLOOKUP(A160&B160,'Standard output'!A:D,4,0) -> 7869.642235 | D160: =INDEX(Orders!A:D,ROW()+1,FindCol("orders",2,TimeBucketName))/$C160 -> 0.004460177344
A161: =Orders!A162 -> CT5802839 | B161: =VLOOKUP(A161,'Product-tool'!A:E,5,0) -> Tool 19 | C161: =VLOOKUP(A161&B161,'Standard output'!A:D,4,0) -> 10173 | D161: =INDEX(Orders!A:D,ROW()+1,FindCol("orders",2,TimeBucketName))/$C161 -> 0.1490022609
A162: =Orders!A163 -> CT5819298 | B162: =VLOOKUP(A162,'Product-tool'!A:E,5,0) -> Tool 20 | C162: =VLOOKUP(A162&B162,'Standard output'!A:D,4,0) -> 7858.642235 | D162: =INDEX(Orders!A:D,ROW()+1,FindCol("orders",2,TimeBucketName))/$C162 -> 0.03325001854
A163: =Orders!A164 -> CT5829315 | B163: =VLOOKUP(A163,'Product-tool'!A:E,5,0) -> Tool 13 | C163: =VLOOKUP(A163&B163,'Standard output'!A:D,4,0) -> 2436 | D163: =INDEX(Orders!A:D,ROW()+1,FindCol("orders",2,TimeBucketName))/$C163 -> 0.1777093596
A164: =Orders!A165 -> CT5869387 | B164: =VLOOKUP(A164,'Product-tool'!A:E,5,0) -> Tool 19 | C164: =VLOOKUP(A164&B164,'Standard output'!A:D,4,0) -> 10217 | D164: =INDEX(Orders!A:D,ROW()+1,FindCol("orders",2,TimeBucketName))/$C164 -> 0.9151022805
A165: =Orders!A166 -> CT588550 | B165: =VLOOKUP(A165,'Product-tool'!A:E,5,0) -> Tool 12 | C165: =VLOOKUP(A165&B165,'Standard output'!A:D,4,0) -> 4000 | D165: =INDEX(Orders!A:D,ROW()+1,FindCol("orders",2,TimeBucketName))/$C165 -> 0.23465
A166: =Orders!A167 -> CT5885641 | B166: =VLOOKUP(A166,'Product-tool'!A:E,5,0) -> Tool 18 | C166: =VLOOKUP(A166&B166,'Standard output'!A:D,4,0) -> 2814 | D166: =INDEX(Orders!A:D,ROW()+1,FindCol("orders",2,TimeBucketName))/$C166 -> 1.601208244
A167: =Orders!A168 -> CT593521 | B167: =VLOOKUP(A167,'Product-tool'!A:E,5,0) -> Tool 18 | C167: =VLOOKUP(A167&B167,'Standard output'!A:D,4,0) -> 2853 | D167: =INDEX(Orders!A:D,ROW()+1,FindCol("orders",2,TimeBucketName))/$C167 -> 26.50897301
A168: =Orders!A169 -> CT5932817 | B168: =VLOOKUP(A168,'Product-tool'!A:E,5,0) -> Tool 20 | C168: =VLOOKUP(A168&B168,'Standard output'!A:D,4,0) -> 7850.642235 | D168: =INDEX(Orders!A:D,ROW()+1,FindCol("orders",2,TimeBucketName))/$C168 -> 0.02202367588
A169: =Orders!A170 -> CT5982395 | B169: =VLOOKUP(A169,'Product-tool'!A:E,5,0) -> Tool 04 | C169: =VLOOKUP(A169&B169,'Standard output'!A:D,4,0) -> 2227 | D169: =INDEX(Orders!A:D,ROW()+1,FindCol("orders",2,TimeBucketName))/$C169 -> 0.1605298608
A170: =Orders!A171 -> CT6358073 | B170: =VLOOKUP(A170,'Product-tool'!A:E,5,0) -> Tool 20 | C170: =VLOOKUP(A170&B170,'Standard output'!A:D,4,0) -> 7883.642235 | D170: =INDEX(Orders!A:D,ROW()+1,FindCol("orders",2,TimeBucketName))/$C170 -> 0.004122460029
A171: =Orders!A172 -> CT6438604 | B171: =VLOOKUP(A171,'Product-tool'!A:E,5,0) -> Tool 20 | C171: =VLOOKUP(A171&B171,'Standard output'!A:D,4,0) -> 7893.642235 | D171: =INDEX(Orders!A:D,ROW()+1,FindCol("orders",2,TimeBucketName))/$C171 -> 0.001317516007
A172: =Orders!A173 -> CT6445143 | B172: =VLOOKUP(A172,'Product-tool'!A:E,5,0) -> Tool 20 | C172: =VLOOKUP(A172&B172,'Standard output'!A:D,4,0) -> 7913.642235 | D172: =INDEX(Orders!A:D,ROW()+1,FindCol("orders",2,TimeBucketName))/$C172 -> 0.7377513194
A173: =Orders!A174 -> CT823663 | B173: =VLOOKUP(A173,'Product-tool'!A:E,5,0) -> Tool 07 | C173: =VLOOKUP(A173&B173,'Standard output'!A:D,4,0) -> 6446 | D173: =INDEX(Orders!A:D,ROW()+1,FindCol("orders",2,TimeBucketName))/$C173 -> 0.2184145206
A174: =Orders!A175 -> DA2128864 | B174: =VLOOKUP(A174,'Product-tool'!A:E,5,0) -> Tool 05 | C174: =VLOOKUP(A174&B174,'Standard output'!A:D,4,0) -> 1267 | D174: =INDEX(Orders!A:D,ROW()+1,FindCol("orders",2,TimeBucketName))/$C174 -> 4.10418311
A175: =Orders!A176 -> DA5685201 | B175: =VLOOKUP(A175,'Product-tool'!A:E,5,0) -> Tool 01 | C175: =VLOOKUP(A175&B175,'Standard output'!A:D,4,0) -> 1270 | D175: =INDEX(Orders!A:D,ROW()+1,FindCol("orders",2,TimeBucketName))/$C175 -> 0.1361417323
A176: =Orders!A177 -> DP0098702 | B176: =VLOOKUP(A176,'Product-tool'!A:E,5,0) -> Tool 17 | C176: =VLOOKUP(A176&B176,'Standard output'!A:D,4,0) -> 6800 | D176: =INDEX(Orders!A:D,ROW()+1,FindCol("orders",2,TimeBucketName))/$C176 -> 1.487161765
A177: =Orders!A178 -> DP087138 | B177: =VLOOKUP(A177,'Product-tool'!A:E,5,0) -> Tool 14 | C177: =VLOOKUP(A177&B177,'Standard output'!A:D,4,0) -> 2350 | D177: =INDEX(Orders!A:D,ROW()+1,FindCol("orders",2,TimeBucketName))/$C177 -> 16.60348936
A178: =Orders!A179 -> DP1792938 | B178: =VLOOKUP(A178,'Product-tool'!A:E,5,0) -> Tool 15 | C178: =VLOOKUP(A178&B178,'Standard output'!A:D,4,0) -> 4404 | D178: =INDEX(Orders!A:D,ROW()+1,FindCol("orders",2,TimeBucketName))/$C178 -> 7.692552225
A179: =Orders!A180 -> DP2403779 | B179: =VLOOKUP(A179,'Product-tool'!A:E,5,0) -> Tool 15 | C179: =VLOOKUP(A179&B179,'Standard output'!A:D,4,0) -> 4406 | D179: =INDEX(Orders!A:D,ROW()+1,FindCol("orders",2,TimeBucketName))/$C179 -> 2.618293236
A180: =Orders!A181 -> DP2404504 | B180: =VLOOKUP(A180,'Product-tool'!A:E,5,0) -> Tool 03 | C180: =VLOOKUP(A180&B180,'Standard output'!A:D,4,0) -> 2460 | D180: =INDEX(Orders!A:D,ROW()+1,FindCol("orders",2,TimeBucketName))/$C180 -> 0.3080894309
A181: =Orders!A182 -> DP4769417 | B181: =VLOOKUP(A181,'Product-tool'!A:E,5,0) -> Tool 17 | C181: =VLOOKUP(A181&B181,'Standard output'!A:D,4,0) -> 6853 | D181: =INDEX(Orders!A:D,ROW()+1,FindCol("orders",2,TimeBucketName))/$C181 -> 0.3112943237
A182: =Orders!A183 -> DP4764853 | B182: =VLOOKUP(A182,'Product-tool'!A:E,5,0) -> Tool 18 | C182: =VLOOKUP(A182&B182,'Standard output'!A:D,4,0) -> 2863 | D182: =INDEX(Orders!A:D,ROW()+1,FindCol("orders",2,TimeBucketName))/$C182 -> 8.586901851
A183: =Orders!A184 -> DP5007199 | B183: =VLOOKUP(A183,'Product-tool'!A:E,5,0) -> Tool 01 | C183: =VLOOKUP(A183&B183,'Standard output'!A:D,4,0) -> 1279 | D183: =INDEX(Orders!A:D,ROW()+1,FindCol("orders",2,TimeBucketName))/$C183 -> 41.12634871
A184: =Orders!A185 -> DP5383174 | B184: =VLOOKUP(A184,'Product-tool'!A:E,5,0) -> Tool 01 | C184: =VLOOKUP(A184&B184,'Standard output'!A:D,4,0) -> 1278 | D184: =INDEX(Orders!A:D,ROW()+1,FindCol("orders",2,TimeBucketName))/$C184 -> 5.000625978
A185: =Orders!A186 -> DP5698799 | B185: =VLOOKUP(A185,'Product-tool'!A:E,5,0) -> Tool 01 | C185: =VLOOKUP(A185&B185,'Standard output'!A:D,4,0) -> 1281 | D185: =INDEX(Orders!A:D,ROW()+1,FindCol("orders",2,TimeBucketName))/$C185 -> 1.009758002
A186: =Orders!A187 -> DP5908334 | B186: =VLOOKUP(A186,'Product-tool'!A:E,5,0) -> Tool 01 | C186: =VLOOKUP(A186&B186,'Standard output'!A:D,4,0) -> 1276 | D186: =INDEX(Orders!A:D,ROW()+1,FindCol("orders",2,TimeBucketName))/$C186 -> 36.05258621
A187: =Orders!A188 -> DP638679 | B187: =VLOOKUP(A187,'Product-tool'!A:E,5,0) -> Tool 13 | C187: =VLOOKUP(A187&B187,'Standard output'!A:D,4,0) -> 2495 | D187: =INDEX(Orders!A:D,ROW()+1,FindCol("orders",2,TimeBucketName))/$C187 -> 0.049498998
A188: =Orders!A189 -> FR0061274 | B188: =VLOOKUP(A188,'Product-tool'!A:E,5,0) -> Tool 11 | C188: =VLOOKUP(A188&B188,'Standard output'!A:D,4,0) -> 2069 | D188: =INDEX(Orders!A:D,ROW()+1,FindCol("orders",2,TimeBucketName))/$C188 -> 0.04523924601
A189: =Orders!A190 -> FR009628 | B189: =VLOOKUP(A189,'Product-tool'!A:E,5,0) -> Tool 11 | C189: =VLOOKUP(A189&B189,'Standard output'!A:D,4,0) -> 2089 | D189: =INDEX(Orders!A:D,ROW()+1,FindCol("orders",2,TimeBucketName))/$C189 -> 15.62613691
A190: =Orders!A191 -> FR0362571 | B190: =VLOOKUP(A190,'Product-tool'!A:E,5,0) -> Tool 11 | C190: =VLOOKUP(A190&B190,'Standard output'!A:D,4,0) -> 2087 | D190: =INDEX(Orders!A:D,ROW()+1,FindCol("orders",2,TimeBucketName))/$C190 -> 8.667704839
A191: =Orders!A192 -> FR0614261 | B191: =VLOOKUP(A191,'Product-tool'!A:E,5,0) -> Tool 11 | C191: =VLOOKUP(A191&B191,'Standard output'!A:D,4,0) -> 2107 | D191: =INDEX(Orders!A:D,ROW()+1,FindCol("orders",2,TimeBucketName))/$C191 -> 1.408590413
A192: =Orders!A193 -> FR0622263 | B192: =VLOOKUP(A192,'Product-tool'!A:E,5,0) -> Tool 11 | C192: =VLOOKUP(A192&B192,'Standard output'!A:D,4,0) -> 2035 | D192: =INDEX(Orders!A:D,ROW()+1,FindCol("orders",2,TimeBucketName))/$C192 -> 0.3404914005
A193: =Orders!A194 -> FR066151 | B193: =VLOOKUP(A193,'Product-tool'!A:E,5,0) -> Tool 04 | C193: =VLOOKUP(A193&B193,'Standard output'!A:D,4,0) -> 2257 | D193: =INDEX(Orders!A:D,ROW()+1,FindCol("orders",2,TimeBucketName))/$C193 -> 0.7902525476
A194: =Orders!A195 -> FR0667973 | B194: =VLOOKUP(A194,'Product-tool'!A:E,5,0) -> Tool 11 | C194: =VLOOKUP(A194&B194,'Standard output'!A:D,4,0) -> 2050 | D194: =INDEX(Orders!A:D,ROW()+1,FindCol("orders",2,TimeBucketName))/$C194 -> 1.056487805
A195: =Orders!A196 -> FR0679719 | B195: =VLOOKUP(A195,'Product-tool'!A:E,5,0) -> Tool 10 | C195: =VLOOKUP(A195&B195,'Standard output'!A:D,4,0) -> 1605 | D195: =INDEX(Orders!A:D,ROW()+1,FindCol("orders",2,TimeBucketName))/$C195 -> 0.08747663551
A196: =Orders!A197 -> FR0696557 | B196: =VLOOKUP(A196,'Product-tool'!A:E,5,0) -> Tool 15 | C196: =VLOOKUP(A196&B196,'Standard output'!A:D,4,0) -> 4478 | D196: =INDEX(Orders!A:D,ROW()+1,FindCol("orders",2,TimeBucketName))/$C196 -> 0.5376507369
A197: =Orders!A198 -> FR0905418 | B197: =VLOOKUP(A197,'Product-tool'!A:E,5,0) -> Tool 15 | C197: =VLOOKUP(A197&B197,'Standard output'!A:D,4,0) -> 4421 | D197: =INDEX(Orders!A:D,ROW()+1,FindCol("orders",2,TimeBucketName))/$C197 -> 0.7939380231
A198: =Orders!A199 -> FR0919209 | B198: =VLOOKUP(A198,'Product-tool'!A:E,5,0) -> Tool 11 | C198: =VLOOKUP(A198&B198,'Standard output'!A:D,4,0) -> 2083 | D198: =INDEX(Orders!A:D,ROW()+1,FindCol("orders",2,TimeBucketName))/$C198 -> 2.101968315
A199: =Orders!A200 -> FR0935436 | B199: =VLOOKUP(A199,'Product-tool'!A:E,5,0) -> Tool 11 | C199: =VLOOKUP(A199&B199,'Standard output'!A:D,4,0) -> 2087 | D199: =INDEX(Orders!A:D,ROW()+1,FindCol("orders",2,TimeBucketName))/$C199 -> 0.07287973167
A200: =Orders!A201 -> FR1379592 | B200: =VLOOKUP(A200,'Product-tool'!A:E,5,0) -> Tool 15 | C200: =VLOOKUP(A200&B200,'Standard output'!A:D,4,0) -> 4494 | D200: =INDEX(Orders!A:D,ROW()+1,FindCol("orders",2,TimeBucketName))/$C200 -> 0.2377837116
... 1300 more rows

Sheet After balance HoursPerProduct
A1: Tools | B1: Balanced column
A2: Tool 01 | B2: 84.6421788
A3: DP5007199 | B3: 39.93002346
A4: DP5908334 | B4: 38.64851097
A5: DP5383174 | B5: 5.320031299
A6: DP5698799 | B6: 0.6555815769
A7: DA5685201 | B7: 0.08803149606
A8: Tool 02 | B8: 113.132956
A9: ZD2443045 | B9: 12.43841185
A10: UV2189115 | B10: 11.94721799
A11: UV6411805 | B11: 8.437206662
A12: CP3651771 | B12: 6.24688549
A13: UV4094667 | B13: 5.026042456
A14: UV2535805 | B14: 4.665196078
A15: UV6241191 | B15: 4.481526718
A16: SL4542202 | B16: 4.222522866
A17: SB6619702 | B17: 4.08938152
A18: VE8168353 | B18: 3.962895238
A19: ST1444632 | B19: 3.960386473
A20: ST0044507 | B20: 3.850503919
A21: UV8505006 | B21: 3.457192175
A22: UV3633599 | B22: 3.334199465
A23: UV046672 | B23: 3.127986348
A24: NU2703355 | B24: 3.088175293
A25: VE8166035 | B25: 2.722042809
A26: ST086120 | B26: 1.791852131
A27: NU3708683 | B27: 1.70106911
A28: UV0787788 | B28: 1.667306245
A29: UV3595016 | B29: 1.485300668
A30: UV2452537 | B30: 1.364060763
A31: UV5379200 | B31: 1.220136519
A32: UV2213161 | B32: 1.200881226
A33: UV3942188 | B33: 1.14535316
A34: UV8538779 | B34: 0.9680851064
A35: UV0008455 | B35: 0.9531062874
A36: UV0787562 | B36: 0.9221504559
A37: ST0904669 | B37: 0.8421170332
A38: SL1814144 | B38: 0.7885165663
A39: ST3795473 | B39: 0.6587378641
A40: NU3827246 | B40: 0.5898997401
A41: ST5444150 | B41: 0.5820895522
A42: SL1205692 | B42: 0.5807779456
A43: AP3728500 | B43: 0.5476010578
A44: AP4223947 | B44: 0.4663743805
A45: ST3859207 | B45: 0.4651055662
A46: ST3078513 | B46: 0.4216216216
A47: AP3951566 | B47: 0.3327961019
A48: UV5473062 | B48: 0.3276819205
A49: ST1661696 | B49: 0.3042553191
A50: VE8096041 | B50: 0.2647236942
A51: UV5416692 | B51: 0.2439314966
A52: UV4926151 | B52: 0.2349096501
A53: UV579433 | B53: 0.2101410599
A54: UV2985514 | B54: 0.2051860203
A55: SL1739082 | B55: 0.2001145913
A56: UV4787798 | B56: 0.1760164118
A57: UV1106642 | B57: 0.1628635347
A58: ST0248243 | B58: 0.1553490137
A59: UV5677822 | B59: 0.1395973154
A60: ST5866857 | B60: 0.1370765131
A61: ST5622830 | B61: 0.1195685087
A62: AO0414069 | B62: 0.09532360643
A63: UV5815295 | B63: 0.08777194299
A64: SB4985987 | B64: 0.06333081571
A65: AP4745289 | B65: 0.05431199693
A66: ST5775560 | B66: 0.05219330855
A67: NU4893598 | B67: 0.04765177549
A68: UV6937295 | B68: 0.04181002244
A69: UV4105152 | B69: 0.03748558247
A70: VE8008533 | B70: 0.009206112561
A71: SB3338674 | B71: 0.006831831832
A72: SL2223216 | B72: 0.002911534155
A73: Tool 03 | B73: 6.307772682
A74: UV562824 | B74: 1.639528146
A75: UV5956413 | B75: 1.18607443
A76: UV5947578 | B76: 1.057744177
A77: CT3389630 | B77: 0.7071107479
A78: DP2404504 | B78: 0.5215853659
A79: UV5362907 | B79: 0.3862125564
A80: UV5813627 | B80: 0.3578772803
A81: UV2805946 | B81: 0.2260869565
A82: VE5219409 | B82: 0.2197256958
A83: UV5689814 | B83: 0.003121248499
A84: FR3966167 | B84: 0.002706078268
A85: Tool 04 | B85: 70.72058842
A86: MP8104858 | B86: 43.38227628
A87: MP8061520 | B87: 19.52582781
A88: CM5947011 | B88: 4.202654482
A89: MP8109471 | B89: 1.520319931
A90: FR066151 | B90: 1.352990696
A91: CM2364748 | B91: 0.5638764548
A92: UV5494145 | B92: 0.1726427623
A93: Tool 05 | B93: 116.6611956
A94: AS0125536 | B94: 58.33500404
A95: MC5625753 | B95: 20.21676253
A96: ZD173254 | B96: 11.78907015
A97: AS1143091 | B97: 9.150197006
A98: NU2754771 | B98: 5.789992242
A99: DA2128864 | B99: 4.46124704
A100: BC6306450 | B100: 2.618734988
A101: ZD1471989 | B101: 2.19201581
A102: ZD1446821 | B102: 0.6961691939
A103: IR539559 | B103: 0.5371815287
A104: AB3534415 | B104: 0.4197693575
A105: IP453302 | B105: 0.3060606061
A106: MC5663542 | B106: 0.1489911219
A107: Tool 06 | B107: 24.47767109
A108: AL1492544 | B108: 8.435418083
A109: MP8026858 | B109: 7.131102701
A110: AS6815735 | B110: 3.292946628
A111: MP8004078 | B111: 2.268094585
A112: BC2509115 | B112: 1.793188058
A113: BC2465775 | B113: 0.6627277371
A114: BC1381899 | B114: 0.2952307163
A115: BC1086722 | B115: 0.2440999139
A116: BC1638233 | B116: 0.1222717149
A117: BC2965316 | B117: 0.1217087312
A118: ME8876987 | B118: 0.05907056799
A119: AB2665756 | B119: 0.04113220455
A120: BC5752252 | B120: 0.01067944549
A121: Tool 07 | B121: 11.20638633
A122: MP8189416 | B122: 4.271659416
A123: AB5677022 | B123: 2.276803329
A124: UV2195087 | B124: 2.191093117
A125: UV4665563 | B125: 1.04182385
A126: UV5555407 | B126: 0.4540418929
A127: AP0171319 | B127: 0.2330868762
A128: AO855133 | B128: 0.2006954103
A129: CT823663 | B129: 0.1613403661
A130: SB0898923 | B130: 0.1210234279
A131: AO5342652 | B131: 0.1129993758
A132: AP3078837 | B132: 0.09934762349
A133: AP5897782 | B133: 0.02478301302
A134: AP5614262 | B134: 0.007418260333
A135: UV6252256 | B135: 0.005850403476
A136: AP086256 | B136: 0.002419354839
A137: AP4972828 | B137: 0.002000615574
A138: Tool 08 | B138: 120.7341186
A139: CT3847465 | B139: 26.18439949
A140: ME8804901 | B140: 23.99661836
A141: CC5605066 | B141: 16.75526249
A142: ME8183894 | B142: 8.005904714
A143: CL4179003 | B143: 6.836940765
A144: CM2573429 | B144: 5.804351145
A145: ME8183059 | B145: 5.409929789
A146: CM3509051 | B146: 3.019812278
A147: ME8294469 | B147: 2.977713713
A148: ME8203838 | B148: 2.926467637
A149: CM2144500 | B149: 2.800151937
A150: ME8846873 | B150: 2.571421434
A151: ME8219605 | B151: 2.140344217
A152: ME8216708 | B152: 1.819608826
A153: ME8004064 | B153: 1.471493556
A154: ME8004536 | B154: 1.411933535
A155: ME8009107 | B155: 1.355808081
A156: ME8808939 | B156: 0.8603469952
A157: ME8182883 | B157: 0.7460245799
A158: CM2146129 | B158: 0.6752731893
A159: ME8144143 | B159: 0.5838733986
A160: MC594145 | B160: 0.4003777386
A161: ME8212034 | B161: 0.3913032581
A162: ME8082434 | B162: 0.3283828383
A163: ME8186457 | B163: 0.3018263698
A164: ME8809588 | B164: 0.2134722928
A165: ME8254069 | B165: 0.2011159016
A166: ME8314847 | B166: 0.1857606795
A167: ME81564 | B167: 0.1726717557
A168: ME8227923 | B168: 0.05610802625
A169: ME8115997 | B169: 0.04477040816
A170: ME8007924 | B170: 0.04398496241
A171: CM267912 | B171: 0.03901322482
A172: CM350886 | B172: 0.001651003302
A173: Tool 09 | B173: 138.0778416
A174: SL0979997 | B174: 28.82815356
A175: CP2759269 | B175: 20.42396694
A176: AF4955974 | B176: 19.07267327
A177: ST1025440 | B177: 15.91996124
A178: MT458935 | B178: 9.682936508
A179: AF4224863 | B179: 8.844041451
A180: MT0524796 | B180: 7.237909836
A181: UV251396 | B181: 5.391762452
A182: UV2198207 | B182: 4.501727116
A183: UV3287428 | B183: 4.393013972
A184: UV0185671 | B184: 4.062167689
A185: SS0108 | B185: 2.82
A186: UV5762734 | B186: 1.669016698
A187: AB0975463 | B187: 1.172912424
A188: UV1585237 | B188: 0.8998087954
A189: SL6949404 | B189: 0.8903460838
A190: UV5311573 | B190: 0.5594262295
A191: UV2285856 | B191: 0.5354275742
A192: AF2797300 | B192: 0.3914498141
A193: AB6883086 | B193: 0.2839350181
A194: ST0249290 | B194: 0.2730902778
A195: UV5685234 | B195: 0.1628180039
A196: SL0454342 | B196: 0.06129666012
A197: Tool 10 | B197: 136.6299205
A198: RT3164824 | B198: 87.55733414
A199: NU1816428 | B199: 9.893826406
A200: AB2092362 | B200: 8.593868792
... 316 more rows
